Workbook

Sheet Hospital DR. ALEJANDRO CABRAL
C2: CUMPLIMIENTO CARTA COMPROMISOS AL CIUDADANO CCC | L2: Satisfacción General: | N2: =AVERAGE(K25:K42) -> 100.0%
C4: HOSPITAL REGIONAL DOCTOR ALEJANDRO CABRAL
L5: Link directo a la plataforma de Encuestas:
L6: https://encuesta.sns.gob.do/
A19: =TODAY() -> 2024-01-16
A21: Satifacción
A24: Servicio | B24: Atributo | C24: Muy Mala | D24: Mala | E24: Regular | F24: Buena | G24: Muy Buena | H24: Total | I24: Buena y Muy Buena | J24: Compromiso | K24: Satisfecho
A25: Consulta Externa | B25: Amabilidad | C25: =+'Mes en Curso'!G3 -> 0 | D25: =+'Mes en Curso'!H3 -> 0 | E25: =+'Mes en Curso'!I3 -> 0 | F25: =+'Mes en Curso'!J3 -> 85 | G25: =+'Mes en Curso'!K3 -> 5 | H25: =C25+D25+F25+G25 -> 90 | I25: =F25+G25 -> 90 | J25: 90% | K25: =IF(I25=0,0,I25/H25) -> 100.0%
C26: =IF(C25="","",C25/$H$25) -> 0% | D26: =IF(D25="","",D25/$H$25) -> 0% | E26: =IF(E25="","",E25/$H$25) -> 0% | F26: =IF(F25="","",F25/$H$25) -> 94% | G26: =IF(G25="","",G25/$H$25) -> 6%
B27: Profesionalidad | C27: =+'Mes en Curso'!G4 -> 0 | D27: =+'Mes en Curso'!H4 -> 0 | E27: =+'Mes en Curso'!I4 -> 4 | F27: =+'Mes en Curso'!J4 -> 85 | G27: =+'Mes en Curso'!K4 -> 1 | H27: =C27+D27+F27+G27 -> 86 | I27: =F27+G27 -> 86 | J27: 90% | K27: =IF(I27=0,0,I27/H27) -> 100.0%
C28: =IF(C27="","",C27/$H$27) -> 0% | D28: =IF(D27="","",D27/$H$27) -> 0% | E28: =IF(E27="","",E27/$H$27) -> 5% | F28: =IF(F27="","",F27/$H$27) -> 99% | G28: =IF(G27="","",G27/$H$27) -> 1%
A29: Hospitalización | B29: Amabilidad | C29: =+'Mes en Curso'!G5 -> 0 | D29: =+'Mes en Curso'!H5 -> 0 | E29: =+'Mes en Curso'!I5 -> 1 | F29: =+'Mes en Curso'!J5 -> 38 | G29: =+'Mes en Curso'!K5 -> 3 | H29: =C29+D29+F29+G29 -> 41 | I29: =F29+G29 -> 41 | J29: 90% | K29: =IF(I29=0,0,I29/H29) -> 100.0%
C30: =IF(C29="","",C29/$H$29) -> 0% | D30: =IF(D29="","",D29/$H$29) -> 0% | E30: =IF(E29="","",E29/$H$29) -> 2% | F30: =IF(F29="","",F29/$H$29) -> 93% | G30: =IF(G29="","",G29/$H$29) -> 7%
B31: Profesionalidad | C31: =+'Mes en Curso'!G6 -> 0 | D31: =+'Mes en Curso'!H6 -> 0 | E31: =+'Mes en Curso'!I6 -> 3 | F31: =+'Mes en Curso'!J6 -> 34 | G31: =+'Mes en Curso'!K6 -> 5 | H31: =C31+D31+F31+G31 -> 39 | I31: =F31+G31 -> 39 | J31: 85% | K31: =IF(I31=0,0,I31/H31) -> 100.0%
C32: =IF(C31="","",C31/$H$31) -> 0% | D32: =IF(D31="","",D31/$H$31) -> 0% | E32: 8% | F32: 87% | G32: 13%
A33: Imágenes | B33: Amabilidad | C33: =+'Mes en Curso'!G9 -> 0 | D33: =+'Mes en Curso'!H9 -> 0 | E33: =+'Mes en Curso'!I9 -> 1 | F33: =+'Mes en Curso'!J9 -> 25 | G33: =+'Mes en Curso'!K9 -> 0 | H33: =C33+D33+F33+G33 -> 25 | I33: =F33+G33 -> 25 | J33: 90% | K33: =IF(I33=0,0,I33/H33) -> 100.0%
C34: =IF(C33="","",C33/$H$37) -> 0% | D34: =IF(D33="","",D33/$H$37) -> 0% | E34: =IF(E33="","",E33/$H$37) -> 1% | F34: =IF(F33="","",F33/$H$37) -> 33% | G34: =IF(G33="","",G33/$H$37) -> 0%
B35: Profesionalidad | C35: =+'Mes en Curso'!G10 -> 0 | D35: =+'Mes en Curso'!H10 -> 0 | E35: =+'Mes en Curso'!I10 -> 2 | F35: =+'Mes en Curso'!J10 -> 23 | G35: =+'Mes en Curso'!K10 -> 1 | H35: =C35+D35+F35+G35 -> 24 | I35: =F35+G35 -> 24 | J35: 90% | K35: =IF(I35=0,0,I35/H35) -> 100.0%
C36: =IF(C35="","",C35/$H$37) -> 0% | D36: =IF(D35="","",D35/$H$37) -> 0% | E36: =IF(E35="","",E35/$H$37) -> 3% | F36: =IF(F35="","",F35/$H$37) -> 30% | G36: =IF(G35="","",G35/$H$37) -> 1%
A37: Laboratorio | B37: Amabilidad | C37: =+'Mes en Curso'!G7 -> 0 | D37: =+'Mes en Curso'!H7 -> 0 | E37: =+'Mes en Curso'!I7 -> 0 | F37: =+'Mes en Curso'!J7 -> 68 | G37: =+'Mes en Curso'!K7 -> 8 | H37: =C37+D37+F37+G37 -> 76 | I37: =F37+G37 -> 76 | J37: 90% | K37: =IF(I37=0,0,I37/H37) -> 100.0%
C38: =IF(C37="","",C37/$H$37) -> 0% | D38: =IF(D37="","",D37/$H$37) -> 0% | E38: =IF(E37="","",E37/$H$37) -> 0% | F38: =IF(F37="","",F37/$H$37) -> 89% | G38: =IF(G37="","",G37/$H$37) -> 11%
B39: Profesionalidad | C39: =+'Mes en Curso'!G8 -> 0 | D39: =+'Mes en Curso'!H8 -> 0 | E39: =+'Mes en Curso'!I8 -> 0 | F39: =+'Mes en Curso'!J8 -> 68 | G39: =+'Mes en Curso'!K8 -> 8 | H39: =C39+D39+F39+G39 -> 76 | I39: =F39+G39 -> 76 | J39: 90% | K39: =IF(I39=0,0,I39/H39) -> 100.0%
C40: =IF(C39="","",C39/$H$37) -> 0% | D40: =IF(D39="","",D39/$H$37) -> 0% | E40: =IF(E39="","",E39/$H$37) -> 0% | F40: =IF(F39="","",F39/$H$37) -> 89% | G40: =IF(G39="","",G39/$H$37) -> 11%
B41: Disponibilidad | F41: 604 | G41: 9175 | H41: =+SUM(C41:G41) -> 9779 | I41: =F41+G41 -> 9779 | J41: 100% | K41: =IF(I41=0,0,I41/H41) -> 100.0%
C42: ≥ 10 días | D42: 6 - 9 días | E42: 3 - 5 días | F42: 1 - 2 días (Meta) | G42: 1 día
A44: CONSOLIDADO MENSUAL 2022
A47: Mes | B47: Compromiso | C47: Consulta Externa - Amabilidad | D47: Consulta Externa - Profesionalidad | E47: Compromiso | F47: Hospitalización - Amabilidad | G47: Hospitalización - Profesionalidad | I47: X | J47: Compromiso | K47: Laboratorio - Amabilidad | L47: Laboratorio - Profesionalidad | M47: Laboratorio - Disponibilidad | N47: Imágenes - Amabilidad | O47: Imágenes - Profesionalidad
A49: Enero | B49: =+$J$25 -> 90% | C49: =IF(Enero!N3=0%,"",Enero!N3) ->  | D49: =IF(Enero!N4=0%,"",Enero!N4) ->  | E49: =+$J$31 -> 85% | F49: =IF(Enero!N5=0%,"",Enero!N5) ->  | G49: =IF(Enero!N6=0%,"",Enero!N6) ->  | I49: =IF(#REF!=0%,"",#REF!) ->  | J49: =+$J$41 -> 100% | K49: =IF(Enero!N7=0%,"",Enero!N7) ->  | L49: =IF(Enero!N8=0%,"",Enero!N8) ->  | N49: =IF(Enero!N9=0%,"",Enero!N9) ->  | O49: =IF(Enero!N10=0%,"",Enero!N10) -> 
A50: Febrero | B50: =+$J$25 -> 90% | C50: =IF(Febrero!N3=0%,"",Febrero!N3) ->  | D50: =IF(Febrero!N4=0%,"",Febrero!N4) ->  | E50: =+$J$31 -> 85% | F50: =IF(Febrero!N5=0%,"",Febrero!N5) ->  | G50: =IF(Febrero!N6=0%,"",Febrero!N6) ->  | I50: =IF(#REF!=0%,"",#REF!) ->  | J50: 100% | K50: =IF(Febrero!N7=0%,"",Febrero!N7) ->  | L50: =IF(Febrero!N8=0%,"",Febrero!N8) ->  | N50: =IF(Febrero!N9=0%,"",Febrero!N9) ->  | O50: =IF(Febrero!N10=0%,"",Febrero!N10) -> 
A51: Marzo | B51: 90% | C51: =IF(Marzo!N3=0%,"",Marzo!N3) ->  | D51: =IF(Marzo!N4=0%,"",Marzo!N4) ->  | E51: 85% | F51: =IF(Marzo!N5=0%,"",Marzo!N5) ->  | G51: =IF(Marzo!N6=0%,"",Marzo!N6) ->  | I51: =IF(#REF!=0%,"",#REF!) ->  | J51: 100% | K51: =IF(Marzo!N7=0%,"",Marzo!N7) ->  | L51: =IF(Marzo!N8=0%,"",Marzo!N8) ->  | N51: =IF(Marzo!N9=0%,"",Marzo!N9) ->  | O51: =IF(Marzo!N10=0%,"",Marzo!N10) -> 
A52: Abril | B52: 90% | C52: =IF(Abril!N3=0%,"",Abril!N3) ->  | D52: =IF(Abril!N4=0%,"",Abril!N4) ->  | E52: 85% | F52: =IF(Abril!N5=0%,"",Abril!N5) ->  | G52: =IF(Abril!N6=0%,"",Abril!N6) ->  | I52: =IF(#REF!=0%,"",#REF!) ->  | J52: 100% | K52: =IF(Abril!N7=0%,"",Abril!N7) ->  | L52: =IF(Abril!N8=0%,"",Abril!N8) ->  | N52: =IF(Abril!N9=0%,"",Abril!N9) ->  | O52: =IF(Abril!N10=0%,"",Abril!N10) -> 
A53: Mayo | B53: 90% | C53: =IF(Mayo!N3=0%,"",Mayo!N3) ->  | D53: =IF(Mayo!N4=0%,"",Mayo!N4) ->  | E53: 85% | F53: =IF(Mayo!N5=0%,"",Mayo!N5) ->  | G53: =IF(Mayo!N6=0%,"",Mayo!N6) ->  | I53: =IF(#REF!=0%,"",#REF!) ->  | J53: 100% | K53: =IF(Mayo!N7=0%,"",Mayo!N7) ->  | L53: =IF(Mayo!N8=0%,"",Mayo!N8) ->  | N53: =IF(Mayo!N9=0%,"",Mayo!N9) ->  | O53: =IF(Mayo!N10=0%,"",Mayo!N10) -> 
A54: Junio | B54: 90% | C54: =IF(Junio!N3=0%,"",Junio!N3) ->  | D54: =IF(Junio!N4=0%,"",Junio!N4) ->  | E54: 85% | F54: =IF(Junio!N5=0%,"",Junio!N5) ->  | G54: =IF(Junio!N6=0%,"",Junio!N6) ->  | I54: =IF(#REF!=0%,"",#REF!) ->  | J54: 100% | K54: =IF(Junio!N7=0%,"",Junio!N7) ->  | L54: =IF(Junio!N8=0%,"",Junio!N8) ->  | N54: =IF(Junio!N9=0%,"",Junio!N9) ->  | O54: =IF(Junio!N10=0%,"",Junio!N10) -> 
A55: Julio | B55: 90% | C55: =IF(Julio!N3=0%,"",Julio!N3) ->  | D55: =IF(Julio!N4=0%,"",Julio!N4) ->  | E55: 85% | F55: =IF(Julio!N5=0%,"",Julio!N5) ->  | G55: =IF(Julio!N6=0%,"",Julio!N6) ->  | I55: =IF(#REF!=0%,"",#REF!) ->  | J55: 100% | K55: =IF(Julio!N7=0%,"",Julio!N7) ->  | L55: =IF(Julio!N8=0%,"",Julio!N8) ->  | N55: =IF(Julio!N9=0%,"",Julio!N9) ->  | O55: =IF(Julio!N10=0%,"",Julio!N10) -> 
A56: Agosto | B56: 90% | C56: =IF(Agosto!N3=0%,"",Agosto!N3) ->  | D56: =IF(Agosto!N4=0%,"",Agosto!N4) ->  | E56: 85% | F56: =IF(Agosto!N5=0%,"",Agosto!N5) ->  | G56: =IF(Agosto!N6=0%,"",Agosto!N6) ->  | I56: =IF(#REF!=0%,"",#REF!) ->  | J56: 100% | K56: =IF(Agosto!N7=0%,"",Agosto!N7) ->  | L56: =IF(Agosto!N8=0%,"",Agosto!N8) ->  | N56: =IF(Agosto!N9=0%,"",Agosto!N7) ->  | O56: =IF(Agosto!N10=0%,"",Agosto!N10) -> 
A57: Septiembre | B57: 90% | C57: =IF(Septiembre!N3=0%,"",Septiembre!N3) ->  | D57: =IF(Septiembre!N4=0%,"",Septiembre!N4) ->  | E57: 85% | F57: =IF(Septiembre!N5=0%,"",Septiembre!N5) ->  | G57: =IF(Septiembre!N6=0%,"",Septiembre!N6) ->  | I57: =IF(#REF!=0%,"",#REF!) ->  | J57: 100% | K57: =IF(Septiembre!N7=0%,"",Septiembre!N7) ->  | L57: =IF(Septiembre!N8=0%,"",Septiembre!N8) ->  | N57: =IF(Septiembre!N9=0%,"",Septiembre!N9) ->  | O57: =IF(Septiembre!N10=0%,"",Septiembre!N10) -> 
A58: Octubre | B58: 90% | C58: =IF(Octubre!N3=0%,"",Octubre!N3) ->  | D58: =IF(Octubre!N4=0%,"",Octubre!N4) ->  | E58: 85% | F58: =IF(Octubre!N5=0%,"",Octubre!N5) ->  | G58: =IF(Octubre!N6=0%,"",Octubre!N6) ->  | I58: =IF(#REF!=0%,"",#REF!) ->  | J58: 100% | K58: =IF(Octubre!N7=0%,"",Octubre!N7) ->  | L58: =IF(Octubre!N8=0%,"",Octubre!N8) ->  | N58: =IF(Octubre!N9=0%,"",Octubre!N9) ->  | O58: =IF(Octubre!N10=0%,"",Octubre!N10) -> 
A59: Noviembre | B59: 90% | C59: =IF(Noviembre!N3=0%,"",Noviembre!N3) ->  | D59: =IF(Noviembre!N4=0%,"",Noviembre!N4) ->  | E59: 85% | F59: =IF(Noviembre!N5=0%,"",Noviembre!N5) ->  | G59: =IF(Noviembre!N6=0%,"",Noviembre!N6) ->  | I59: =IF(#REF!=0%,"",#REF!) ->  | J59: 100% | K59: =IF(Noviembre!N7=0%,"",Noviembre!N7) ->  | L59: =IF(Noviembre!N8=0%,"",Noviembre!N8) ->  | N59: =IF(Noviembre!N9=0%,"",Noviembre!N9) ->  | O59: =IF(Noviembre!N10=0%,"",Noviembre!N10) -> 
A60: Diciembre | B60: 90% | C60: =IF(Diciembre!N3=0%,"",Diciembre!N3) -> 100.0% | D60: =IF(Diciembre!N4=0%,"",Diciembre!N4) -> 95.6% | E60: 85% | F60: =IF(Diciembre!N5=0%,"",Diciembre!N5) -> 97.6% | G60: =IF(Diciembre!N6=0%,"",Diciembre!N6) -> 92.9% | I60: =IF(#REF!=0%,"",#REF!) ->  | J60: 100% | K60: =IF(Diciembre!N7=0%,"",Diciembre!N7) -> 100.0% | L60: =IF(Diciembre!N8=0%,"",Diciembre!N8) -> 100.0% | M60: 100.0% | N60: =IF(Diciembre!N9=0%,"",Diciembre!N9) -> 96.2% | O60: =IF(Diciembre!N10=0%,"",Diciembre!N10) -> 92.3%
A101: Requiere Acción Correctiva, Preventiva o de Mejora: | E101: SI: | G101: NO: | I101: NO:
A103: Observaciones / Accion Correctiva, Preventiva o de Mejora:

Sheet Mes en Curso
A2: Hospital: | B2: HOSPITAL REGIONAL DR. ALEJANDRO CABRAL | G2: Muy Mala | H2: Mala | I2: Regular | J2: Buena | K2: Muy Buena
A3: Servicio: | B3: Consulta Externa | D3: Atributo: | E3: Amabilidad | G3: =COUNTIFS($C$14:$C$20006,$B$2,$I$14:$I$20006,$B$3,$J$14:$J$20006,G2) -> 0 | H3: =COUNTIFS($C$14:$C$20006,$B$2,$I$14:$I$20006,$B$3,$J$14:$J$20006,H2) -> 0 | I3: =COUNTIFS($C$14:$C$20006,$B$2,$I$14:$I$20006,$B$3,$J$14:$J$20006,I2) -> 0 | J3: =COUNTIFS($C$14:$C$20006,$B$2,$I$14:$I$20006,$B$3,$J$14:$J$20006,J2) -> 85 | K3: =COUNTIFS($C$14:$C$20006,$B$2,$I$14:$I$20006,$B$3,$J$14:$J$20006,K2) -> 5
D4: Atributo: | E4: Profesionalidad | G4: =COUNTIFS($C$14:$C$20006,$B$2,$I$14:$I$20006,$B$3,$K$14:$K$20006,G2) -> 0 | H4: =COUNTIFS($C$14:$C$20006,$B$2,$I$14:$I$20006,$B$3,$K$14:$K$20006,H2) -> 0 | I4: =COUNTIFS($C$14:$C$20006,$B$2,$I$14:$I$20006,$B$3,$K$14:$K$20006,I2) -> 4 | J4: =COUNTIFS($C$14:$C$20006,$B$2,$I$14:$I$20006,$B$3,$K$14:$K$20006,J2) -> 85 | K4: =COUNTIFS($C$14:$C$20006,$B$2,$I$14:$I$20006,$B$3,$K$14:$K$20006,K2) -> 1
A5: Servicio: | B5: Hospitalización | D5: Atributo: | E5: Amabilidad | G5: =COUNTIFS($C$14:$C$20006,$B$2,$I$14:$I$20006,$B$5,$J$14:$J$20006,G2) -> 0 | H5: =COUNTIFS($C$14:$C$20006,$B$2,$I$14:$I$20006,$B$5,$J$14:$J$20006,H2) -> 0 | I5: =COUNTIFS($C$14:$C$20006,$B$2,$I$14:$I$20006,$B$5,$J$14:$J$20006,I2) -> 1 | J5: =COUNTIFS($C$14:$C$20006,$B$2,$I$14:$I$20006,$B$5,$J$14:$J$20006,J2) -> 38 | K5: =COUNTIFS($C$14:$C$20006,$B$2,$I$14:$I$20006,$B$5,$J$14:$J$20006,K2) -> 3
D6: Atributo: | E6: Profesionalidad | G6: =COUNTIFS($C$14:$C$20006,$B$2,$I$14:$I$20006,$B$5,$K$14:$K$20006,G2) -> 0 | H6: =COUNTIFS($C$14:$C$20006,$B$2,$I$14:$I$20006,$B$5,$K$14:$K$20006,H2) -> 0 | I6: =COUNTIFS($C$14:$C$20006,$B$2,$I$14:$I$20006,$B$5,$K$14:$K$20006,I2) -> 3 | J6: =COUNTIFS($C$14:$C$20006,$B$2,$I$14:$I$20006,$B$5,$K$14:$K$20006,J2) -> 34 | K6: =COUNTIFS($C$14:$C$20006,$B$2,$I$14:$I$20006,$B$5,$K$14:$K$20006,K2) -> 5
A7: Servicio: | B7: Laboratorio | D7: Atributo: | E7: Amabilidad | G7: =COUNTIFS($C$14:$C$20006,$B$2,$I$14:$I$20006,$B$7,$J$14:$J$20006,G2) -> 0 | H7: =COUNTIFS($C$14:$C$20006,$B$2,$I$14:$I$20006,$B$7,$J$14:$J$20006,H2) -> 0 | I7: =COUNTIFS($C$14:$C$20006,$B$2,$I$14:$I$20006,$B$7,$J$14:$J$20006,I2) -> 0 | J7: =COUNTIFS($C$14:$C$20006,$B$2,$I$14:$I$20006,$B$7,$J$14:$J$20006,J2) -> 68 | K7: =COUNTIFS($C$14:$C$20006,$B$2,$I$14:$I$20006,$B$7,$J$14:$J$20006,K2) -> 8
D8: Atributo: | E8: Profesionalidad | G8: =COUNTIFS($C$14:$C$20006,$B$2,$I$14:$I$20006,$B$7,$K$14:$K$20006,G2) -> 0 | H8: =COUNTIFS($C$14:$C$20006,$B$2,$I$14:$I$20006,$B$7,$K$14:$K$20006,H2) -> 0 | I8: =COUNTIFS($C$14:$C$20006,$B$2,$I$14:$I$20006,$B$7,$K$14:$K$20006,I2) -> 0 | J8: =COUNTIFS($C$14:$C$20006,$B$2,$I$14:$I$20006,$B$7,$K$14:$K$20006,J2) -> 68 | K8: =COUNTIFS($C$14:$C$20006,$B$2,$I$14:$I$20006,$B$7,$K$14:$K$20006,K2) -> 8
A9: Servicio: | B9: Imágenes | D9: Atributo: | E9: Amabilidad | G9: =COUNTIFS($C$14:$C$20006,$B$2,$I$14:$I$20006,$B$9,$J$14:$J$20006,G2) -> 0 | H9: =COUNTIFS($C$14:$C$20006,$B$2,$I$14:$I$20006,$B$9,$J$14:$J$20006,H2) -> 0 | I9: =COUNTIFS($C$14:$C$20006,$B$2,$I$14:$I$20006,$B$9,$J$14:$J$20006,I2) -> 1 | J9: =COUNTIFS($C$14:$C$20006,$B$2,$I$14:$I$20006,$B$9,$J$14:$J$20006,J2) -> 25 | K9: =COUNTIFS($C$14:$C$20006,$B$2,$I$14:$I$20006,$B$9,$J$14:$J$20006,K2) -> 0
D10: Atributo: | E10: Profesionalidad | G10: =COUNTIFS($C$14:$C$20006,$B$2,$I$14:$I$20006,$B$9,$K$14:$K$20006,G2) -> 0 | H10: =COUNTIFS($C$14:$C$20006,$B$2,$I$14:$I$20006,$B$9,$K$14:$K$20006,H2) -> 0 | I10: =COUNTIFS($C$14:$C$20006,$B$2,$I$14:$I$20006,$B$9,$K$14:$K$20006,I2) -> 2 | J10: =COUNTIFS($C$14:$C$20006,$B$2,$I$14:$I$20006,$B$9,$K$14:$K$20006,J2) -> 23 | K10: =COUNTIFS($C$14:$C$20006,$B$2,$I$14:$I$20006,$B$9,$K$14:$K$20006,K2) -> 1
J12: Amabilidad | K12: Profesionalidad
A13: Código | B13: Formulario | C13: Establecimiento | D13: Fecha | E13: Nivel de Atención | F13: Municipio | G13: Provincia | H13: ¿Recomendaría a otra persona atenderse en este establecimiento de salud? | I13: Seleccione el servicio recibido | J13: ¿Cómo califica la amabilidad del personal que le atendió? | K13: ¿Cómo considera la profesionalidad del personal que le atendió? | L13: ¿Cómo considera la facilidad y rapidez del servicio brindado? | M13: ¿Cómo percibe el manejo de las informaciones del personal que le atendió? | N13: ¿Cómo considera el acceso a los servicios solicitados? | O13: ¿Cómo considera el tiempo para recibir los resultados de los estudios realizados? | P13: ¿Cómo considera la higiene y comodidad del espacio físico? | Q13: En general, ¿Cómo considera la calidad del servicio recibido?
A14: 2197949 | B14: Encuesta General de Satisfacción HOSPITALES | C14: HOSPITAL REGIONAL DR. ALEJANDRO CABRAL | D14: viernes, 1 de diciembre de 2023 4:15:39 p. m. | E14: Tercer Nivel | F14: San Juan | G14: San Juan | H14: Si | I14: Consulta Externa | J14: Buena | K14: Buena | L14: Buena | M14: Buena | N14: Buena | O14: Buena | P14: Buena | Q14: Muy Buena
A15: 2197950 | B15: Encuesta General de Satisfacción HOSPITALES | C15: HOSPITAL REGIONAL DR. ALEJANDRO CABRAL | D15: viernes, 1 de diciembre de 2023 4:15:59 p. m. | E15: Tercer Nivel | F15: San Juan | G15: San Juan | H15: Si | I15: Consulta Externa | J15: Buena | K15: Buena | L15: Buena | M15: Buena | N15: Buena | O15: Buena | P15: Buena | Q15: Buena
A16: 2197951 | B16: Encuesta General de Satisfacción HOSPITALES | C16: HOSPITAL REGIONAL DR. ALEJANDRO CABRAL | D16: viernes, 1 de diciembre de 2023 4:16:19 p. m. | E16: Tercer Nivel | F16: San Juan | G16: San Juan | H16: Si | I16: Consulta Externa | J16: Buena | K16: Buena | L16: Buena | M16: Buena | N16: Buena | O16: Buena | P16: Buena | Q16: Buena
A17: 2197952 | B17: Encuesta General de Satisfacción HOSPITALES | C17: HOSPITAL REGIONAL DR. ALEJANDRO CABRAL | D17: viernes, 1 de diciembre de 2023 4:16:38 p. m. | E17: Tercer Nivel | F17: San Juan | G17: San Juan | H17: Si | I17: Consulta Externa | J17: Buena | K17: Buena | L17: Buena | M17: Buena | N17: Buena | O17: Buena | P17: Buena | Q17: Buena
A18: 2197953 | B18: Encuesta General de Satisfacción HOSPITALES | C18: HOSPITAL REGIONAL DR. ALEJANDRO CABRAL | D18: viernes, 1 de diciembre de 2023 4:16:55 p. m. | E18: Tercer Nivel | F18: San Juan | G18: San Juan | H18: Si | I18: Consulta Externa | J18: Buena | K18: Buena | L18: Buena | M18: Buena | N18: Buena | O18: Buena | P18: Buena | Q18: Buena
A19: 2197955 | B19: Encuesta General de Satisfacción HOSPITALES | C19: HOSPITAL REGIONAL DR. ALEJANDRO CABRAL | D19: viernes, 1 de diciembre de 2023 4:17:12 p. m. | E19: Tercer Nivel | F19: San Juan | G19: San Juan | H19: Si | I19: Consulta Externa | J19: Buena | K19: Buena | L19: Buena | M19: Buena | N19: Buena | O19: Buena | P19: Buena | Q19: Buena
A20: 2197956 | B20: Encuesta General de Satisfacción HOSPITALES | C20: HOSPITAL REGIONAL DR. ALEJANDRO CABRAL | D20: viernes, 1 de diciembre de 2023 4:17:29 p. m. | E20: Tercer Nivel | F20: San Juan | G20: San Juan | H20: Si | I20: Consulta Externa | J20: Buena | K20: Buena | L20: Buena | M20: Buena | N20: Buena | O20: Buena | P20: Buena | Q20: Buena
A21: 2197958 | B21: Encuesta General de Satisfacción HOSPITALES | C21: HOSPITAL REGIONAL DR. ALEJANDRO CABRAL | D21: viernes, 1 de diciembre de 2023 4:17:46 p. m. | E21: Tercer Nivel | F21: San Juan | G21: San Juan | H21: Si | I21: Consulta Externa | J21: Buena | K21: Buena | L21: Buena | M21: Buena | N21: Buena | O21: Buena | P21: Buena | Q21: Buena
A22: 2197959 | B22: Encuesta General de Satisfacción HOSPITALES | C22: HOSPITAL REGIONAL DR. ALEJANDRO CABRAL | D22: viernes, 1 de diciembre de 2023 4:18:02 p. m. | E22: Tercer Nivel | F22: San Juan | G22: San Juan | H22: Si | I22: Laboratorio | J22: Buena | K22: Buena | L22: Buena | M22: Buena | N22: Buena | O22: Buena | P22: Buena | Q22: Buena
A23: 2197961 | B23: Encuesta General de Satisfacción HOSPITALES | C23: HOSPITAL REGIONAL DR. ALEJANDRO CABRAL | D23: viernes, 1 de diciembre de 2023 4:18:19 p. m. | E23: Tercer Nivel | F23: San Juan | G23: San Juan | H23: Si | I23: Laboratorio | J23: Buena | K23: Buena | L23: Buena | M23: Buena | N23: Buena | O23: Buena | P23: Muy Buena | Q23: Buena
A24: 2197962 | B24: Encuesta General de Satisfacción HOSPITALES | C24: HOSPITAL REGIONAL DR. ALEJANDRO CABRAL | D24: viernes, 1 de diciembre de 2023 4:18:47 p. m. | E24: Tercer Nivel | F24: San Juan | G24: San Juan | H24: Si | I24: Laboratorio | J24: Buena | K24: Buena | L24: Buena | M24: Buena | N24: Buena | O24: Buena | P24: Buena | Q24: Buena
A25: 2197965 | B25: Encuesta General de Satisfacción HOSPITALES | C25: HOSPITAL REGIONAL DR. ALEJANDRO CABRAL | D25: viernes, 1 de diciembre de 2023 4:19:07 p. m. | E25: Tercer Nivel | F25: San Juan | G25: San Juan | H25: Si | I25: Laboratorio | J25: Buena | K25: Buena | L25: Muy Buena | M25: Muy Buena | N25: Buena | O25: Buena | P25: Buena | Q25: Buena
A26: 2197966 | B26: Encuesta General de Satisfacción HOSPITALES | C26: HOSPITAL REGIONAL DR. ALEJANDRO CABRAL | D26: viernes, 1 de diciembre de 2023 4:21:14 p. m. | E26: Tercer Nivel | F26: San Juan | G26: San Juan | H26: Si | I26: Consulta Externa | J26: Buena | K26: Buena | L26: Buena | M26: Buena | N26: Buena | O26: Buena | P26: Buena | Q26: Buena
A27: 2197968 | B27: Encuesta General de Satisfacción HOSPITALES | C27: HOSPITAL REGIONAL DR. ALEJANDRO CABRAL | D27: viernes, 1 de diciembre de 2023 4:21:36 p. m. | E27: Tercer Nivel | F27: San Juan | G27: San Juan | H27: Si | I27: Laboratorio | J27: Muy Buena | K27: Muy Buena | L27: Muy Buena | M27: Muy Buena | N27: Muy Buena | O27: Muy Buena | P27: Muy Buena | Q27: Muy Buena
A28: 2197969 | B28: Encuesta General de Satisfacción HOSPITALES | C28: HOSPITAL REGIONAL DR. ALEJANDRO CABRAL | D28: viernes, 1 de diciembre de 2023 4:21:55 p. m. | E28: Tercer Nivel | F28: San Juan | G28: San Juan | H28: Si | I28: Laboratorio | J28: Buena | K28: Buena | L28: Buena | M28: Buena | N28: Buena | O28: Buena | P28: Buena | Q28: Buena
A29: 2197970 | B29: Encuesta General de Satisfacción HOSPITALES | C29: HOSPITAL REGIONAL DR. ALEJANDRO CABRAL | D29: viernes, 1 de diciembre de 2023 4:22:20 p. m. | E29: Tercer Nivel | F29: San Juan | G29: San Juan | H29: Si | I29: Laboratorio | J29: Buena | K29: Buena | L29: Buena | M29: Buena | N29: Buena | O29: Buena | P29: Buena | Q29: Buena
A30: 2197971 | B30: Encuesta General de Satisfacción HOSPITALES | C30: HOSPITAL REGIONAL DR. ALEJANDRO CABRAL | D30: viernes, 1 de diciembre de 2023 4:22:47 p. m. | E30: Tercer Nivel | F30: San Juan | G30: San Juan | H30: Si | I30: Laboratorio | J30: Buena | K30: Buena | L30: Buena | M30: Buena | N30: Regular | O30: Muy Buena | P30: Muy Buena | Q30: Muy Buena
A31: 2197972 | B31: Encuesta General de Satisfacción HOSPITALES | C31: HOSPITAL REGIONAL DR. ALEJANDRO CABRAL | D31: viernes, 1 de diciembre de 2023 4:23:05 p. m. | E31: Tercer Nivel | F31: San Juan | G31: San Juan | H31: Si | I31: Imágenes | J31: Buena | K31: Buena | L31: Buena | M31: Buena | N31: Buena | O31: Buena | P31: Buena | Q31: Buena
A32: 2197974 | B32: Encuesta General de Satisfacción HOSPITALES | C32: HOSPITAL REGIONAL DR. ALEJANDRO CABRAL | D32: viernes, 1 de diciembre de 2023 4:23:23 p. m. | E32: Tercer Nivel | F32: San Juan | G32: San Juan | H32: Si | I32: Imágenes | J32: Buena | K32: Regular | L32: Buena | M32: Buena | N32: Buena | O32: Buena | P32: Buena | Q32: Buena
A33: 2197975 | B33: Encuesta General de Satisfacción HOSPITALES | C33: HOSPITAL REGIONAL DR. ALEJANDRO CABRAL | D33: viernes, 1 de diciembre de 2023 4:23:38 p. m. | E33: Tercer Nivel | F33: San Juan | G33: San Juan | H33: Si | I33: Hospitalización | J33: Buena | K33: Buena | L33: Buena | M33: Buena | N33: Buena | O33: Buena | P33: Buena | Q33: Buena
A34: 2197977 | B34: Encuesta General de Satisfacción HOSPITALES | C34: HOSPITAL REGIONAL DR. ALEJANDRO CABRAL | D34: viernes, 1 de diciembre de 2023 4:24:09 p. m. | E34: Tercer Nivel | F34: San Juan | G34: San Juan | H34: Si | I34: Hospitalización | J34: Buena | K34: Buena | L34: Buena | M34: Buena | N34: Buena | O34: Buena | P34: Buena | Q34: Buena
A35: 2197978 | B35: Encuesta General de Satisfacción HOSPITALES | C35: HOSPITAL REGIONAL DR. ALEJANDRO CABRAL | D35: viernes, 1 de diciembre de 2023 4:24:36 p. m. | E35: Tercer Nivel | F35: San Juan | G35: San Juan | H35: Si | I35: Emergencia | J35: Buena | K35: Buena | L35: Buena | M35: Buena | N35: Buena | O35: Buena | P35: Buena | Q35: Buena
A36: 2197979 | B36: Encuesta General de Satisfacción HOSPITALES | C36: HOSPITAL REGIONAL DR. ALEJANDRO CABRAL | D36: viernes, 1 de diciembre de 2023 4:25:09 p. m. | E36: Tercer Nivel | F36: San Juan | G36: San Juan | H36: Si | I36: Emergencia | J36: Buena | K36: Buena | L36: Buena | M36: Buena | N36: Buena | O36: Buena | P36: Buena | Q36: Buena
A37: 2197981 | B37: Encuesta General de Satisfacción HOSPITALES | C37: HOSPITAL REGIONAL DR. ALEJANDRO CABRAL | D37: viernes, 1 de diciembre de 2023 4:25:32 p. m. | E37: Tercer Nivel | F37: San Juan | G37: San Juan | H37: Si | I37: Emergencia | J37: Buena | K37: Buena | L37: Buena | M37: Buena | N37: Buena | O37: Buena | P37: Buena | Q37: Buena
A38: 2198615 | B38: Encuesta General de Satisfacción HOSPITALES | C38: HOSPITAL REGIONAL DR. ALEJANDRO CABRAL | D38: sábado, 2 de diciembre de 2023 10:20:48 p. m. | E38: Tercer Nivel | F38: San Juan | G38: San Juan | H38: Si | I38: Emergencia | J38: Buena | K38: Buena | L38: Regular | M38: Buena | N38: Regular | O38: Buena | P38: Buena | Q38: Buena
A39: 2198616 | B39: Encuesta General de Satisfacción HOSPITALES | C39: HOSPITAL REGIONAL DR. ALEJANDRO CABRAL | D39: sábado, 2 de diciembre de 2023 10:21:21 p. m. | E39: Tercer Nivel | F39: San Juan | G39: San Juan | H39: Si | I39: Emergencia | J39: Buena | K39: Buena | L39: Buena | M39: Buena | N39: Regular | O39: Buena | P39: Buena | Q39: Buena
A40: 2198617 | B40: Encuesta General de Satisfacción HOSPITALES | C40: HOSPITAL REGIONAL DR. ALEJANDRO CABRAL | D40: sábado, 2 de diciembre de 2023 10:22:07 p. m. | E40: Tercer Nivel | F40: San Juan | G40: San Juan | H40: Si | I40: Emergencia | J40: Buena | K40: Muy Buena | L40: Muy Buena | M40: Buena | N40: Buena | O40: Buena | P40: Regular | Q40: Buena
A41: 2198618 | B41: Encuesta General de Satisfacción HOSPITALES | C41: HOSPITAL REGIONAL DR. ALEJANDRO CABRAL | D41: sábado, 2 de diciembre de 2023 10:22:47 p. m. | E41: Tercer Nivel | F41: San Juan | G41: San Juan | H41: Si | I41: Hospitalización | J41: Muy Buena | K41: Buena | L41: Buena | M41: Buena | N41: Regular | O41: Buena | P41: Buena | Q41: Buena
A42: 2198619 | B42: Encuesta General de Satisfacción HOSPITALES | C42: HOSPITAL REGIONAL DR. ALEJANDRO CABRAL | D42: sábado, 2 de diciembre de 2023 10:23:45 p. m. | E42: Tercer Nivel | F42: San Juan | G42: San Juan | H42: Si | I42: Hospitalización | J42: Buena | K42: Buena | L42: Buena | M42: Muy Buena | N42: Regular | O42: Buena | P42: Regular | Q42: Buena
A43: 2198703 | B43: Encuesta General de Satisfacción HOSPITALES | C43: HOSPITAL REGIONAL DR. ALEJANDRO CABRAL | D43: domingo, 3 de diciembre de 2023 10:36:50 p. m. | E43: Tercer Nivel | F43: San Juan | G43: San Juan | H43: Si | I43: Emergencia | J43: Buena | K43: Buena | L43: Muy Buena | M43: Buena | N43: Buena | O43: Muy Buena | P43: Buena | Q43: Buena
A44: 2198705 | B44: Encuesta General de Satisfacción HOSPITALES | C44: HOSPITAL REGIONAL DR. ALEJANDRO CABRAL | D44: domingo, 3 de diciembre de 2023 10:38:07 p. m. | E44: Tercer Nivel | F44: San Juan | G44: San Juan | H44: Si | I44: Emergencia | J44: Buena | K44: Buena | L44: Buena | M44: Muy Buena | N44: Buena | O44: Muy Buena | P44: Buena | Q44: Buena
A45: 2198709 | B45: Encuesta General de Satisfacción HOSPITALES | C45: HOSPITAL REGIONAL DR. ALEJANDRO CABRAL | D45: domingo, 3 de diciembre de 2023 11:05:18 p. m. | E45: Tercer Nivel | F45: San Juan | G45: San Juan | H45: Si | I45: Emergencia | J45: Buena | K45: Regular | L45: Buena | M45: Muy Buena | N45: Buena | O45: Muy Buena | P45: Buena | Q45: Buena
A46: 2198710 | B46: Encuesta General de Satisfacción HOSPITALES | C46: HOSPITAL REGIONAL DR. ALEJANDRO CABRAL | D46: domingo, 3 de diciembre de 2023 11:05:42 p. m. | E46: Tercer Nivel | F46: San Juan | G46: San Juan | H46: Si | I46: Hospitalización | J46: Buena | K46: Buena | L46: Muy Buena | M46: Buena | N46: Buena | O46: Buena | P46: Regular | Q46: Buena
A47: 2200442 | B47: Encuesta General de Satisfacción HOSPITALES | C47: HOSPITAL REGIONAL DR. ALEJANDRO CABRAL | D47: lunes, 4 de diciembre de 2023 4:49:21 p. m. | E47: Tercer Nivel | F47: San Juan | G47: San Juan | H47: Si | I47: Consulta Externa | J47: Buena | K47: Buena | L47: Buena | M47: Buena | N47: Buena | O47: Buena | P47: Buena | Q47: Buena
A48: 2200444 | B48: Encuesta General de Satisfacción HOSPITALES | C48: HOSPITAL REGIONAL DR. ALEJANDRO CABRAL | D48: lunes, 4 de diciembre de 2023 4:49:40 p. m. | E48: Tercer Nivel | F48: San Juan | G48: San Juan | H48: Si | I48: Consulta Externa | J48: Buena | K48: Buena | L48: Buena | M48: Buena | N48: Buena | O48: Buena | P48: Buena | Q48: Buena
A49: 2200446 | B49: Encuesta General de Satisfacción HOSPITALES | C49: HOSPITAL REGIONAL DR. ALEJANDRO CABRAL | D49: lunes, 4 de diciembre de 2023 4:50:00 p. m. | E49: Tercer Nivel | F49: San Juan | G49: San Juan | H49: Si | I49: Consulta Externa | J49: Buena | K49: Buena | L49: Buena | M49: Buena | N49: Buena | O49: Buena | P49: Buena | Q49: Buena
A50: 2200449 | B50: Encuesta General de Satisfacción HOSPITALES | C50: HOSPITAL REGIONAL DR. ALEJANDRO CABRAL | D50: lunes, 4 de diciembre de 2023 4:50:21 p. m. | E50: Tercer Nivel | F50: San Juan | G50: San Juan | H50: Si | I50: Consulta Externa | J50: Buena | K50: Buena | L50: Buena | M50: Buena | N50: Buena | O50: Buena | P50: Buena | Q50: Buena
A51: 2200450 | B51: Encuesta General de Satisfacción HOSPITALES | C51: HOSPITAL REGIONAL DR. ALEJANDRO CABRAL | D51: lunes, 4 de diciembre de 2023 4:50:40 p. m. | E51: Tercer Nivel | F51: San Juan | G51: San Juan | H51: Si | I51: Consulta Externa | J51: Buena | K51: Buena | L51: Buena | M51: Buena | N51: Buena | O51: Buena | P51: Buena | Q51: Buena
A52: 2200451 | B52: Encuesta General de Satisfacción HOSPITALES | C52: HOSPITAL REGIONAL DR. ALEJANDRO CABRAL | D52: lunes, 4 de diciembre de 2023 4:50:56 p. m. | E52: Tercer Nivel | F52: San Juan | G52: San Juan | H52: Si | I52: Consulta Externa | J52: Buena | K52: Buena | L52: Buena | M52: Buena | N52: Buena | O52: Buena | P52: Buena | Q52: Buena
A53: 2200453 | B53: Encuesta General de Satisfacción HOSPITALES | C53: HOSPITAL REGIONAL DR. ALEJANDRO CABRAL | D53: lunes, 4 de diciembre de 2023 4:51:15 p. m. | E53: Tercer Nivel | F53: San Juan | G53: San Juan | H53: Si | I53: Consulta Externa | J53: Buena | K53: Buena | L53: Muy Buena | M53: Buena | N53: Buena | O53: Buena | P53: Buena | Q53: Buena
A54: 2200455 | B54: Encuesta General de Satisfacción HOSPITALES | C54: HOSPITAL REGIONAL DR. ALEJANDRO CABRAL | D54: lunes, 4 de diciembre de 2023 4:51:32 p. m. | E54: Tercer Nivel | F54: San Juan | G54: San Juan | H54: Si | I54: Consulta Externa | J54: Buena | K54: Buena | L54: Buena | M54: Muy Buena | N54: Buena | O54: Buena | P54: Buena | Q54: Buena
A55: 2200456 | B55: Encuesta General de Satisfacción HOSPITALES | C55: HOSPITAL REGIONAL DR. ALEJANDRO CABRAL | D55: lunes, 4 de diciembre de 2023 4:51:45 p. m. | E55: Tercer Nivel | F55: San Juan | G55: San Juan | H55: Si | I55: Laboratorio | J55: Buena | K55: Buena | L55: Buena | M55: Buena | N55: Buena | O55: Buena | P55: Buena | Q55: Buena
A56: 2200457 | B56: Encuesta General de Satisfacción HOSPITALES | C56: HOSPITAL REGIONAL DR. ALEJANDRO CABRAL | D56: lunes, 4 de diciembre de 2023 4:52:02 p. m. | E56: Tercer Nivel | F56: San Juan | G56: San Juan | H56: Si | I56: Laboratorio | J56: Buena | K56: Buena | L56: Buena | M56: Buena | N56: Buena | O56: Buena | P56: Buena | Q56: Buena
A57: 2200459 | B57: Encuesta General de Satisfacción HOSPITALES | C57: HOSPITAL REGIONAL DR. ALEJANDRO CABRAL | D57: lunes, 4 de diciembre de 2023 4:52:18 p. m. | E57: Tercer Nivel | F57: San Juan | G57: San Juan | H57: Si | I57: Laboratorio | J57: Buena | K57: Buena | L57: Buena | M57: Buena | N57: Buena | O57: Buena | P57: Buena | Q57: Buena
A58: 2200462 | B58: Encuesta General de Satisfacción HOSPITALES | C58: HOSPITAL REGIONAL DR. ALEJANDRO CABRAL | D58: lunes, 4 de diciembre de 2023 4:52:57 p. m. | E58: Tercer Nivel | F58: San Juan | G58: San Juan | H58: Si | I58: Laboratorio | J58: Muy Buena | K58: Buena | L58: Buena | M58: Buena | N58: Buena | O58: Buena | P58: Buena | Q58: Buena
A59: 2200464 | B59: Encuesta General de Satisfacción HOSPITALES | C59: HOSPITAL REGIONAL DR. ALEJANDRO CABRAL | D59: lunes, 4 de diciembre de 2023 4:53:13 p. m. | E59: Tercer Nivel | F59: San Juan | G59: San Juan | H59: Si | I59: Laboratorio | J59: Buena | K59: Buena | L59: Buena | M59: Buena | N59: Buena | O59: Buena | P59: Buena | Q59: Buena
A60: 2200466 | B60: Encuesta General de Satisfacción HOSPITALES | C60: HOSPITAL REGIONAL DR. ALEJANDRO CABRAL | D60: lunes, 4 de diciembre de 2023 4:53:33 p. m. | E60: Tercer Nivel | F60: San Juan | G60: San Juan | H60: Si | I60: Laboratorio | J60: Buena | K60: Buena | L60: Buena | M60: Buena | N60: Buena | O60: Muy Buena | P60: Buena | Q60: Buena
A61: 2200468 | B61: Encuesta General de Satisfacción HOSPITALES | C61: HOSPITAL REGIONAL DR. ALEJANDRO CABRAL | D61: lunes, 4 de diciembre de 2023 4:53:47 p. m. | E61: Tercer Nivel | F61: San Juan | G61: San Juan | H61: Si | I61: Laboratorio | J61: Buena | K61: Buena | L61: Buena | M61: Buena | N61: Buena | O61: Buena | P61: Buena | Q61: Buena
A62: 2200470 | B62: Encuesta General de Satisfacción HOSPITALES | C62: HOSPITAL REGIONAL DR. ALEJANDRO CABRAL | D62: lunes, 4 de diciembre de 2023 4:54:12 p. m. | E62: Tercer Nivel | F62: San Juan | G62: San Juan | H62: Si | I62: Laboratorio | J62: Buena | K62: Buena | L62: Buena | M62: Buena | N62: Buena | O62: Buena | P62: Buena | Q62: Buena
A63: 2200474 | B63: Encuesta General de Satisfacción HOSPITALES | C63: HOSPITAL REGIONAL DR. ALEJANDRO CABRAL | D63: lunes, 4 de diciembre de 2023 4:54:55 p. m. | E63: Tercer Nivel | F63: San Juan | G63: San Juan | H63: Si | I63: Imágenes | J63: Buena | K63: Buena | L63: Buena | M63: Buena | N63: Buena | O63: Buena | P63: Buena | Q63: Buena
A64: 2200477 | B64: Encuesta General de Satisfacción HOSPITALES | C64: HOSPITAL REGIONAL DR. ALEJANDRO CABRAL | D64: lunes, 4 de diciembre de 2023 4:55:09 p. m. | E64: Tercer Nivel | F64: San Juan | G64: San Juan | H64: Si | I64: Imágenes | J64: Buena | K64: Buena | L64: Buena | M64: Buena | N64: Buena | O64: Buena | P64: Buena | Q64: Buena
A65: 2200481 | B65: Encuesta General de Satisfacción HOSPITALES | C65: HOSPITAL REGIONAL DR. ALEJANDRO CABRAL | D65: lunes, 4 de diciembre de 2023 4:55:37 p. m. | E65: Tercer Nivel | F65: San Juan | G65: San Juan | H65: Si | I65: Imágenes | J65: Buena | K65: Buena | L65: Buena | M65: Buena | N65: Buena | O65: Buena | P65: Buena | Q65: Buena
A66: 2200490 | B66: Encuesta General de Satisfacción HOSPITALES | C66: HOSPITAL REGIONAL DR. ALEJANDRO CABRAL | D66: lunes, 4 de diciembre de 2023 4:57:02 p. m. | E66: Tercer Nivel | F66: San Juan | G66: San Juan | H66: Si | I66: Hospitalización | J66: Buena | K66: Buena | L66: Buena | M66: Buena | N66: Buena | O66: Buena | P66: Buena | Q66: Buena
A67: 2200493 | B67: Encuesta General de Satisfacción HOSPITALES | C67: HOSPITAL REGIONAL DR. ALEJANDRO CABRAL | D67: lunes, 4 de diciembre de 2023 4:57:19 p. m. | E67: Tercer Nivel | F67: San Juan | G67: San Juan | H67: Si | I67: Hospitalización | J67: Buena | K67: Buena | L67: Buena | M67: Buena | N67: Buena | O67: Buena | P67: Buena | Q67: Buena
A68: 2200495 | B68: Encuesta General de Satisfacción HOSPITALES | C68: HOSPITAL REGIONAL DR. ALEJANDRO CABRAL | D68: lunes, 4 de diciembre de 2023 4:57:35 p. m. | E68: Tercer Nivel | F68: San Juan | G68: San Juan | H68: Si | I68: Emergencia | J68: Buena | K68: Buena | L68: Buena | M68: Buena | N68: Buena | O68: Buena | P68: Buena | Q68: Buena
A69: 2200496 | B69: Encuesta General de Satisfacción HOSPITALES | C69: HOSPITAL REGIONAL DR. ALEJANDRO CABRAL | D69: lunes, 4 de diciembre de 2023 4:57:53 p. m. | E69: Tercer Nivel | F69: San Juan | G69: San Juan | H69: Si | I69: Emergencia | J69: Buena | K69: Buena | L69: Buena | M69: Buena | N69: Buena | O69: Buena | P69: Buena | Q69: Buena
A70: 2200499 | B70: Encuesta General de Satisfacción HOSPITALES | C70: HOSPITAL REGIONAL DR. ALEJANDRO CABRAL | D70: lunes, 4 de diciembre de 2023 4:58:08 p. m. | E70: Tercer Nivel | F70: San Juan | G70: San Juan | H70: Si | I70: Emergencia | J70: Buena | K70: Buena | L70: Buena | M70: Buena | N70: Buena | O70: Buena | P70: Buena | Q70: Buena
A71: 2200502 | B71: Encuesta General de Satisfacción HOSPITALES | C71: HOSPITAL REGIONAL DR. ALEJANDRO CABRAL | D71: lunes, 4 de diciembre de 2023 4:58:27 p. m. | E71: Tercer Nivel | F71: San Juan | G71: San Juan | H71: Si | I71: Emergencia | J71: Buena | K71: Buena | L71: Buena | M71: Buena | N71: Buena | O71: Buena | P71: Buena | Q71: Buena
A72: 2203076 | B72: Encuesta General de Satisfacción HOSPITALES | C72: HOSPITAL REGIONAL DR. ALEJANDRO CABRAL | D72: martes, 5 de diciembre de 2023 5:31:01 p. m. | E72: Tercer Nivel | F72: San Juan | G72: San Juan | H72: Si | I72: Consulta Externa | J72: Buena | K72: Buena | L72: Buena | M72: Buena | N72: Buena | O72: Buena | P72: Buena | Q72: Buena
A73: 2203077 | B73: Encuesta General de Satisfacción HOSPITALES | C73: HOSPITAL REGIONAL DR. ALEJANDRO CABRAL | D73: martes, 5 de diciembre de 2023 5:31:26 p. m. | E73: Tercer Nivel | F73: San Juan | G73: San Juan | H73: Si | I73: Consulta Externa | J73: Buena | K73: Buena | L73: Buena | M73: Buena | N73: Buena | O73: Buena | P73: Buena | Q73: Buena
A74: 2203080 | B74: Encuesta General de Satisfacción HOSPITALES | C74: HOSPITAL REGIONAL DR. ALEJANDRO CABRAL | D74: martes, 5 de diciembre de 2023 5:31:43 p. m. | E74: Tercer Nivel | F74: San Juan | G74: San Juan | H74: Si | I74: Consulta Externa | J74: Buena | K74: Buena | L74: Buena | M74: Buena | N74: Buena | O74: Buena | P74: Buena | Q74: Buena
A75: 2203082 | B75: Encuesta General de Satisfacción HOSPITALES | C75: HOSPITAL REGIONAL DR. ALEJANDRO CABRAL | D75: martes, 5 de diciembre de 2023 5:31:59 p. m. | E75: Tercer Nivel | F75: San Juan | G75: San Juan | H75: Si | I75: Consulta Externa | J75: Buena | K75: Buena | L75: Buena | M75: Muy Buena | N75: Muy Buena | O75: Muy Buena | P75: Buena | Q75: Buena
A76: 2203084 | B76: Encuesta General de Satisfacción HOSPITALES | C76: HOSPITAL REGIONAL DR. ALEJANDRO CABRAL | D76: martes, 5 de diciembre de 2023 5:32:13 p. m. | E76: Tercer Nivel | F76: San Juan | G76: San Juan | H76: Si | I76: Consulta Externa | J76: Buena | K76: Buena | L76: Buena | M76: Buena | N76: Buena | O76: Buena | P76: Buena | Q76: Buena
A77: 2203087 | B77: Encuesta General de Satisfacción HOSPITALES | C77: HOSPITAL REGIONAL DR. ALEJANDRO CABRAL | D77: martes, 5 de diciembre de 2023 5:32:29 p. m. | E77: Tercer Nivel | F77: San Juan | G77: San Juan | H77: Si | I77: Consulta Externa | J77: Buena | K77: Buena | L77: Buena | M77: Buena | N77: Muy Buena | O77: Muy Buena | P77: Muy Buena | Q77: Muy Buena
A78: 2203090 | B78: Encuesta General de Satisfacción HOSPITALES | C78: HOSPITAL REGIONAL DR. ALEJANDRO CABRAL | D78: martes, 5 de diciembre de 2023 5:32:45 p. m. | E78: Tercer Nivel | F78: San Juan | G78: San Juan | H78: Si | I78: Consulta Externa | J78: Muy Buena | K78: Buena | L78: Buena | M78: Buena | N78: Buena | O78: Buena | P78: Regular | Q78: Buena
A79: 2203094 | B79: Encuesta General de Satisfacción HOSPITALES | C79: HOSPITAL REGIONAL DR. ALEJANDRO CABRAL | D79: martes, 5 de diciembre de 2023 5:33:05 p. m. | E79: Tercer Nivel | F79: San Juan | G79: San Juan | H79: Si | I79: Consulta Externa | J79: Buena | K79: Buena | L79: Buena | M79: Buena | N79: Buena | O79: Buena | P79: Buena | Q79: Buena
A80: 2203099 | B80: Encuesta General de Satisfacción HOSPITALES | C80: HOSPITAL REGIONAL DR. ALEJANDRO CABRAL | D80: martes, 5 de diciembre de 2023 5:33:35 p. m. | E80: Tercer Nivel | F80: San Juan | G80: San Juan | H80: Si | I80: Consulta Externa | J80: Buena | K80: Buena | L80: Buena | M80: Buena | N80: Buena | O80: Buena | P80: Buena | Q80: Buena
A81: 2203108 | B81: Encuesta General de Satisfacción HOSPITALES | C81: HOSPITAL REGIONAL DR. ALEJANDRO CABRAL | D81: martes, 5 de diciembre de 2023 5:35:14 p. m. | E81: Tercer Nivel | F81: San Juan | G81: San Juan | H81: Si | I81: Laboratorio | J81: Buena | K81: Buena | L81: Buena | M81: Buena | N81: Buena | O81: Buena | P81: Buena | Q81: Buena
A82: 2203112 | B82: Encuesta General de Satisfacción HOSPITALES | C82: HOSPITAL REGIONAL DR. ALEJANDRO CABRAL | D82: martes, 5 de diciembre de 2023 5:35:49 p. m. | E82: Tercer Nivel | F82: San Juan | G82: San Juan | H82: Si | I82: Laboratorio | J82: Buena | K82: Buena | L82: Buena | M82: Buena | N82: Buena | O82: Buena | P82: Buena | Q82: Buena
A83: 2203114 | B83: Encuesta General de Satisfacción HOSPITALES | C83: HOSPITAL REGIONAL DR. ALEJANDRO CABRAL | D83: martes, 5 de diciembre de 2023 5:36:04 p. m. | E83: Tercer Nivel | F83: San Juan | G83: San Juan | H83: Si | I83: Laboratorio | J83: Muy Buena | K83: Muy Buena | L83: Buena | M83: Buena | N83: Buena | O83: Buena | P83: Buena | Q83: Buena
A84: 2203117 | B84: Encuesta General de Satisfacción HOSPITALES | C84: HOSPITAL REGIONAL DR. ALEJANDRO CABRAL | D84: martes, 5 de diciembre de 2023 5:36:20 p. m. | E84: Tercer Nivel | F84: San Juan | G84: San Juan | H84: Si | I84: Laboratorio | J84: Buena | K84: Buena | L84: Buena | M84: Buena | N84: Buena | O84: Buena | P84: Buena | Q84: Buena
A85: 2203118 | B85: Encuesta General de Satisfacción HOSPITALES | C85: HOSPITAL REGIONAL DR. ALEJANDRO CABRAL | D85: martes, 5 de diciembre de 2023 5:36:35 p. m. | E85: Tercer Nivel | F85: San Juan | G85: San Juan | H85: Si | I85: Laboratorio | J85: Buena | K85: Buena | L85: Buena | M85: Buena | N85: Buena | O85: Buena | P85: Buena | Q85: Buena
A86: 2203127 | B86: Encuesta General de Satisfacción HOSPITALES | C86: HOSPITAL REGIONAL DR. ALEJANDRO CABRAL | D86: martes, 5 de diciembre de 2023 5:38:37 p. m. | E86: Tercer Nivel | F86: San Juan | G86: San Juan | H86: Si | I86: Laboratorio | J86: Buena | K86: Buena | L86: Buena | M86: Buena | N86: Buena | O86: Buena | P86: Buena | Q86: Buena
A87: 2203134 | B87: Encuesta General de Satisfacción HOSPITALES | C87: HOSPITAL REGIONAL DR. ALEJANDRO CABRAL | D87: martes, 5 de diciembre de 2023 5:39:30 p. m. | E87: Tercer Nivel | F87: San Juan | G87: San Juan | H87: Si | I87: Imágenes | J87: Buena | K87: Buena | L87: Buena | M87: Buena | N87: Buena | O87: Buena | P87: Buena | Q87: Buena
A88: 2203138 | B88: Encuesta General de Satisfacción HOSPITALES | C88: HOSPITAL REGIONAL DR. ALEJANDRO CABRAL | D88: martes, 5 de diciembre de 2023 5:39:49 p. m. | E88: Tercer Nivel | F88: San Juan | G88: San Juan | H88: Si | I88: Imágenes | J88: Buena | K88: Buena | L88: Buena | M88: Buena | N88: Buena | O88: Buena | P88: Buena | Q88: Buena
A89: 2203141 | B89: Encuesta General de Satisfacción HOSPITALES | C89: HOSPITAL REGIONAL DR. ALEJANDRO CABRAL | D89: martes, 5 de diciembre de 2023 5:40:06 p. m. | E89: Tercer Nivel | F89: San Juan | G89: San Juan | H89: Si | I89: Hospitalización | J89: Buena | K89: Buena | L89: Buena | M89: Muy Buena | N89: Buena | O89: Buena | P89: Buena | Q89: Buena
A90: 2203145 | B90: Encuesta General de Satisfacción HOSPITALES | C90: HOSPITAL REGIONAL DR. ALEJANDRO CABRAL | D90: martes, 5 de diciembre de 2023 5:40:19 p. m. | E90: Tercer Nivel | F90: San Juan | G90: San Juan | H90: Si | I90: Hospitalización | J90: Buena | K90: Buena | L90: Buena | M90: Buena | N90: Buena | O90: Buena | P90: Buena | Q90: Buena
A91: 2203148 | B91: Encuesta General de Satisfacción HOSPITALES | C91: HOSPITAL REGIONAL DR. ALEJANDRO CABRAL | D91: martes, 5 de diciembre de 2023 5:40:34 p. m. | E91: Tercer Nivel | F91: San Juan | G91: San Juan | H91: Si | I91: Emergencia | J91: Buena | K91: Buena | L91: Buena | M91: Buena | N91: Buena | O91: Buena | P91: Buena | Q91: Buena
A92: 2203151 | B92: Encuesta General de Satisfacción HOSPITALES | C92: HOSPITAL REGIONAL DR. ALEJANDRO CABRAL | D92: martes, 5 de diciembre de 2023 5:40:50 p. m. | E92: Tercer Nivel | F92: San Juan | G92: San Juan | H92: Si | I92: Emergencia | J92: Buena | K92: Buena | L92: Buena | M92: Buena | N92: Buena | O92: Buena | P92: Buena | Q92: Buena
A93: 2203153 | B93: Encuesta General de Satisfacción HOSPITALES | C93: HOSPITAL REGIONAL DR. ALEJANDRO CABRAL | D93: martes, 5 de diciembre de 2023 5:41:09 p. m. | E93: Tercer Nivel | F93: San Juan | G93: San Juan | H93: Si | I93: Emergencia | J93: Buena | K93: Buena | L93: Buena | M93: Buena | N93: Buena | O93: Regular | P93: Buena | Q93: Buena
A94: 2208081 | B94: Encuesta General de Satisfacción HOSPITALES | C94: HOSPITAL REGIONAL DR. ALEJANDRO CABRAL | D94: jueves, 7 de diciembre de 2023 4:36:50 p. m. | E94: Tercer Nivel | F94: San Juan | G94: San Juan | H94: Si | I94: Consulta Externa | J94: Buena | K94: Buena | L94: Buena | M94: Buena | N94: Buena | O94: Buena | P94: Buena | Q94: Buena
A95: 2208134 | B95: Encuesta General de Satisfacción HOSPITALES | C95: HOSPITAL REGIONAL DR. ALEJANDRO CABRAL | D95: jueves, 7 de diciembre de 2023 5:01:00 p. m. | E95: Tercer Nivel | F95: San Juan | G95: San Juan | H95: Si | I95: Consulta Externa | J95: Buena | K95: Buena | L95: Buena | M95: Buena | N95: Buena | O95: Buena | P95: Buena | Q95: Buena
A96: 2208137 | B96: Encuesta General de Satisfacción HOSPITALES | C96: HOSPITAL REGIONAL DR. ALEJANDRO CABRAL | D96: jueves, 7 de diciembre de 2023 5:01:14 p. m. | E96: Tercer Nivel | F96: San Juan | G96: San Juan | H96: Si | I96: Consulta Externa | J96: Buena | K96: Buena | L96: Buena | M96: Buena | N96: Muy Buena | O96: Muy Buena | P96: Buena | Q96: Buena
A97: 2208140 | B97: Encuesta General de Satisfacción HOSPITALES | C97: HOSPITAL REGIONAL DR. ALEJANDRO CABRAL | D97: jueves, 7 de diciembre de 2023 5:01:31 p. m. | E97: Tercer Nivel | F97: San Juan | G97: San Juan | H97: Si | I97: Consulta Externa | J97: Buena | K97: Buena | L97: Buena | M97: Buena | N97: Buena | O97: Buena | P97: Buena | Q97: Buena
A98: 2208143 | B98: Encuesta General de Satisfacción HOSPITALES | C98: HOSPITAL REGIONAL DR. ALEJANDRO CABRAL | D98: jueves, 7 de diciembre de 2023 5:01:55 p. m. | E98: Tercer Nivel | F98: San Juan | G98: San Juan | H98: Si | I98: Consulta Externa | J98: Buena | K98: Buena | L98: Buena | M98: Buena | N98: Buena | O98: Buena | P98: Buena | Q98: Muy Buena
A99: 2208147 | B99: Encuesta General de Satisfacción HOSPITALES | C99: HOSPITAL REGIONAL DR. ALEJANDRO CABRAL | D99: jueves, 7 de diciembre de 2023 5:02:13 p. m. | E99: Tercer Nivel | F99: San Juan | G99: San Juan | H99: Si | I99: Consulta Externa | J99: Buena | K99: Buena | L99: Buena | M99: Buena | N99: Buena | O99: Buena | P99: Buena | Q99: Buena
A100: 2208150 | B100: Encuesta General de Satisfacción HOSPITALES | C100: HOSPITAL REGIONAL DR. ALEJANDRO CABRAL | D100: jueves, 7 de diciembre de 2023 5:02:38 p. m. | E100: Tercer Nivel | F100: San Juan | G100: San Juan | H100: Si | I100: Consulta Externa | J100: Buena | K100: Buena | L100: Buena | M100: Buena | N100: Buena | O100: Buena | P100: Buena | Q100: Buena
A101: 2208152 | B101: Encuesta General de Satisfacción HOSPITALES | C101: HOSPITAL REGIONAL DR. ALEJANDRO CABRAL | D101: jueves, 7 de diciembre de 2023 5:02:54 p. m. | E101: Tercer Nivel | F101: San Juan | G101: San Juan | H101: Si | I101: Laboratorio | J101: Buena | K101: Buena | L101: Muy Buena | M101: Muy Buena | N101: Muy Buena | O101: Muy Buena | P101: Buena | Q101: Buena
A102: 2208154 | B102: Encuesta General de Satisfacción HOSPITALES | C102: HOSPITAL REGIONAL DR. ALEJANDRO CABRAL | D102: jueves, 7 de diciembre de 2023 5:03:13 p. m. | E102: Tercer Nivel | F102: San Juan | G102: San Juan | H102: Si | I102: Laboratorio | J102: Buena | K102: Buena | L102: Buena | M102: Buena | N102: Buena | O102: Buena | P102: Buena | Q102: Buena
A103: 2208157 | B103: Encuesta General de Satisfacción HOSPITALES | C103: HOSPITAL REGIONAL DR. ALEJANDRO CABRAL | D103: jueves, 7 de diciembre de 2023 5:03:33 p. m. | E103: Tercer Nivel | F103: San Juan | G103: San Juan | H103: Si | I103: Laboratorio | J103: Buena | K103: Buena | L103: Buena | M103: Buena | N103: Buena | O103: Buena | P103: Buena | Q103: Buena
A104: 2208160 | B104: Encuesta General de Satisfacción HOSPITALES | C104: HOSPITAL REGIONAL DR. ALEJANDRO CABRAL | D104: jueves, 7 de diciembre de 2023 5:03:56 p. m. | E104: Tercer Nivel | F104: San Juan | G104: San Juan | H104: Si | I104: Laboratorio | J104: Buena | K104: Buena | L104: Buena | M104: Buena | N104: Buena | O104: Buena | P104: Buena | Q104: Buena
A105: 2208163 | B105: Encuesta General de Satisfacción HOSPITALES | C105: HOSPITAL REGIONAL DR. ALEJANDRO CABRAL | D105: jueves, 7 de diciembre de 2023 5:04:20 p. m. | E105: Tercer Nivel | F105: San Juan | G105: San Juan | H105: Si | I105: Laboratorio | J105: Buena | K105: Buena | L105: Buena | M105: Buena | N105: Buena | O105: Buena | P105: Buena | Q105: Buena
A106: 2208167 | B106: Encuesta General de Satisfacción HOSPITALES | C106: HOSPITAL REGIONAL DR. ALEJANDRO CABRAL | D106: jueves, 7 de diciembre de 2023 5:04:39 p. m. | E106: Tercer Nivel | F106: San Juan | G106: San Juan | H106: Si | I106: Laboratorio | J106: Buena | K106: Muy Buena | L106: Buena | M106: Buena | N106: Buena | O106: Buena | P106: Buena | Q106: Buena
A107: 2208168 | B107: Encuesta General de Satisfacción HOSPITALES | C107: HOSPITAL REGIONAL DR. ALEJANDRO CABRAL | D107: jueves, 7 de diciembre de 2023 5:05:02 p. m. | E107: Tercer Nivel | F107: San Juan | G107: San Juan | H107: Si | I107: Laboratorio | J107: Buena | K107: Buena | L107: Buena | M107: Buena | N107: Buena | O107: Buena | P107: Buena | Q107: Buena
A108: 2208169 | B108: Encuesta General de Satisfacción HOSPITALES | C108: HOSPITAL REGIONAL DR. ALEJANDRO CABRAL | D108: jueves, 7 de diciembre de 2023 5:05:28 p. m. | E108: Tercer Nivel | F108: San Juan | G108: San Juan | H108: Si | I108: Laboratorio | J108: Buena | K108: Buena | L108: Buena | M108: Buena | N108: Buena | O108: Buena | P108: Buena | Q108: Buena
A109: 2208171 | B109: Encuesta General de Satisfacción HOSPITALES | C109: HOSPITAL REGIONAL DR. ALEJANDRO CABRAL | D109: jueves, 7 de diciembre de 2023 5:05:46 p. m. | E109: Tercer Nivel | F109: San Juan | G109: San Juan | H109: Si | I109: Imágenes | J109: Buena | K109: Buena | L109: Buena | M109: Buena | N109: Buena | O109: Buena | P109: Buena | Q109: Buena
A110: 2208173 | B110: Encuesta General de Satisfacción HOSPITALES | C110: HOSPITAL REGIONAL DR. ALEJANDRO CABRAL | D110: jueves, 7 de diciembre de 2023 5:06:09 p. m. | E110: Tercer Nivel | F110: San Juan | G110: San Juan | H110: Si | I110: Imágenes | J110: Buena | K110: Buena | L110: Buena | M110: Buena | N110: Buena | O110: Buena | P110: Buena | Q110: Buena
A111: 2208175 | B111: Encuesta General de Satisfacción HOSPITALES | C111: HOSPITAL REGIONAL DR. ALEJANDRO CABRAL | D111: jueves, 7 de diciembre de 2023 5:06:29 p. m. | E111: Tercer Nivel | F111: San Juan | G111: San Juan | H111: Si | I111: Hospitalización | J111: Buena | K111: Buena | L111: Buena | M111: Buena | N111: Buena | O111: Buena | P111: Buena | Q111: Buena
A112: 2208176 | B112: Encuesta General de Satisfacción HOSPITALES | C112: HOSPITAL REGIONAL DR. ALEJANDRO CABRAL | D112: jueves, 7 de diciembre de 2023 5:06:50 p. m. | E112: Tercer Nivel | F112: San Juan | G112: San Juan | H112: Si | I112: Hospitalización | J112: Buena | K112: Buena | L112: Buena | M112: Buena | N112: Buena | O112: Buena | P112: Buena | Q112: Buena
A113: 2208178 | B113: Encuesta General de Satisfacción HOSPITALES | C113: HOSPITAL REGIONAL DR. ALEJANDRO CABRAL | D113: jueves, 7 de diciembre de 2023 5:07:19 p. m. | E113: Tercer Nivel | F113: San Juan | G113: San Juan | H113: Si | I113: Emergencia | J113: Buena | K113: Buena | L113: Buena | M113: Buena | N113: Buena | O113: Buena | P113: Muy Buena | Q113: Buena
A114: 2208180 | B114: Encuesta General de Satisfacción HOSPITALES | C114: HOSPITAL REGIONAL DR. ALEJANDRO CABRAL | D114: jueves, 7 de diciembre de 2023 5:07:33 p. m. | E114: Tercer Nivel | F114: San Juan | G114: San Juan | H114: Si | I114: Emergencia | J114: Buena | K114: Buena | L114: Buena | M114: Buena | N114: Buena | O114: Buena | P114: Buena | Q114: Buena
A115: 2208182 | B115: Encuesta General de Satisfacción HOSPITALES | C115: HOSPITAL REGIONAL DR. ALEJANDRO CABRAL | D115: jueves, 7 de diciembre de 2023 5:07:48 p. m. | E115: Tercer Nivel | F115: San Juan | G115: San Juan | H115: Si | I115: Emergencia | J115: Buena | K115: Buena | L115: Buena | M115: Buena | N115: Buena | O115: Buena | P115: Buena | Q115: Buena
A116: 2210116 | B116: Encuesta General de Satisfacción HOSPITALES | C116: HOSPITAL REGIONAL DR. ALEJANDRO CABRAL | D116: viernes, 8 de diciembre de 2023 5:42:39 p. m. | E116: Tercer Nivel | F116: San Juan | G116: San Juan | H116: Si | I116: Consulta Externa | J116: Buena | K116: Buena | L116: Buena | M116: Buena | N116: Buena | O116: Buena | P116: Buena | Q116: Buena
A117: 2210118 | B117: Encuesta General de Satisfacción HOSPITALES | C117: HOSPITAL REGIONAL DR. ALEJANDRO CABRAL | D117: viernes, 8 de diciembre de 2023 5:42:53 p. m. | E117: Tercer Nivel | F117: San Juan | G117: San Juan | H117: Si | I117: Consulta Externa | J117: Buena | K117: Buena | L117: Buena | M117: Buena | N117: Buena | O117: Buena | P117: Buena | Q117: Buena
A118: 2210119 | B118: Encuesta General de Satisfacción HOSPITALES | C118: HOSPITAL REGIONAL DR. ALEJANDRO CABRAL | D118: viernes, 8 de diciembre de 2023 5:43:10 p. m. | E118: Tercer Nivel | F118: San Juan | G118: San Juan | H118: Si | I118: Consulta Externa | J118: Buena | K118: Buena | L118: Buena | M118: Buena | N118: Buena | O118: Buena | P118: Buena | Q118: Buena
A119: 2210120 | B119: Encuesta General de Satisfacción HOSPITALES | C119: HOSPITAL REGIONAL DR. ALEJANDRO CABRAL | D119: viernes, 8 de diciembre de 2023 5:43:36 p. m. | E119: Tercer Nivel | F119: San Juan | G119: San Juan | H119: Si | I119: Consulta Externa | J119: Muy Buena | K119: Regular | L119: Buena | M119: Buena | N119: Buena | O119: Buena | P119: Buena | Q119: Buena
A120: 2210122 | B120: Encuesta General de Satisfacción HOSPITALES | C120: HOSPITAL REGIONAL DR. ALEJANDRO CABRAL | D120: viernes, 8 de diciembre de 2023 5:43:50 p. m. | E120: Tercer Nivel | F120: San Juan | G120: San Juan | H120: Si | I120: Consulta Externa | J120: Buena | K120: Buena | L120: Buena | M120: Buena | N120: Buena | O120: Buena | P120: Buena | Q120: Buena
A121: 2210124 | B121: Encuesta General de Satisfacción HOSPITALES | C121: HOSPITAL REGIONAL DR. ALEJANDRO CABRAL | D121: viernes, 8 de diciembre de 2023 5:44:02 p. m. | E121: Tercer Nivel | F121: San Juan | G121: San Juan | H121: Si | I121: Consulta Externa | J121: Buena | K121: Buena | L121: Buena | M121: Buena | N121: Buena | O121: Buena | P121: Buena | Q121: Buena
A122: 2210127 | B122: Encuesta General de Satisfacción HOSPITALES | C122: HOSPITAL REGIONAL DR. ALEJANDRO CABRAL | D122: viernes, 8 de diciembre de 2023 5:44:14 p. m. | E122: Tercer Nivel | F122: San Juan | G122: San Juan | H122: Si | I122: Consulta Externa | J122: Buena | K122: Buena | L122: Muy Buena | M122: Buena | N122: Buena | O122: Buena | P122: Buena | Q122: Buena
A123: 2210128 | B123: Encuesta General de Satisfacción HOSPITALES | C123: HOSPITAL REGIONAL DR. ALEJANDRO CABRAL | D123: viernes, 8 de diciembre de 2023 5:44:29 p. m. | E123: Tercer Nivel | F123: San Juan | G123: San Juan | H123: Si | I123: Laboratorio | J123: Buena | K123: Buena | L123: Buena | M123: Buena | N123: Buena | O123: Buena | P123: Buena | Q123: Buena
A124: 2210131 | B124: Encuesta General de Satisfacción HOSPITALES | C124: HOSPITAL REGIONAL DR. ALEJANDRO CABRAL | D124: viernes, 8 de diciembre de 2023 5:44:42 p. m. | E124: Tercer Nivel | F124: San Juan | G124: San Juan | H124: Si | I124: Hospitalización | J124: Buena | K124: Buena | L124: Buena | M124: Buena | N124: Buena | O124: Buena | P124: Buena | Q124: Buena
A125: 2210132 | B125: Encuesta General de Satisfacción HOSPITALES | C125: HOSPITAL REGIONAL DR. ALEJANDRO CABRAL | D125: viernes, 8 de diciembre de 2023 5:45:01 p. m. | E125: Tercer Nivel | F125: San Juan | G125: San Juan | H125: Si | I125: Hospitalización | J125: Buena | K125: Regular | L125: Regular | M125: Regular | N125: Regular | O125: Regular | P125: Regular | Q125: Regular
A126: 2210135 | B126: Encuesta General de Satisfacción HOSPITALES | C126: HOSPITAL REGIONAL DR. ALEJANDRO CABRAL | D126: viernes, 8 de diciembre de 2023 5:45:20 p. m. | E126: Tercer Nivel | F126: San Juan | G126: San Juan | H126: Si | I126: Laboratorio | J126: Buena | K126: Buena | L126: Buena | M126: Buena | N126: Buena | O126: Buena | P126: Buena | Q126: Buena
A127: 2210138 | B127: Encuesta General de Satisfacción HOSPITALES | C127: HOSPITAL REGIONAL DR. ALEJANDRO CABRAL | D127: viernes, 8 de diciembre de 2023 5:45:35 p. m. | E127: Tercer Nivel | F127: San Juan | G127: San Juan | H127: Si | I127: Laboratorio | J127: Buena | K127: Buena | L127: Buena | M127: Buena | N127: Buena | O127: Buena | P127: Buena | Q127: Buena
A128: 2210140 | B128: Encuesta General de Satisfacción HOSPITALES | C128: HOSPITAL REGIONAL DR. ALEJANDRO CABRAL | D128: viernes, 8 de diciembre de 2023 5:45:50 p. m. | E128: Tercer Nivel | F128: San Juan | G128: San Juan | H128: Si | I128: Laboratorio | J128: Buena | K128: Buena | L128: Buena | M128: Buena | N128: Buena | O128: Buena | P128: Buena | Q128: Buena
A129: 2210142 | B129: Encuesta General de Satisfacción HOSPITALES | C129: HOSPITAL REGIONAL DR. ALEJANDRO CABRAL | D129: viernes, 8 de diciembre de 2023 5:46:05 p. m. | E129: Tercer Nivel | F129: San Juan | G129: San Juan | H129: Si | I129: Laboratorio | J129: Buena | K129: Buena | L129: Buena | M129: Buena | N129: Buena | O129: Buena | P129: Buena | Q129: Muy Buena
A130: 2210145 | B130: Encuesta General de Satisfacción HOSPITALES | C130: HOSPITAL REGIONAL DR. ALEJANDRO CABRAL | D130: viernes, 8 de diciembre de 2023 5:46:19 p. m. | E130: Tercer Nivel | F130: San Juan | G130: San Juan | H130: Si | I130: Laboratorio | J130: Buena | K130: Buena | L130: Buena | M130: Buena | N130: Buena | O130: Buena | P130: Buena | Q130: Buena
A131: 2210147 | B131: Encuesta General de Satisfacción HOSPITALES | C131: HOSPITAL REGIONAL DR. ALEJANDRO CABRAL | D131: viernes, 8 de diciembre de 2023 5:46:39 p. m. | E131: Tercer Nivel | F131: San Juan | G131: San Juan | H131: Si | I131: Imágenes | J131: Buena | K131: Regular | L131: Buena | M131: Buena | N131: Buena | O131: Buena | P131: Buena | Q131: Buena
A132: 2210149 | B132: Encuesta General de Satisfacción HOSPITALES | C132: HOSPITAL REGIONAL DR. ALEJANDRO CABRAL | D132: viernes, 8 de diciembre de 2023 5:46:56 p. m. | E132: Tercer Nivel | F132: San Juan | G132: San Juan | H132: Si | I132: Imágenes | J132: Buena | K132: Buena | L132: Buena | M132: Buena | N132: Buena | O132: Buena | P132: Buena | Q132: Buena
A133: 2210152 | B133: Encuesta General de Satisfacción HOSPITALES | C133: HOSPITAL REGIONAL DR. ALEJANDRO CABRAL | D133: viernes, 8 de diciembre de 2023 5:47:10 p. m. | E133: Tercer Nivel | F133: San Juan | G133: San Juan | H133: Si | I133: Emergencia | J133: Buena | K133: Buena | L133: Buena | M133: Buena | N133: Buena | O133: Buena | P133: Buena | Q133: Buena
A134: 2210153 | B134: Encuesta General de Satisfacción HOSPITALES | C134: HOSPITAL REGIONAL DR. ALEJANDRO CABRAL | D134: viernes, 8 de diciembre de 2023 5:47:24 p. m. | E134: Tercer Nivel | F134: San Juan | G134: San Juan | H134: Si | I134: Emergencia | J134: Buena | K134: Regular | L134: Regular | M134: Regular | N134: Regular | O134: Regular | P134: Regular | Q134: Regular
A135: 2210156 | B135: Encuesta General de Satisfacción HOSPITALES | C135: HOSPITAL REGIONAL DR. ALEJANDRO CABRAL | D135: viernes, 8 de diciembre de 2023 5:47:47 p. m. | E135: Tercer Nivel | F135: San Juan | G135: San Juan | H135: Si | I135: Emergencia | J135: Buena | K135: Buena | L135: Buena | M135: Buena | N135: Buena | O135: Buena | P135: Buena | Q135: Buena
A136: 2210582 | B136: Encuesta General de Satisfacción HOSPITALES | C136: HOSPITAL REGIONAL DR. ALEJANDRO CABRAL | D136: sábado, 9 de diciembre de 2023 10:27:06 p. m. | E136: Tercer Nivel | F136: San Juan | G136: San Juan | H136: Si | I136: Emergencia | J136: Buena | K136: Buena | L136: Buena | M136: Buena | N136: Buena | O136: Buena | P136: Buena | Q136: Buena
A137: 2210583 | B137: Encuesta General de Satisfacción HOSPITALES | C137: HOSPITAL REGIONAL DR. ALEJANDRO CABRAL | D137: sábado, 9 de diciembre de 2023 10:27:31 p. m. | E137: Tercer Nivel | F137: San Juan | G137: San Juan | H137: Si | I137: Emergencia | J137: Regular | K137: Buena | L137: Buena | M137: Buena | N137: Buena | O137: Buena | P137: Buena | Q137: Buena
A138: 2210584 | B138: Encuesta General de Satisfacción HOSPITALES | C138: HOSPITAL REGIONAL DR. ALEJANDRO CABRAL | D138: sábado, 9 de diciembre de 2023 10:28:04 p. m. | E138: Tercer Nivel | F138: San Juan | G138: San Juan | H138: Si | I138: Emergencia | J138: Muy Buena | K138: Buena | L138: Muy Buena | M138: Muy Buena | N138: Buena | O138: Buena | P138: Regular | Q138: Muy Buena
A139: 2210585 | B139: Encuesta General de Satisfacción HOSPITALES | C139: HOSPITAL REGIONAL DR. ALEJANDRO CABRAL | D139: sábado, 9 de diciembre de 2023 10:28:28 p. m. | E139: Tercer Nivel | F139: San Juan | G139: San Juan | H139: Si | I139: Hospitalización | J139: Buena | K139: Buena | L139: Muy Buena | M139: Muy Buena | N139: Muy Buena | O139: Buena | P139: Buena | Q139: Buena
A140: 2210586 | B140: Encuesta General de Satisfacción HOSPITALES | C140: HOSPITAL REGIONAL DR. ALEJANDRO CABRAL | D140: sábado, 9 de diciembre de 2023 10:28:56 p. m. | E140: Tercer Nivel | F140: San Juan | G140: San Juan | H140: Si | I140: Hospitalización | J140: Buena | K140: Buena | L140: Buena | M140: Buena | N140: Regular | O140: Buena | P140: Buena | Q140: Muy Buena
A141: 2210620 | B141: Encuesta General de Satisfacción HOSPITALES | C141: HOSPITAL REGIONAL DR. ALEJANDRO CABRAL | D141: domingo, 10 de diciembre de 2023 10:46:44 p. m. | E141: Tercer Nivel | F141: San Juan | G141: San Juan | H141: Si | I141: Emergencia | J141: Buena | K141: Buena | L141: Buena | M141: Buena | N141: Regular | O141: Buena | P141: Buena | Q141: Buena
A142: 2210621 | B142: Encuesta General de Satisfacción HOSPITALES | C142: HOSPITAL REGIONAL DR. ALEJANDRO CABRAL | D142: domingo, 10 de diciembre de 2023 10:47:15 p. m. | E142: Tercer Nivel | F142: San Juan | G142: San Juan | H142: Si | I142: Emergencia | J142: Buena | K142: Muy Buena | L142: Muy Buena | M142: Buena | N142: Regular | O142: Regular | P142: Buena | Q142: Buena
A143: 2210622 | B143: Encuesta General de Satisfacción HOSPITALES | C143: HOSPITAL REGIONAL DR. ALEJANDRO CABRAL | D143: domingo, 10 de diciembre de 2023 10:47:39 p. m. | E143: Tercer Nivel | F143: San Juan | G143: San Juan | H143: Si | I143: Emergencia | J143: Buena | K143: Buena | L143: Buena | M143: Buena | N143: Regular | O143: Regular | P143: Regular | Q143: Regular
A144: 2210623 | B144: Encuesta General de Satisfacción HOSPITALES | C144: HOSPITAL REGIONAL DR. ALEJANDRO CABRAL | D144: domingo, 10 de diciembre de 2023 10:47:59 p. m. | E144: Tercer Nivel | F144: San Juan | G144: San Juan | H144: Si | I144: Hospitalización | J144: Buena | K144: Buena | L144: Buena | M144: Buena | N144: Buena | O144: Buena | P144: Buena | Q144: Buena
A145: 2210624 | B145: Encuesta General de Satisfacción HOSPITALES | C145: HOSPITAL REGIONAL DR. ALEJANDRO CABRAL | D145: domingo, 10 de diciembre de 2023 10:48:24 p. m. | E145: Tercer Nivel | F145: San Juan | G145: San Juan | H145: Si | I145: Hospitalización | J145: Buena | K145: Buena | L145: Muy Buena | M145: Buena | N145: Buena | O145: Buena | P145: Buena | Q145: Buena
A146: 2214967 | B146: Encuesta General de Satisfacción HOSPITALES | C146: HOSPITAL REGIONAL DR. ALEJANDRO CABRAL | D146: martes, 12 de diciembre de 2023 5:06:32 p. m. | E146: Tercer Nivel | F146: San Juan | G146: San Juan | H146: Si | I146: Consulta Externa | J146: Buena | K146: Buena | L146: Buena | M146: Buena | N146: Buena | O146: Buena | P146: Buena | Q146: Buena
A147: 2214968 | B147: Encuesta General de Satisfacción HOSPITALES | C147: HOSPITAL REGIONAL DR. ALEJANDRO CABRAL | D147: martes, 12 de diciembre de 2023 5:06:46 p. m. | E147: Tercer Nivel | F147: San Juan | G147: San Juan | H147: Si | I147: Consulta Externa | J147: Buena | K147: Buena | L147: Buena | M147: Buena | N147: Buena | O147: Buena | P147: Buena | Q147: Buena
A148: 2214969 | B148: Encuesta General de Satisfacción HOSPITALES | C148: HOSPITAL REGIONAL DR. ALEJANDRO CABRAL | D148: martes, 12 de diciembre de 2023 5:07:02 p. m. | E148: Tercer Nivel | F148: San Juan | G148: San Juan | H148: Si | I148: Consulta Externa | J148: Buena | K148: Buena | L148: Buena | M148: Buena | N148: Buena | O148: Buena | P148: Buena | Q148: Buena
A149: 2214970 | B149: Encuesta General de Satisfacción HOSPITALES | C149: HOSPITAL REGIONAL DR. ALEJANDRO CABRAL | D149: martes, 12 de diciembre de 2023 5:07:27 p. m. | E149: Tercer Nivel | F149: San Juan | G149: San Juan | H149: Si | I149: Consulta Externa | J149: Buena | K149: Buena | L149: Buena | M149: Buena | N149: Buena | O149: Buena | P149: Buena | Q149: Buena
A150: 2214971 | B150: Encuesta General de Satisfacción HOSPITALES | C150: HOSPITAL REGIONAL DR. ALEJANDRO CABRAL | D150: martes, 12 de diciembre de 2023 5:07:45 p. m. | E150: Tercer Nivel | F150: San Juan | G150: San Juan | H150: Si | I150: Consulta Externa | J150: Buena | K150: Buena | L150: Buena | M150: Buena | N150: Buena | O150: Buena | P150: Buena | Q150: Buena
A151: 2214972 | B151: Encuesta General de Satisfacción HOSPITALES | C151: HOSPITAL REGIONAL DR. ALEJANDRO CABRAL | D151: martes, 12 de diciembre de 2023 5:08:02 p. m. | E151: Tercer Nivel | F151: San Juan | G151: San Juan | H151: Si | I151: Consulta Externa | J151: Buena | K151: Buena | L151: Buena | M151: Buena | N151: Buena | O151: Buena | P151: Buena | Q151: Buena
A152: 2214973 | B152: Encuesta General de Satisfacción HOSPITALES | C152: HOSPITAL REGIONAL DR. ALEJANDRO CABRAL | D152: martes, 12 de diciembre de 2023 5:08:20 p. m. | E152: Tercer Nivel | F152: San Juan | G152: San Juan | H152: Si | I152: Consulta Externa | J152: Muy Buena | K152: Buena | L152: Buena | M152: Buena | N152: Buena | O152: Buena | P152: Buena | Q152: Buena
A153: 2214974 | B153: Encuesta General de Satisfacción HOSPITALES | C153: HOSPITAL REGIONAL DR. ALEJANDRO CABRAL | D153: martes, 12 de diciembre de 2023 5:08:45 p. m. | E153: Tercer Nivel | F153: San Juan | G153: San Juan | H153: Si | I153: Laboratorio | J153: Buena | K153: Buena | L153: Buena | M153: Buena | N153: Buena | O153: Buena | P153: Buena | Q153: Buena
A154: 2214975 | B154: Encuesta General de Satisfacción HOSPITALES | C154: HOSPITAL REGIONAL DR. ALEJANDRO CABRAL | D154: martes, 12 de diciembre de 2023 5:08:59 p. m. | E154: Tercer Nivel | F154: San Juan | G154: San Juan | H154: Si | I154: Laboratorio | J154: Buena | K154: Muy Buena | L154: Buena | M154: Buena | N154: Buena | O154: Buena | P154: Buena | Q154: Buena
A155: 2214976 | B155: Encuesta General de Satisfacción HOSPITALES | C155: HOSPITAL REGIONAL DR. ALEJANDRO CABRAL | D155: martes, 12 de diciembre de 2023 5:09:12 p. m. | E155: Tercer Nivel | F155: San Juan | G155: San Juan | H155: Si | I155: Laboratorio | J155: Buena | K155: Muy Buena | L155: Buena | M155: Buena | N155: Buena | O155: Buena | P155: Buena | Q155: Buena
A156: 2214977 | B156: Encuesta General de Satisfacción HOSPITALES | C156: HOSPITAL REGIONAL DR. ALEJANDRO CABRAL | D156: martes, 12 de diciembre de 2023 5:09:27 p. m. | E156: Tercer Nivel | F156: San Juan | G156: San Juan | H156: Si | I156: Laboratorio | J156: Buena | K156: Buena | L156: Buena | M156: Buena | N156: Buena | O156: Muy Buena | P156: Buena | Q156: Buena
A157: 2214978 | B157: Encuesta General de Satisfacción HOSPITALES | C157: HOSPITAL REGIONAL DR. ALEJANDRO CABRAL | D157: martes, 12 de diciembre de 2023 5:09:42 p. m. | E157: Tercer Nivel | F157: San Juan | G157: San Juan | H157: Si | I157: Laboratorio | J157: Buena | K157: Buena | L157: Buena | M157: Buena | N157: Buena | O157: Buena | P157: Buena | Q157: Buena
A158: 2214979 | B158: Encuesta General de Satisfacción HOSPITALES | C158: HOSPITAL REGIONAL DR. ALEJANDRO CABRAL | D158: martes, 12 de diciembre de 2023 5:09:57 p. m. | E158: Tercer Nivel | F158: San Juan | G158: San Juan | H158: Si | I158: Laboratorio | J158: Buena | K158: Buena | L158: Buena | M158: Buena | N158: Buena | O158: Buena | P158: Buena | Q158: Buena
A159: 2214980 | B159: Encuesta General de Satisfacción HOSPITALES | C159: HOSPITAL REGIONAL DR. ALEJANDRO CABRAL | D159: martes, 12 de diciembre de 2023 5:10:11 p. m. | E159: Tercer Nivel | F159: San Juan | G159: San Juan | H159: Si | I159: Imágenes | J159: Buena | K159: Buena | L159: Buena | M159: Buena | N159: Buena | O159: Buena | P159: Buena | Q159: Buena
A160: 2214981 | B160: Encuesta General de Satisfacción HOSPITALES | C160: HOSPITAL REGIONAL DR. ALEJANDRO CABRAL | D160: martes, 12 de diciembre de 2023 5:10:27 p. m. | E160: Tercer Nivel | F160: San Juan | G160: San Juan | H160: Si | I160: Imágenes | J160: Buena | K160: Buena | L160: Buena | M160: Buena | N160: Buena | O160: Buena | P160: Buena | Q160: Buena
A161: 2214982 | B161: Encuesta General de Satisfacción HOSPITALES | C161: HOSPITAL REGIONAL DR. ALEJANDRO CABRAL | D161: martes, 12 de diciembre de 2023 5:10:46 p. m. | E161: Tercer Nivel | F161: San Juan | G161: San Juan | H161: Si | I161: Imágenes | J161: Buena | K161: Buena | L161: Buena | M161: Buena | N161: Buena | O161: Buena | P161: Buena | Q161: Buena
A162: 2214983 | B162: Encuesta General de Satisfacción HOSPITALES | C162: HOSPITAL REGIONAL DR. ALEJANDRO CABRAL | D162: martes, 12 de diciembre de 2023 5:11:00 p. m. | E162: Tercer Nivel | F162: San Juan | G162: San Juan | H162: Si | I162: Hospitalización | J162: Buena | K162: Buena | L162: Buena | M162: Buena | N162: Buena | O162: Buena | P162: Buena | Q162: Buena
A163: 2214984 | B163: Encuesta General de Satisfacción HOSPITALES | C163: HOSPITAL REGIONAL DR. ALEJANDRO CABRAL | D163: martes, 12 de diciembre de 2023 5:11:14 p. m. | E163: Tercer Nivel | F163: San Juan | G163: San Juan | H163: Si | I163: Hospitalización | J163: Buena | K163: Buena | L163: Buena | M163: Buena | N163: Regular | O163: Regular | P163: Regular | Q163: Regular
A164: 2214986 | B164: Encuesta General de Satisfacción HOSPITALES | C164: HOSPITAL REGIONAL DR. ALEJANDRO CABRAL | D164: martes, 12 de diciembre de 2023 5:11:39 p. m. | E164: Tercer Nivel | F164: San Juan | G164: San Juan | H164: Si | I164: Emergencia | J164: Buena | K164: Buena | L164: Buena | M164: Buena | N164: Buena | O164: Buena | P164: Buena | Q164: Buena
A165: 2214987 | B165: Encuesta General de Satisfacción HOSPITALES | C165: HOSPITAL REGIONAL DR. ALEJANDRO CABRAL | D165: martes, 12 de diciembre de 2023 5:11:57 p. m. | E165: Tercer Nivel | F165: San Juan | G165: San Juan | H165: Si | I165: Emergencia | J165: Buena | K165: Buena | L165: Buena | M165: Regular | N165: Regular | O165: Regular | P165: Regular | Q165: Regular
A166: 2214988 | B166: Encuesta General de Satisfacción HOSPITALES | C166: HOSPITAL REGIONAL DR. ALEJANDRO CABRAL | D166: martes, 12 de diciembre de 2023 5:12:14 p. m. | E166: Tercer Nivel | F166: San Juan | G166: San Juan | H166: Si | I166: Emergencia | J166: Buena | K166: Buena | L166: Buena | M166: Buena | N166: Buena | O166: Buena | P166: Buena | Q166: Buena
A167: 2223399 | B167: Encuesta General de Satisfacción HOSPITALES | C167: HOSPITAL REGIONAL DR. ALEJANDRO CABRAL | D167: sábado, 16 de diciembre de 2023 4:11:41 p. m. | E167: Tercer Nivel | F167: San Juan | G167: San Juan | H167: Si | I167: Emergencia | J167: Muy Buena | K167: Muy Buena | L167: Buena | M167: Muy Buena | N167: Buena | O167: Buena | P167: Buena | Q167: Buena
A168: 2223400 | B168: Encuesta General de Satisfacción HOSPITALES | C168: HOSPITAL REGIONAL DR. ALEJANDRO CABRAL | D168: sábado, 16 de diciembre de 2023 4:12:26 p. m. | E168: Tercer Nivel | F168: San Juan | G168: San Juan | H168: Si | I168: Emergencia | J168: Buena | K168: Buena | L168: Buena | M168: Buena | N168: Buena | O168: Buena | P168: Buena | Q168: Buena
A169: 2223401 | B169: Encuesta General de Satisfacción HOSPITALES | C169: HOSPITAL REGIONAL DR. ALEJANDRO CABRAL | D169: sábado, 16 de diciembre de 2023 4:15:07 p. m. | E169: Tercer Nivel | F169: San Juan | G169: San Juan | H169: Si | I169: Emergencia | J169: Buena | K169: Buena | L169: Muy Buena | M169: Buena | N169: Buena | O169: Buena | P169: Buena | Q169: Buena
A170: 2223402 | B170: Encuesta General de Satisfacción HOSPITALES | C170: HOSPITAL REGIONAL DR. ALEJANDRO CABRAL | D170: sábado, 16 de diciembre de 2023 4:19:36 p. m. | E170: Tercer Nivel | F170: San Juan | G170: San Juan | H170: Si | I170: Hospitalización | J170: Buena | K170: Muy Buena | L170: Muy Buena | M170: Buena | N170: Regular | O170: Buena | P170: Buena | Q170: Buena
A171: 2223403 | B171: Encuesta General de Satisfacción HOSPITALES | C171: HOSPITAL REGIONAL DR. ALEJANDRO CABRAL | D171: sábado, 16 de diciembre de 2023 4:20:10 p. m. | E171: Tercer Nivel | F171: San Juan | G171: San Juan | H171: Si | I171: Hospitalización | J171: Buena | K171: Buena | L171: Buena | M171: Buena | N171: Buena | O171: Muy Buena | P171: Buena | Q171: Buena
A172: 2223494 | B172: Encuesta General de Satisfacción HOSPITALES | C172: HOSPITAL REGIONAL DR. ALEJANDRO CABRAL | D172: domingo, 17 de diciembre de 2023 8:58:13 p. m. | E172: Tercer Nivel | F172: San Juan | G172: San Juan | H172: Si | I172: Emergencia | J172: Buena | K172: Buena | L172: Buena | M172: Buena | N172: Buena | O172: Muy Buena | P172: Regular | Q172: Buena
A173: 2223495 | B173: Encuesta General de Satisfacción HOSPITALES | C173: HOSPITAL REGIONAL DR. ALEJANDRO CABRAL | D173: domingo, 17 de diciembre de 2023 8:58:52 p. m. | E173: Tercer Nivel | F173: San Juan | G173: San Juan | H173: Si | I173: Emergencia | J173: Buena | K173: Muy Buena | L173: Muy Buena | M173: Buena | N173: Buena | O173: Muy Buena | P173: Buena | Q173: Muy Buena
A174: 2223496 | B174: Encuesta General de Satisfacción HOSPITALES | C174: HOSPITAL REGIONAL DR. ALEJANDRO CABRAL | D174: domingo, 17 de diciembre de 2023 8:59:30 p. m. | E174: Tercer Nivel | F174: San Juan | G174: San Juan | H174: Si | I174: Emergencia | J174: Buena | K174: Buena | L174: Buena | M174: Buena | N174: Buena | O174: Buena | P174: Buena | Q174: Buena
A175: 2223497 | B175: Encuesta General de Satisfacción HOSPITALES | C175: HOSPITAL REGIONAL DR. ALEJANDRO CABRAL | D175: domingo, 17 de diciembre de 2023 9:01:10 p. m. | E175: Tercer Nivel | F175: San Juan | G175: San Juan | H175: Si | I175: Hospitalización | J175: Buena | K175: Buena | L175: Buena | M175: Buena | N175: Regular | O175: Buena | P175: Buena | Q175: Buena
A176: 2223498 | B176: Encuesta General de Satisfacción HOSPITALES | C176: HOSPITAL REGIONAL DR. ALEJANDRO CABRAL | D176: domingo, 17 de diciembre de 2023 9:01:52 p. m. | E176: Tercer Nivel | F176: San Juan | G176: San Juan | H176: Si | I176: Hospitalización | J176: Buena | K176: Buena | L176: Muy Buena | M176: Muy Buena | N176: Buena | O176: Buena | P176: Buena | Q176: Buena
A177: 2227311 | B177: Encuesta General de Satisfacción HOSPITALES | C177: HOSPITAL REGIONAL DR. ALEJANDRO CABRAL | D177: martes, 19 de diciembre de 2023 4:40:28 p. m. | E177: Tercer Nivel | F177: San Juan | G177: San Juan | H177: Si | I177: Consulta Externa | J177: Buena | K177: Buena | L177: Buena | M177: Buena | N177: Buena | O177: Buena | P177: Buena | Q177: Buena
A178: 2227313 | B178: Encuesta General de Satisfacción HOSPITALES | C178: HOSPITAL REGIONAL DR. ALEJANDRO CABRAL | D178: martes, 19 de diciembre de 2023 4:40:42 p. m. | E178: Tercer Nivel | F178: San Juan | G178: San Juan | H178: Si | I178: Consulta Externa | J178: Buena | K178: Regular | L178: Buena | M178: Buena | N178: Buena | O178: Buena | P178: Buena | Q178: Buena
A179: 2227314 | B179: Encuesta General de Satisfacción HOSPITALES | C179: HOSPITAL REGIONAL DR. ALEJANDRO CABRAL | D179: martes, 19 de diciembre de 2023 4:40:59 p. m. | E179: Tercer Nivel | F179: San Juan | G179: San Juan | H179: Si | I179: Consulta Externa | J179: Buena | K179: Buena | L179: Buena | M179: Buena | N179: Buena | O179: Buena | P179: Buena | Q179: Buena
A180: 2227317 | B180: Encuesta General de Satisfacción HOSPITALES | C180: HOSPITAL REGIONAL DR. ALEJANDRO CABRAL | D180: martes, 19 de diciembre de 2023 4:41:15 p. m. | E180: Tercer Nivel | F180: San Juan | G180: San Juan | H180: Si | I180: Consulta Externa | J180: Buena | K180: Buena | L180: Buena | M180: Buena | N180: Buena | O180: Buena | P180: Buena | Q180: Buena
A181: 2227322 | B181: Encuesta General de Satisfacción HOSPITALES | C181: HOSPITAL REGIONAL DR. ALEJANDRO CABRAL | D181: martes, 19 de diciembre de 2023 4:42:00 p. m. | E181: Tercer Nivel | F181: San Juan | G181: San Juan | H181: Si | I181: Consulta Externa | J181: Buena | K181: Buena | L181: Buena | M181: Buena | N181: Buena | O181: Buena | P181: Buena | Q181: Buena
A182: 2227324 | B182: Encuesta General de Satisfacción HOSPITALES | C182: HOSPITAL REGIONAL DR. ALEJANDRO CABRAL | D182: martes, 19 de diciembre de 2023 4:42:25 p. m. | E182: Tercer Nivel | F182: San Juan | G182: San Juan | H182: Si | I182: Consulta Externa | J182: Buena | K182: Buena | L182: Buena | M182: Buena | N182: Buena | O182: Buena | P182: Muy Buena | Q182: Buena
A183: 2227326 | B183: Encuesta General de Satisfacción HOSPITALES | C183: HOSPITAL REGIONAL DR. ALEJANDRO CABRAL | D183: martes, 19 de diciembre de 2023 4:42:51 p. m. | E183: Tercer Nivel | F183: San Juan | G183: San Juan | H183: Si | I183: Consulta Externa | J183: Buena | K183: Buena | L183: Buena | M183: Buena | N183: Buena | O183: Buena | P183: Muy Buena | Q183: Buena
A184: 2227328 | B184: Encuesta General de Satisfacción HOSPITALES | C184: HOSPITAL REGIONAL DR. ALEJANDRO CABRAL | D184: martes, 19 de diciembre de 2023 4:43:06 p. m. | E184: Tercer Nivel | F184: San Juan | G184: San Juan | H184: Si | I184: Consulta Externa | J184: Buena | K184: Buena | L184: Buena | M184: Buena | N184: Buena | O184: Buena | P184: Buena | Q184: Buena
A185: 2227329 | B185: Encuesta General de Satisfacción HOSPITALES | C185: HOSPITAL REGIONAL DR. ALEJANDRO CABRAL | D185: martes, 19 de diciembre de 2023 4:43:26 p. m. | E185: Tercer Nivel | F185: San Juan | G185: San Juan | H185: Si | I185: Consulta Externa | J185: Muy Buena | K185: Buena | L185: Buena | M185: Buena | N185: Buena | O185: Muy Buena | P185: Buena | Q185: Buena
A186: 2227330 | B186: Encuesta General de Satisfacción HOSPITALES | C186: HOSPITAL REGIONAL DR. ALEJANDRO CABRAL | D186: martes, 19 de diciembre de 2023 4:43:43 p. m. | E186: Tercer Nivel | F186: San Juan | G186: San Juan | H186: Si | I186: Consulta Externa | J186: Buena | K186: Buena | L186: Buena | M186: Buena | N186: Buena | O186: Buena | P186: Buena | Q186: Buena
A187: 2227332 | B187: Encuesta General de Satisfacción HOSPITALES | C187: HOSPITAL REGIONAL DR. ALEJANDRO CABRAL | D187: martes, 19 de diciembre de 2023 4:44:05 p. m. | E187: Tercer Nivel | F187: San Juan | G187: San Juan | H187: Si | I187: Consulta Externa | J187: Buena | K187: Regular | L187: Buena | M187: Buena | N187: Buena | O187: Buena | P187: Buena | Q187: Buena
A188: 2227333 | B188: Encuesta General de Satisfacción HOSPITALES | C188: HOSPITAL REGIONAL DR. ALEJANDRO CABRAL | D188: martes, 19 de diciembre de 2023 4:44:24 p. m. | E188: Tercer Nivel | F188: San Juan | G188: San Juan | H188: Si | I188: Consulta Externa | J188: Buena | K188: Buena | L188: Buena | M188: Buena | N188: Buena | O188: Buena | P188: Buena | Q188: Buena
A189: 2227337 | B189: Encuesta General de Satisfacción HOSPITALES | C189: HOSPITAL REGIONAL DR. ALEJANDRO CABRAL | D189: martes, 19 de diciembre de 2023 4:44:52 p. m. | E189: Tercer Nivel | F189: San Juan | G189: San Juan | H189: Si | I189: Consulta Externa | J189: Buena | K189: Buena | L189: Buena | M189: Buena | N189: Buena | O189: Buena | P189: Buena | Q189: Muy Buena
A190: 2227343 | B190: Encuesta General de Satisfacción HOSPITALES | C190: HOSPITAL REGIONAL DR. ALEJANDRO CABRAL | D190: martes, 19 de diciembre de 2023 4:45:40 p. m. | E190: Tercer Nivel | F190: San Juan | G190: San Juan | H190: Si | I190: Consulta Externa | J190: Buena | K190: Buena | L190: Buena | M190: Buena | N190: Regular | O190: Buena | P190: Buena | Q190: Buena
A191: 2227346 | B191: Encuesta General de Satisfacción HOSPITALES | C191: HOSPITAL REGIONAL DR. ALEJANDRO CABRAL | D191: martes, 19 de diciembre de 2023 4:45:58 p. m. | E191: Tercer Nivel | F191: San Juan | G191: San Juan | H191: Si | I191: Laboratorio | J191: Buena | K191: Buena | L191: Buena | M191: Buena | N191: Buena | O191: Buena | P191: Buena | Q191: Buena
A192: 2227351 | B192: Encuesta General de Satisfacción HOSPITALES | C192: HOSPITAL REGIONAL DR. ALEJANDRO CABRAL | D192: martes, 19 de diciembre de 2023 4:46:17 p. m. | E192: Tercer Nivel | F192: San Juan | G192: San Juan | H192: Si | I192: Laboratorio | J192: Buena | K192: Buena | L192: Buena | M192: Buena | N192: Buena | O192: Buena | P192: Buena | Q192: Buena
A193: 2227357 | B193: Encuesta General de Satisfacción HOSPITALES | C193: HOSPITAL REGIONAL DR. ALEJANDRO CABRAL | D193: martes, 19 de diciembre de 2023 4:46:48 p. m. | E193: Tercer Nivel | F193: San Juan | G193: San Juan | H193: Si | I193: Laboratorio | J193: Buena | K193: Buena | L193: Muy Buena | M193: Buena | N193: Buena | O193: Buena | P193: Buena | Q193: Buena
A194: 2227364 | B194: Encuesta General de Satisfacción HOSPITALES | C194: HOSPITAL REGIONAL DR. ALEJANDRO CABRAL | D194: martes, 19 de diciembre de 2023 4:47:28 p. m. | E194: Tercer Nivel | F194: San Juan | G194: San Juan | H194: Si | I194: Laboratorio | J194: Buena | K194: Buena | L194: Buena | M194: Buena | N194: Buena | O194: Buena | P194: Buena | Q194: Buena
A195: 2227365 | B195: Encuesta General de Satisfacción HOSPITALES | C195: HOSPITAL REGIONAL DR. ALEJANDRO CABRAL | D195: martes, 19 de diciembre de 2023 4:47:52 p. m. | E195: Tercer Nivel | F195: San Juan | G195: San Juan | H195: Si | I195: Laboratorio | J195: Buena | K195: Buena | L195: Buena | M195: Buena | N195: Buena | O195: Buena | P195: Buena | Q195: Buena
A196: 2227366 | B196: Encuesta General de Satisfacción HOSPITALES | C196: HOSPITAL REGIONAL DR. ALEJANDRO CABRAL | D196: martes, 19 de diciembre de 2023 4:48:10 p. m. | E196: Tercer Nivel | F196: San Juan | G196: San Juan | H196: Si | I196: Laboratorio | J196: Buena | K196: Buena | L196: Muy Buena | M196: Muy Buena | N196: Muy Buena | O196: Muy Buena | P196: Muy Buena | Q196: Muy Buena
A197: 2227367 | B197: Encuesta General de Satisfacción HOSPITALES | C197: HOSPITAL REGIONAL DR. ALEJANDRO CABRAL | D197: martes, 19 de diciembre de 2023 4:48:29 p. m. | E197: Tercer Nivel | F197: San Juan | G197: San Juan | H197: Si | I197: Laboratorio | J197: Buena | K197: Muy Buena | L197: Muy Buena | M197: Muy Buena | N197: Muy Buena | O197: Muy Buena | P197: Muy Buena | Q197: Muy Buena
A198: 2227368 | B198: Encuesta General de Satisfacción HOSPITALES | C198: HOSPITAL REGIONAL DR. ALEJANDRO CABRAL | D198: martes, 19 de diciembre de 2023 4:48:52 p. m. | E198: Tercer Nivel | F198: San Juan | G198: San Juan | H198: Si | I198: Laboratorio | J198: Muy Buena | K198: Muy Buena | L198: Muy Buena | M198: Muy Buena | N198: Muy Buena | O198: Muy Buena | P198: Buena | Q198: Muy Buena
A199: 2227369 | B199: Encuesta General de Satisfacción HOSPITALES | C199: HOSPITAL REGIONAL DR. ALEJANDRO CABRAL | D199: martes, 19 de diciembre de 2023 4:49:17 p. m. | E199: Tercer Nivel | F199: San Juan | G199: San Juan | H199: Si | I199: Laboratorio | J199: Buena | K199: Buena | L199: Buena | M199: Buena | N199: Buena | O199: Buena | P199: Buena | Q199: Buena
A200: 2227370 | B200: Encuesta General de Satisfacción HOSPITALES | C200: HOSPITAL REGIONAL DR. ALEJANDRO CABRAL | D200: martes, 19 de diciembre de 2023 4:49:39 p. m. | E200: Tercer Nivel | F200: San Juan | G200: San Juan | H200: Si | I200: Imágenes | J200: Buena | K200: Buena | L200: Buena | M200: Buena | N200: Buena | O200: Buena | P200: Buena | Q200: Buena
A201: 2227376 | B201: Encuesta General de Satisfacción HOSPITALES | C201: HOSPITAL REGIONAL DR. ALEJANDRO CABRAL | D201: martes, 19 de diciembre de 2023 4:51:51 p. m. | E201: Tercer Nivel | F201: San Juan | G201: San Juan | H201: Si | I201: Imágenes | J201: Regular | K201: Muy Buena | L201: Buena | M201: Buena | N201: Buena | O201: Buena | P201: Buena | Q201: Buena
A202: 2227430 | B202: Encuesta General de Satisfacción HOSPITALES | C202: HOSPITAL REGIONAL DR. ALEJANDRO CABRAL | D202: martes, 19 de diciembre de 2023 5:07:40 p. m. | E202: Tercer Nivel | F202: San Juan | G202: San Juan | H202: Si | I202: Imágenes | J202: Buena | K202: Buena | L202: Buena | M202: Buena | N202: Buena | O202: Buena | P202: Buena | Q202: Buena
... 112 more rows

Sheet Enero
A2: Hospital: | B2: HOSPITAL REGIONAL DR. ALEJANDRO CABRAL | G2: Muy Mala | H2: Mala | I2: Regular | J2: Buena | K2: Muy Buena | L2: Total | M2: B + MB | N2: %
A3: Servicio: | B3: Consulta Externa | D3: Atributo: | E3: Amabilidad | G3: =COUNTIFS($C$14:$C$20006,$B$2,$I$14:$I$20006,$B$3,$J$14:$J$20006,G2) -> 0 | H3: =COUNTIFS($C$14:$C$20006,$B$2,$I$14:$I$20006,$B$3,$J$14:$J$20006,H2) -> 0 | I3: =COUNTIFS($C$14:$C$20006,$B$2,$I$14:$I$20006,$B$3,$J$14:$J$20006,I2) -> 0 | J3: =COUNTIFS($C$14:$C$20006,$B$2,$I$14:$I$20006,$B$3,$J$14:$J$20006,J2) -> 0 | K3: =COUNTIFS($C$14:$C$20006,$B$2,$I$14:$I$20006,$B$3,$J$14:$J$20006,K2) -> 0 | L3: =+SUM(G3:K3) -> 0 | M3: =+J3+K3 -> 0 | N3: =+IF(L3=0,0,M3/L3) -> 0
D4: Atributo: | E4: Profesionalidad | G4: =COUNTIFS($C$14:$C$20006,$B$2,$I$14:$I$20006,$B$3,$K$14:$K$20006,G2) -> 0 | H4: =COUNTIFS($C$14:$C$20006,$B$2,$I$14:$I$20006,$B$3,$K$14:$K$20006,H2) -> 0 | I4: =COUNTIFS($C$14:$C$20006,$B$2,$I$14:$I$20006,$B$3,$K$14:$K$20006,I2) -> 0 | J4: =COUNTIFS($C$14:$C$20006,$B$2,$I$14:$I$20006,$B$3,$K$14:$K$20006,J2) -> 0 | K4: =COUNTIFS($C$14:$C$20006,$B$2,$I$14:$I$20006,$B$3,$K$14:$K$20006,K2) -> 0 | L4: =+SUM(G4:K4) -> 0 | M4: 0 | N4: 0
A5: Servicio: | B5: Hospitalización | D5: Atributo: | E5: Amabilidad | G5: =COUNTIFS($C$14:$C$20006,$B$2,$I$14:$I$20006,$B$5,$J$14:$J$20006,G2) -> 0 | H5: =COUNTIFS($C$14:$C$20006,$B$2,$I$14:$I$20006,$B$5,$J$14:$J$20006,H2) -> 0 | I5: =COUNTIFS($C$14:$C$20006,$B$2,$I$14:$I$20006,$B$5,$J$14:$J$20006,I2) -> 0 | J5: =COUNTIFS($C$14:$C$20006,$B$2,$I$14:$I$20006,$B$5,$J$14:$J$20006,J2) -> 0 | K5: =COUNTIFS($C$14:$C$20006,$B$2,$I$14:$I$20006,$B$5,$J$14:$J$20006,K2) -> 0 | L5: 0 | M5: 0 | N5: 0
D6: Atributo: | E6: Profesionalidad | G6: =COUNTIFS($C$14:$C$20006,$B$2,$I$14:$I$20006,$B$5,$K$14:$K$20006,G2) -> 0 | H6: =COUNTIFS($C$14:$C$20006,$B$2,$I$14:$I$20006,$B$5,$K$14:$K$20006,H2) -> 0 | I6: =COUNTIFS($C$14:$C$20006,$B$2,$I$14:$I$20006,$B$5,$K$14:$K$20006,I2) -> 0 | J6: =COUNTIFS($C$14:$C$20006,$B$2,$I$14:$I$20006,$B$5,$K$14:$K$20006,J2) -> 0 | K6: =COUNTIFS($C$14:$C$20006,$B$2,$I$14:$I$20006,$B$5,$K$14:$K$20006,K2) -> 0 | L6: 0 | M6: 0 | N6: 0
A7: Servicio: | B7: Laboratorio | D7: Atributo: | E7: Amabilidad | G7: =COUNTIFS($C$14:$C$20006,$B$2,$I$14:$I$20006,$B$7,$J$14:$J$20006,G2) -> 0 | H7: =COUNTIFS($C$14:$C$20006,$B$2,$I$14:$I$20006,$B$7,$J$14:$J$20006,H2) -> 0 | I7: =COUNTIFS($C$14:$C$20006,$B$2,$I$14:$I$20006,$B$7,$J$14:$J$20006,I2) -> 0 | J7: =COUNTIFS($C$14:$C$20006,$B$2,$I$14:$I$20006,$B$7,$J$14:$J$20006,J2) -> 0 | K7: =COUNTIFS($C$14:$C$20006,$B$2,$I$14:$I$20006,$B$7,$J$14:$J$20006,K2) -> 0 | L7: 0 | M7: 0 | N7: 0
D8: Atributo: | E8: Profesionalidad | G8: =COUNTIFS($C$14:$C$20006,$B$2,$I$14:$I$20006,$B$7,$K$14:$K$20006,G2) -> 0 | H8: =COUNTIFS($C$14:$C$20006,$B$2,$I$14:$I$20006,$B$7,$K$14:$K$20006,H2) -> 0 | I8: =COUNTIFS($C$14:$C$20006,$B$2,$I$14:$I$20006,$B$7,$K$14:$K$20006,I2) -> 0 | J8: =COUNTIFS($C$14:$C$20006,$B$2,$I$14:$I$20006,$B$7,$K$14:$K$20006,J2) -> 0 | K8: =COUNTIFS($C$14:$C$20006,$B$2,$I$14:$I$20006,$B$7,$K$14:$K$20006,K2) -> 0 | L8: 0 | M8: 0 | N8: 0
A9: Servicio: | B9: Imágenes | D9: Atributo: | E9: Amabilidad | G9: =COUNTIFS($C$14:$C$20006,$B$2,$I$14:$I$20006,$B$9,$J$14:$J$20006,G2) -> 0 | H9: =COUNTIFS($C$14:$C$20006,$B$2,$I$14:$I$20006,$B$9,$J$14:$J$20006,H2) -> 0 | I9: =COUNTIFS($C$14:$C$20006,$B$2,$I$14:$I$20006,$B$9,$J$14:$J$20006,I2) -> 0 | J9: =COUNTIFS($C$14:$C$20006,$B$2,$I$14:$I$20006,$B$9,$J$14:$J$20006,J2) -> 0 | K9: =COUNTIFS($C$14:$C$20006,$B$2,$I$14:$I$20006,$B$9,$J$14:$J$20006,K2) -> 0 | L9: 0 | M9: 0 | N9: 0
D10: Atributo: | E10: Profesionalidad | G10: =COUNTIFS($C$14:$C$20006,$B$2,$I$14:$I$20006,$B$9,$K$14:$K$20006,G2) -> 0 | H10: =COUNTIFS($C$14:$C$20006,$B$2,$I$14:$I$20006,$B$9,$K$14:$K$20006,H2) -> 0 | I10: =COUNTIFS($C$14:$C$20006,$B$2,$I$14:$I$20006,$B$9,$K$14:$K$20006,I2) -> 0 | J10: =COUNTIFS($C$14:$C$20006,$B$2,$I$14:$I$20006,$B$9,$K$14:$K$20006,J2) -> 0 | K10: =COUNTIFS($C$14:$C$20006,$B$2,$I$14:$I$20006,$B$9,$K$14:$K$20006,K2) -> 0 | L10: 0 | M10: 0 | N10: 0
J12: Amabilidad | K12: Profesionalidad
A13: Código | B13: Formulario | C13: Establecimiento | D13: Fecha | E13: Nivel de Atención | F13: Municipio | G13: Provincia | H13: ¿Recomendaría a otra persona atenderse en este establecimiento de salud? | I13: Seleccione el servicio recibido | J13: ¿Cómo califica la amabilidad del personal que le atendió? | K13: ¿Cómo considera la profesionalidad del personal que le atendió? | L13: ¿Cómo considera la facilidad y rapidez del servicio brindado? | M13: ¿Cómo percibe el manejo de las informaciones del personal que le atendió? | N13: ¿Cómo considera el acceso a los servicios solicitados? | O13: ¿Cómo considera el tiempo para recibir los resultados de los estudios realizados? | P13: ¿Cómo considera la higiene y comodidad del espacio físico? | Q13: En general, ¿Cómo considera la calidad del servicio recibido?

Sheet Febrero
A2: Hospital: | B2: HOSPITAL REGIONAL DR. ALEJANDRO CABRAL | G2: Muy Mala | H2: Mala | I2: Regular | J2: Buena | K2: Muy Buena | L2: Total | M2: B + MB | N2: %
A3: Servicio: | B3: Consulta Externa | D3: Atributo: | E3: Amabilidad | G3: =COUNTIFS($C$14:$C$20006,$B$2,$I$14:$I$20006,$B$3,$J$14:$J$20006,G2) -> 0 | H3: =COUNTIFS($C$14:$C$20006,$B$2,$I$14:$I$20006,$B$3,$J$14:$J$20006,H2) -> 0 | I3: =COUNTIFS($C$14:$C$20006,$B$2,$I$14:$I$20006,$B$3,$J$14:$J$20006,I2) -> 0 | J3: =COUNTIFS($C$14:$C$20006,$B$2,$I$14:$I$20006,$B$3,$J$14:$J$20006,J2) -> 0 | K3: =COUNTIFS($C$14:$C$20006,$B$2,$I$14:$I$20006,$B$3,$J$14:$J$20006,K2) -> 0 | L3: =+SUM(G3:K3) -> 0 | M3: =+J3+K3 -> 0 | N3: =+IF(L3=0,0,M3/L3) -> 0
D4: Atributo: | E4: Profesionalidad | G4: =COUNTIFS($C$14:$C$20006,$B$2,$I$14:$I$20006,$B$3,$K$14:$K$20006,G2) -> 0 | H4: =COUNTIFS($C$14:$C$20006,$B$2,$I$14:$I$20006,$B$3,$K$14:$K$20006,H2) -> 0 | I4: =COUNTIFS($C$14:$C$20006,$B$2,$I$14:$I$20006,$B$3,$K$14:$K$20006,I2) -> 0 | J4: =COUNTIFS($C$14:$C$20006,$B$2,$I$14:$I$20006,$B$3,$K$14:$K$20006,J2) -> 0 | K4: =COUNTIFS($C$14:$C$20006,$B$2,$I$14:$I$20006,$B$3,$K$14:$K$20006,K2) -> 0 | L4: =+SUM(G4:K4) -> 0 | M4: 0 | N4: 0
A5: Servicio: | B5: Hospitalización | D5: Atributo: | E5: Amabilidad | G5: =COUNTIFS($C$14:$C$20006,$B$2,$I$14:$I$20006,$B$5,$J$14:$J$20006,G2) -> 0 | H5: =COUNTIFS($C$14:$C$20006,$B$2,$I$14:$I$20006,$B$5,$J$14:$J$20006,H2) -> 0 | I5: =COUNTIFS($C$14:$C$20006,$B$2,$I$14:$I$20006,$B$5,$J$14:$J$20006,I2) -> 0 | J5: =COUNTIFS($C$14:$C$20006,$B$2,$I$14:$I$20006,$B$5,$J$14:$J$20006,J2) -> 0 | K5: =COUNTIFS($C$14:$C$20006,$B$2,$I$14:$I$20006,$B$5,$J$14:$J$20006,K2) -> 0 | L5: 0 | M5: 0 | N5: 0
D6: Atributo: | E6: Profesionalidad | G6: =COUNTIFS($C$14:$C$20006,$B$2,$I$14:$I$20006,$B$5,$K$14:$K$20006,G2) -> 0 | H6: =COUNTIFS($C$14:$C$20006,$B$2,$I$14:$I$20006,$B$5,$K$14:$K$20006,H2) -> 0 | I6: =COUNTIFS($C$14:$C$20006,$B$2,$I$14:$I$20006,$B$5,$K$14:$K$20006,I2) -> 0 | J6: =COUNTIFS($C$14:$C$20006,$B$2,$I$14:$I$20006,$B$5,$K$14:$K$20006,J2) -> 0 | K6: =COUNTIFS($C$14:$C$20006,$B$2,$I$14:$I$20006,$B$5,$K$14:$K$20006,K2) -> 0 | L6: 0 | M6: 0 | N6: 0
A7: Servicio: | B7: Laboratorio | D7: Atributo: | E7: Amabilidad | G7: =COUNTIFS($C$14:$C$20006,$B$2,$I$14:$I$20006,$B$7,$J$14:$J$20006,G2) -> 0 | H7: =COUNTIFS($C$14:$C$20006,$B$2,$I$14:$I$20006,$B$7,$J$14:$J$20006,H2) -> 0 | I7: =COUNTIFS($C$14:$C$20006,$B$2,$I$14:$I$20006,$B$7,$J$14:$J$20006,I2) -> 0 | J7: =COUNTIFS($C$14:$C$20006,$B$2,$I$14:$I$20006,$B$7,$J$14:$J$20006,J2) -> 0 | K7: =COUNTIFS($C$14:$C$20006,$B$2,$I$14:$I$20006,$B$7,$J$14:$J$20006,K2) -> 0 | L7: 0 | M7: 0 | N7: 0
D8: Atributo: | E8: Profesionalidad | G8: =COUNTIFS($C$14:$C$20006,$B$2,$I$14:$I$20006,$B$7,$K$14:$K$20006,G2) -> 0 | H8: =COUNTIFS($C$14:$C$20006,$B$2,$I$14:$I$20006,$B$7,$K$14:$K$20006,H2) -> 0 | I8: =COUNTIFS($C$14:$C$20006,$B$2,$I$14:$I$20006,$B$7,$K$14:$K$20006,I2) -> 0 | J8: =COUNTIFS($C$14:$C$20006,$B$2,$I$14:$I$20006,$B$7,$K$14:$K$20006,J2) -> 0 | K8: =COUNTIFS($C$14:$C$20006,$B$2,$I$14:$I$20006,$B$7,$K$14:$K$20006,K2) -> 0 | L8: 0 | M8: 0 | N8: 0
A9: Servicio: | B9: Imágenes | D9: Atributo: | E9: Amabilidad | G9: =COUNTIFS($C$14:$C$20006,$B$2,$I$14:$I$20006,$B$9,$J$14:$J$20006,G2) -> 0 | H9: =COUNTIFS($C$14:$C$20006,$B$2,$I$14:$I$20006,$B$9,$J$14:$J$20006,H2) -> 0 | I9: =COUNTIFS($C$14:$C$20006,$B$2,$I$14:$I$20006,$B$9,$J$14:$J$20006,I2) -> 0 | J9: =COUNTIFS($C$14:$C$20006,$B$2,$I$14:$I$20006,$B$9,$J$14:$J$20006,J2) -> 0 | K9: =COUNTIFS($C$14:$C$20006,$B$2,$I$14:$I$20006,$B$9,$J$14:$J$20006,K2) -> 0 | L9: 0 | M9: 0 | N9: 0
D10: Atributo: | E10: Profesionalidad | G10: =COUNTIFS($C$14:$C$20006,$B$2,$I$14:$I$20006,$B$9,$K$14:$K$20006,G2) -> 0 | H10: =COUNTIFS($C$14:$C$20006,$B$2,$I$14:$I$20006,$B$9,$K$14:$K$20006,H2) -> 0 | I10: =COUNTIFS($C$14:$C$20006,$B$2,$I$14:$I$20006,$B$9,$K$14:$K$20006,I2) -> 0 | J10: =COUNTIFS($C$14:$C$20006,$B$2,$I$14:$I$20006,$B$9,$K$14:$K$20006,J2) -> 0 | K10: =COUNTIFS($C$14:$C$20006,$B$2,$I$14:$I$20006,$B$9,$K$14:$K$20006,K2) -> 0 | L10: 0 | M10: 0 | N10: 0
J12: Amabilidad | K12: Profesionalidad
A13: Código | B13: Formulario | C13: Establecimiento | D13: Fecha | E13: Nivel de Atención | F13: Municipio | G13: Provincia | H13: ¿Recomendaría a otra persona atenderse en este establecimiento de salud? | I13: Seleccione el servicio recibido | J13: ¿Cómo califica la amabilidad del personal que le atendió? | K13: ¿Cómo considera la profesionalidad del personal que le atendió? | L13: ¿Cómo considera la facilidad y rapidez del servicio brindado? | M13: ¿Cómo percibe el manejo de las informaciones del personal que le atendió? | N13: ¿Cómo considera el acceso a los servicios solicitados? | O13: ¿Cómo considera el tiempo para recibir los resultados de los estudios realizados? | P13: ¿Cómo considera la higiene y comodidad del espacio físico? | Q13: En general, ¿Cómo considera la calidad del servicio recibido?

Sheet Marzo
A2: Hospital: | B2: HOSPITAL REGIONAL DR. ALEJANDRO CABRAL | G2: Muy Mala | H2: Mala | I2: Regular | J2: Buena | K2: Muy Buena | L2: Total | M2: B + MB | N2: %
A3: Servicio: | B3: Consulta Externa | D3: Atributo: | E3: Amabilidad | G3: =COUNTIFS($C$14:$C$20006,$B$2,$I$14:$I$20006,$B$3,$J$14:$J$20006,G2) -> 0 | H3: =COUNTIFS($C$14:$C$20006,$B$2,$I$14:$I$20006,$B$3,$J$14:$J$20006,H2) -> 0 | I3: =COUNTIFS($C$14:$C$20006,$B$2,$I$14:$I$20006,$B$3,$J$14:$J$20006,I2) -> 0 | J3: =COUNTIFS($C$14:$C$20006,$B$2,$I$14:$I$20006,$B$3,$J$14:$J$20006,J2) -> 0 | K3: =COUNTIFS($C$14:$C$20006,$B$2,$I$14:$I$20006,$B$3,$J$14:$J$20006,K2) -> 0 | L3: =+SUM(G3:K3) -> 0 | M3: =+J3+K3 -> 0 | N3: =+IF(L3=0,0,M3/L3) -> 0
D4: Atributo: | E4: Profesionalidad | G4: =COUNTIFS($C$14:$C$20006,$B$2,$I$14:$I$20006,$B$3,$K$14:$K$20006,G2) -> 0 | H4: =COUNTIFS($C$14:$C$20006,$B$2,$I$14:$I$20006,$B$3,$K$14:$K$20006,H2) -> 0 | I4: =COUNTIFS($C$14:$C$20006,$B$2,$I$14:$I$20006,$B$3,$K$14:$K$20006,I2) -> 0 | J4: =COUNTIFS($C$14:$C$20006,$B$2,$I$14:$I$20006,$B$3,$K$14:$K$20006,J2) -> 0 | K4: =COUNTIFS($C$14:$C$20006,$B$2,$I$14:$I$20006,$B$3,$K$14:$K$20006,K2) -> 0 | L4: =+SUM(G4:K4) -> 0 | M4: 0 | N4: 0
A5: Servicio: | B5: Hospitalización | D5: Atributo: | E5: Amabilidad | G5: =COUNTIFS($C$14:$C$20006,$B$2,$I$14:$I$20006,$B$5,$J$14:$J$20006,G2) -> 0 | H5: =COUNTIFS($C$14:$C$20006,$B$2,$I$14:$I$20006,$B$5,$J$14:$J$20006,H2) -> 0 | I5: =COUNTIFS($C$14:$C$20006,$B$2,$I$14:$I$20006,$B$5,$J$14:$J$20006,I2) -> 0 | J5: =COUNTIFS($C$14:$C$20006,$B$2,$I$14:$I$20006,$B$5,$J$14:$J$20006,J2) -> 0 | K5: =COUNTIFS($C$14:$C$20006,$B$2,$I$14:$I$20006,$B$5,$J$14:$J$20006,K2) -> 0 | L5: 0 | M5: 0 | N5: 0
D6: Atributo: | E6: Profesionalidad | G6: =COUNTIFS($C$14:$C$20006,$B$2,$I$14:$I$20006,$B$5,$K$14:$K$20006,G2) -> 0 | H6: =COUNTIFS($C$14:$C$20006,$B$2,$I$14:$I$20006,$B$5,$K$14:$K$20006,H2) -> 0 | I6: =COUNTIFS($C$14:$C$20006,$B$2,$I$14:$I$20006,$B$5,$K$14:$K$20006,I2) -> 0 | J6: =COUNTIFS($C$14:$C$20006,$B$2,$I$14:$I$20006,$B$5,$K$14:$K$20006,J2) -> 0 | K6: =COUNTIFS($C$14:$C$20006,$B$2,$I$14:$I$20006,$B$5,$K$14:$K$20006,K2) -> 0 | L6: 0 | M6: 0 | N6: 0
A7: Servicio: | B7: Laboratorio | D7: Atributo: | E7: Amabilidad | G7: =COUNTIFS($C$14:$C$20006,$B$2,$I$14:$I$20006,$B$7,$J$14:$J$20006,G2) -> 0 | H7: =COUNTIFS($C$14:$C$20006,$B$2,$I$14:$I$20006,$B$7,$J$14:$J$20006,H2) -> 0 | I7: =COUNTIFS($C$14:$C$20006,$B$2,$I$14:$I$20006,$B$7,$J$14:$J$20006,I2) -> 0 | J7: =COUNTIFS($C$14:$C$20006,$B$2,$I$14:$I$20006,$B$7,$J$14:$J$20006,J2) -> 0 | K7: =COUNTIFS($C$14:$C$20006,$B$2,$I$14:$I$20006,$B$7,$J$14:$J$20006,K2) -> 0 | L7: 0 | M7: 0 | N7: 0
D8: Atributo: | E8: Profesionalidad | G8: =COUNTIFS($C$14:$C$20006,$B$2,$I$14:$I$20006,$B$7,$K$14:$K$20006,G2) -> 0 | H8: =COUNTIFS($C$14:$C$20006,$B$2,$I$14:$I$20006,$B$7,$K$14:$K$20006,H2) -> 0 | I8: =COUNTIFS($C$14:$C$20006,$B$2,$I$14:$I$20006,$B$7,$K$14:$K$20006,I2) -> 0 | J8: =COUNTIFS($C$14:$C$20006,$B$2,$I$14:$I$20006,$B$7,$K$14:$K$20006,J2) -> 0 | K8: =COUNTIFS($C$14:$C$20006,$B$2,$I$14:$I$20006,$B$7,$K$14:$K$20006,K2) -> 0 | L8: 0 | M8: 0 | N8: 0
A9: Servicio: | B9: Imágenes | D9: Atributo: | E9: Amabilidad | G9: =COUNTIFS($C$14:$C$20006,$B$2,$I$14:$I$20006,$B$9,$J$14:$J$20006,G2) -> 0 | H9: =COUNTIFS($C$14:$C$20006,$B$2,$I$14:$I$20006,$B$9,$J$14:$J$20006,H2) -> 0 | I9: =COUNTIFS($C$14:$C$20006,$B$2,$I$14:$I$20006,$B$9,$J$14:$J$20006,I2) -> 0 | J9: =COUNTIFS($C$14:$C$20006,$B$2,$I$14:$I$20006,$B$9,$J$14:$J$20006,J2) -> 0 | K9: =COUNTIFS($C$14:$C$20006,$B$2,$I$14:$I$20006,$B$9,$J$14:$J$20006,K2) -> 0 | L9: 0 | M9: 0 | N9: 0
D10: Atributo: | E10: Profesionalidad | G10: =COUNTIFS($C$14:$C$20006,$B$2,$I$14:$I$20006,$B$9,$K$14:$K$20006,G2) -> 0 | H10: =COUNTIFS($C$14:$C$20006,$B$2,$I$14:$I$20006,$B$9,$K$14:$K$20006,H2) -> 0 | I10: =COUNTIFS($C$14:$C$20006,$B$2,$I$14:$I$20006,$B$9,$K$14:$K$20006,I2) -> 0 | J10: =COUNTIFS($C$14:$C$20006,$B$2,$I$14:$I$20006,$B$9,$K$14:$K$20006,J2) -> 0 | K10: =COUNTIFS($C$14:$C$20006,$B$2,$I$14:$I$20006,$B$9,$K$14:$K$20006,K2) -> 0 | L10: 0 | M10: 0 | N10: 0
J12: Amabilidad | K12: Profesionalidad
A13: Código | B13: Formulario | C13: Establecimiento | D13: Fecha | E13: Nivel de Atención | F13: Municipio | G13: Provincia | H13: ¿Recomendaría a otra persona atenderse en este establecimiento de salud? | I13: Seleccione el servicio recibido | J13: ¿Cómo califica la amabilidad del personal que le atendió? | K13: ¿Cómo considera la profesionalidad del personal que le atendió? | L13: ¿Cómo considera la facilidad y rapidez del servicio brindado? | M13: ¿Cómo percibe el manejo de las informaciones del personal que le atendió? | N13: ¿Cómo considera el acceso a los servicios solicitados? | O13: ¿Cómo considera el tiempo para recibir los resultados de los estudios realizados? | P13: ¿Cómo considera la higiene y comodidad del espacio físico? | Q13: En general, ¿Cómo considera la calidad del servicio recibido?

Sheet Abril
A2: Hospital: | B2: HOSPITAL REGIONAL DR. ALEJANDRO CABRAL | G2: Muy Mala | H2: Mala | I2: Regular | J2: Buena | K2: Muy Buena | L2: Total | M2: B + MB | N2: %
A3: Servicio: | B3: Consulta Externa | D3: Atributo: | E3: Amabilidad | G3: =COUNTIFS($C$14:$C$20006,$B$2,$I$14:$I$20006,$B$3,$J$14:$J$20006,G2) -> 0 | H3: =COUNTIFS($C$14:$C$20006,$B$2,$I$14:$I$20006,$B$3,$J$14:$J$20006,H2) -> 0 | I3: =COUNTIFS($C$14:$C$20006,$B$2,$I$14:$I$20006,$B$3,$J$14:$J$20006,I2) -> 0 | J3: =COUNTIFS($C$14:$C$20006,$B$2,$I$14:$I$20006,$B$3,$J$14:$J$20006,J2) -> 0 | K3: =COUNTIFS($C$14:$C$20006,$B$2,$I$14:$I$20006,$B$3,$J$14:$J$20006,K2) -> 0 | L3: =+SUM(G3:K3) -> 0 | M3: =+J3+K3 -> 0 | N3: =+IF(L3=0,0,M3/L3) -> 0
D4: Atributo: | E4: Profesionalidad | G4: =COUNTIFS($C$14:$C$20006,$B$2,$I$14:$I$20006,$B$3,$K$14:$K$20006,G2) -> 0 | H4: =COUNTIFS($C$14:$C$20006,$B$2,$I$14:$I$20006,$B$3,$K$14:$K$20006,H2) -> 0 | I4: =COUNTIFS($C$14:$C$20006,$B$2,$I$14:$I$20006,$B$3,$K$14:$K$20006,I2) -> 0 | J4: =COUNTIFS($C$14:$C$20006,$B$2,$I$14:$I$20006,$B$3,$K$14:$K$20006,J2) -> 0 | K4: =COUNTIFS($C$14:$C$20006,$B$2,$I$14:$I$20006,$B$3,$K$14:$K$20006,K2) -> 0 | L4: =+SUM(G4:K4) -> 0 | M4: 0 | N4: 0
A5: Servicio: | B5: Hospitalización | D5: Atributo: | E5: Amabilidad | G5: =COUNTIFS($C$14:$C$20006,$B$2,$I$14:$I$20006,$B$5,$J$14:$J$20006,G2) -> 0 | H5: =COUNTIFS($C$14:$C$20006,$B$2,$I$14:$I$20006,$B$5,$J$14:$J$20006,H2) -> 0 | I5: =COUNTIFS($C$14:$C$20006,$B$2,$I$14:$I$20006,$B$5,$J$14:$J$20006,I2) -> 0 | J5: =COUNTIFS($C$14:$C$20006,$B$2,$I$14:$I$20006,$B$5,$J$14:$J$20006,J2) -> 0 | K5: =COUNTIFS($C$14:$C$20006,$B$2,$I$14:$I$20006,$B$5,$J$14:$J$20006,K2) -> 0 | L5: 0 | M5: 0 | N5: 0
D6: Atributo: | E6: Profesionalidad | G6: =COUNTIFS($C$14:$C$20006,$B$2,$I$14:$I$20006,$B$5,$K$14:$K$20006,G2) -> 0 | H6: =COUNTIFS($C$14:$C$20006,$B$2,$I$14:$I$20006,$B$5,$K$14:$K$20006,H2) -> 0 | I6: =COUNTIFS($C$14:$C$20006,$B$2,$I$14:$I$20006,$B$5,$K$14:$K$20006,I2) -> 0 | J6: =COUNTIFS($C$14:$C$20006,$B$2,$I$14:$I$20006,$B$5,$K$14:$K$20006,J2) -> 0 | K6: =COUNTIFS($C$14:$C$20006,$B$2,$I$14:$I$20006,$B$5,$K$14:$K$20006,K2) -> 0 | L6: 0 | M6: 0 | N6: 0
A7: Servicio: | B7: Laboratorio | D7: Atributo: | E7: Amabilidad | G7: =COUNTIFS($C$14:$C$20006,$B$2,$I$14:$I$20006,$B$7,$J$14:$J$20006,G2) -> 0 | H7: =COUNTIFS($C$14:$C$20006,$B$2,$I$14:$I$20006,$B$7,$J$14:$J$20006,H2) -> 0 | I7: =COUNTIFS($C$14:$C$20006,$B$2,$I$14:$I$20006,$B$7,$J$14:$J$20006,I2) -> 0 | J7: =COUNTIFS($C$14:$C$20006,$B$2,$I$14:$I$20006,$B$7,$J$14:$J$20006,J2) -> 0 | K7: =COUNTIFS($C$14:$C$20006,$B$2,$I$14:$I$20006,$B$7,$J$14:$J$20006,K2) -> 0 | L7: 0 | M7: 0 | N7: 0
D8: Atributo: | E8: Profesionalidad | G8: =COUNTIFS($C$14:$C$20006,$B$2,$I$14:$I$20006,$B$7,$K$14:$K$20006,G2) -> 0 | H8: =COUNTIFS($C$14:$C$20006,$B$2,$I$14:$I$20006,$B$7,$K$14:$K$20006,H2) -> 0 | I8: =COUNTIFS($C$14:$C$20006,$B$2,$I$14:$I$20006,$B$7,$K$14:$K$20006,I2) -> 0 | J8: =COUNTIFS($C$14:$C$20006,$B$2,$I$14:$I$20006,$B$7,$K$14:$K$20006,J2) -> 0 | K8: =COUNTIFS($C$14:$C$20006,$B$2,$I$14:$I$20006,$B$7,$K$14:$K$20006,K2) -> 0 | L8: 0 | M8: 0 | N8: 0
A9: Servicio: | B9: Imágenes | D9: Atributo: | E9: Amabilidad | G9: =COUNTIFS($C$14:$C$20006,$B$2,$I$14:$I$20006,$B$9,$J$14:$J$20006,G2) -> 0 | H9: =COUNTIFS($C$14:$C$20006,$B$2,$I$14:$I$20006,$B$9,$J$14:$J$20006,H2) -> 0 | I9: =COUNTIFS($C$14:$C$20006,$B$2,$I$14:$I$20006,$B$9,$J$14:$J$20006,I2) -> 0 | J9: =COUNTIFS($C$14:$C$20006,$B$2,$I$14:$I$20006,$B$9,$J$14:$J$20006,J2) -> 0 | K9: =COUNTIFS($C$14:$C$20006,$B$2,$I$14:$I$20006,$B$9,$J$14:$J$20006,K2) -> 0 | L9: 0 | M9: 0 | N9: 0
D10: Atributo: | E10: Profesionalidad | G10: =COUNTIFS($C$14:$C$20006,$B$2,$I$14:$I$20006,$B$9,$K$14:$K$20006,G2) -> 0 | H10: =COUNTIFS($C$14:$C$20006,$B$2,$I$14:$I$20006,$B$9,$K$14:$K$20006,H2) -> 0 | I10: =COUNTIFS($C$14:$C$20006,$B$2,$I$14:$I$20006,$B$9,$K$14:$K$20006,I2) -> 0 | J10: =COUNTIFS($C$14:$C$20006,$B$2,$I$14:$I$20006,$B$9,$K$14:$K$20006,J2) -> 0 | K10: =COUNTIFS($C$14:$C$20006,$B$2,$I$14:$I$20006,$B$9,$K$14:$K$20006,K2) -> 0 | L10: 0 | M10: 0 | N10: 0
J12: Amabilidad | K12: Profesionalidad
A13: Código | B13: Formulario | C13: Establecimiento | D13: Fecha | E13: Nivel de Atención | F13: Municipio | G13: Provincia | H13: ¿Recomendaría a otra persona atenderse en este establecimiento de salud? | I13: Seleccione el servicio recibido | J13: ¿Cómo califica la amabilidad del personal que le atendió? | K13: ¿Cómo considera la profesionalidad del personal que le atendió? | L13: ¿Cómo considera la facilidad y rapidez del servicio brindado? | M13: ¿Cómo percibe el manejo de las informaciones del personal que le atendió? | N13: ¿Cómo considera el acceso a los servicios solicitados? | O13: ¿Cómo considera el tiempo para recibir los resultados de los estudios realizados? | P13: ¿Cómo considera la higiene y comodidad del espacio físico? | Q13: En general, ¿Cómo considera la calidad del servicio recibido?

Sheet Mayo
A2: Hospital: | B2: HOSPITAL REGIONAL DR. ALEJANDRO CABRAL | G2: Muy Mala | H2: Mala | I2: Regular | J2: Buena | K2: Muy Buena | L2: Total | M2: B + MB | N2: %
A3: Servicio: | B3: Consulta Externa | D3: Atributo: | E3: Amabilidad | G3: =COUNTIFS($C$14:$C$20006,$B$2,$I$14:$I$20006,$B$3,$J$14:$J$20006,G2) -> 0 | H3: =COUNTIFS($C$14:$C$20006,$B$2,$I$14:$I$20006,$B$3,$J$14:$J$20006,H2) -> 0 | I3: =COUNTIFS($C$14:$C$20006,$B$2,$I$14:$I$20006,$B$3,$J$14:$J$20006,I2) -> 0 | J3: =COUNTIFS($C$14:$C$20006,$B$2,$I$14:$I$20006,$B$3,$J$14:$J$20006,J2) -> 0 | K3: =COUNTIFS($C$14:$C$20006,$B$2,$I$14:$I$20006,$B$3,$J$14:$J$20006,K2) -> 0 | L3: =+SUM(G3:K3) -> 0 | M3: =+J3+K3 -> 0 | N3: =+IF(L3=0,0,M3/L3) -> 0
D4: Atributo: | E4: Profesionalidad | G4: =COUNTIFS($C$14:$C$20006,$B$2,$I$14:$I$20006,$B$3,$K$14:$K$20006,G2) -> 0 | H4: =COUNTIFS($C$14:$C$20006,$B$2,$I$14:$I$20006,$B$3,$K$14:$K$20006,H2) -> 0 | I4: =COUNTIFS($C$14:$C$20006,$B$2,$I$14:$I$20006,$B$3,$K$14:$K$20006,I2) -> 0 | J4: =COUNTIFS($C$14:$C$20006,$B$2,$I$14:$I$20006,$B$3,$K$14:$K$20006,J2) -> 0 | K4: =COUNTIFS($C$14:$C$20006,$B$2,$I$14:$I$20006,$B$3,$K$14:$K$20006,K2) -> 0 | L4: =+SUM(G4:K4) -> 0 | M4: 0 | N4: 0
A5: Servicio: | B5: Hospitalización | D5: Atributo: | E5: Amabilidad | G5: =COUNTIFS($C$14:$C$20006,$B$2,$I$14:$I$20006,$B$5,$J$14:$J$20006,G2) -> 0 | H5: =COUNTIFS($C$14:$C$20006,$B$2,$I$14:$I$20006,$B$5,$J$14:$J$20006,H2) -> 0 | I5: =COUNTIFS($C$14:$C$20006,$B$2,$I$14:$I$20006,$B$5,$J$14:$J$20006,I2) -> 0 | J5: =COUNTIFS($C$14:$C$20006,$B$2,$I$14:$I$20006,$B$5,$J$14:$J$20006,J2) -> 0 | K5: =COUNTIFS($C$14:$C$20006,$B$2,$I$14:$I$20006,$B$5,$J$14:$J$20006,K2) -> 0 | L5: 0 | M5: 0 | N5: 0
D6: Atributo: | E6: Profesionalidad | G6: =COUNTIFS($C$14:$C$20006,$B$2,$I$14:$I$20006,$B$5,$K$14:$K$20006,G2) -> 0 | H6: =COUNTIFS($C$14:$C$20006,$B$2,$I$14:$I$20006,$B$5,$K$14:$K$20006,H2) -> 0 | I6: =COUNTIFS($C$14:$C$20006,$B$2,$I$14:$I$20006,$B$5,$K$14:$K$20006,I2) -> 0 | J6: =COUNTIFS($C$14:$C$20006,$B$2,$I$14:$I$20006,$B$5,$K$14:$K$20006,J2) -> 0 | K6: =COUNTIFS($C$14:$C$20006,$B$2,$I$14:$I$20006,$B$5,$K$14:$K$20006,K2) -> 0 | L6: 0 | M6: 0 | N6: 0
A7: Servicio: | B7: Laboratorio | D7: Atributo: | E7: Amabilidad | G7: =COUNTIFS($C$14:$C$20006,$B$2,$I$14:$I$20006,$B$7,$J$14:$J$20006,G2) -> 0 | H7: =COUNTIFS($C$14:$C$20006,$B$2,$I$14:$I$20006,$B$7,$J$14:$J$20006,H2) -> 0 | I7: =COUNTIFS($C$14:$C$20006,$B$2,$I$14:$I$20006,$B$7,$J$14:$J$20006,I2) -> 0 | J7: =COUNTIFS($C$14:$C$20006,$B$2,$I$14:$I$20006,$B$7,$J$14:$J$20006,J2) -> 0 | K7: =COUNTIFS($C$14:$C$20006,$B$2,$I$14:$I$20006,$B$7,$J$14:$J$20006,K2) -> 0 | L7: 0 | M7: 0 | N7: 0
D8: Atributo: | E8: Profesionalidad | G8: =COUNTIFS($C$14:$C$20006,$B$2,$I$14:$I$20006,$B$7,$K$14:$K$20006,G2) -> 0 | H8: =COUNTIFS($C$14:$C$20006,$B$2,$I$14:$I$20006,$B$7,$K$14:$K$20006,H2) -> 0 | I8: =COUNTIFS($C$14:$C$20006,$B$2,$I$14:$I$20006,$B$7,$K$14:$K$20006,I2) -> 0 | J8: =COUNTIFS($C$14:$C$20006,$B$2,$I$14:$I$20006,$B$7,$K$14:$K$20006,J2) -> 0 | K8: =COUNTIFS($C$14:$C$20006,$B$2,$I$14:$I$20006,$B$7,$K$14:$K$20006,K2) -> 0 | L8: 0 | M8: 0 | N8: 0
A9: Servicio: | B9: Imágenes | D9: Atributo: | E9: Amabilidad | G9: =COUNTIFS($C$14:$C$20006,$B$2,$I$14:$I$20006,$B$9,$J$14:$J$20006,G2) -> 0 | H9: =COUNTIFS($C$14:$C$20006,$B$2,$I$14:$I$20006,$B$9,$J$14:$J$20006,H2) -> 0 | I9: =COUNTIFS($C$14:$C$20006,$B$2,$I$14:$I$20006,$B$9,$J$14:$J$20006,I2) -> 0 | J9: =COUNTIFS($C$14:$C$20006,$B$2,$I$14:$I$20006,$B$9,$J$14:$J$20006,J2) -> 0 | K9: =COUNTIFS($C$14:$C$20006,$B$2,$I$14:$I$20006,$B$9,$J$14:$J$20006,K2) -> 0 | L9: 0 | M9: 0 | N9: 0
D10: Atributo: | E10: Profesionalidad | G10: =COUNTIFS($C$14:$C$20006,$B$2,$I$14:$I$20006,$B$9,$K$14:$K$20006,G2) -> 0 | H10: =COUNTIFS($C$14:$C$20006,$B$2,$I$14:$I$20006,$B$9,$K$14:$K$20006,H2) -> 0 | I10: =COUNTIFS($C$14:$C$20006,$B$2,$I$14:$I$20006,$B$9,$K$14:$K$20006,I2) -> 0 | J10: =COUNTIFS($C$14:$C$20006,$B$2,$I$14:$I$20006,$B$9,$K$14:$K$20006,J2) -> 0 | K10: =COUNTIFS($C$14:$C$20006,$B$2,$I$14:$I$20006,$B$9,$K$14:$K$20006,K2) -> 0 | L10: 0 | M10: 0 | N10: 0
J12: Amabilidad | K12: Profesionalidad
A13: Código | B13: Formulario | C13: Establecimiento | D13: Fecha | E13: Nivel de Atención | F13: Municipio | G13: Provincia | H13: ¿Recomendaría a otra persona atenderse en este establecimiento de salud? | I13: Seleccione el servicio recibido | J13: ¿Cómo califica la amabilidad del personal que le atendió? | K13: ¿Cómo considera la profesionalidad del personal que le atendió? | L13: ¿Cómo considera la facilidad y rapidez del servicio brindado? | M13: ¿Cómo percibe el manejo de las informaciones del personal que le atendió? | N13: ¿Cómo considera el acceso a los servicios solicitados? | O13: ¿Cómo considera el tiempo para recibir los resultados de los estudios realizados? | P13: ¿Cómo considera la higiene y comodidad del espacio físico? | Q13: En general, ¿Cómo considera la calidad del servicio recibido?

Sheet Junio
A2: Hospital: | B2: HOSPITAL REGIONAL DR. ALEJANDRO CABRAL | G2: Muy Mala | H2: Mala | I2: Regular | J2: Buena | K2: Muy Buena | L2: Total | M2: B + MB | N2: %
A3: Servicio: | B3: Consulta Externa | D3: Atributo: | E3: Amabilidad | G3: =COUNTIFS($C$14:$C$20006,$B$2,$I$14:$I$20006,$B$3,$J$14:$J$20006,G2) -> 0 | H3: =COUNTIFS($C$14:$C$20006,$B$2,$I$14:$I$20006,$B$3,$J$14:$J$20006,H2) -> 0 | I3: =COUNTIFS($C$14:$C$20006,$B$2,$I$14:$I$20006,$B$3,$J$14:$J$20006,I2) -> 0 | J3: =COUNTIFS($C$14:$C$20006,$B$2,$I$14:$I$20006,$B$3,$J$14:$J$20006,J2) -> 0 | K3: =COUNTIFS($C$14:$C$20006,$B$2,$I$14:$I$20006,$B$3,$J$14:$J$20006,K2) -> 0 | L3: =+SUM(G3:K3) -> 0 | M3: =+J3+K3 -> 0 | N3: =+IF(L3=0,0,M3/L3) -> 0
D4: Atributo: | E4: Profesionalidad | G4: =COUNTIFS($C$14:$C$20006,$B$2,$I$14:$I$20006,$B$3,$K$14:$K$20006,G2) -> 0 | H4: =COUNTIFS($C$14:$C$20006,$B$2,$I$14:$I$20006,$B$3,$K$14:$K$20006,H2) -> 0 | I4: =COUNTIFS($C$14:$C$20006,$B$2,$I$14:$I$20006,$B$3,$K$14:$K$20006,I2) -> 0 | J4: =COUNTIFS($C$14:$C$20006,$B$2,$I$14:$I$20006,$B$3,$K$14:$K$20006,J2) -> 0 | K4: =COUNTIFS($C$14:$C$20006,$B$2,$I$14:$I$20006,$B$3,$K$14:$K$20006,K2) -> 0 | L4: =+SUM(G4:K4) -> 0 | M4: 0 | N4: 0
A5: Servicio: | B5: Hospitalización | D5: Atributo: | E5: Amabilidad | G5: =COUNTIFS($C$14:$C$20006,$B$2,$I$14:$I$20006,$B$5,$J$14:$J$20006,G2) -> 0 | H5: =COUNTIFS($C$14:$C$20006,$B$2,$I$14:$I$20006,$B$5,$J$14:$J$20006,H2) -> 0 | I5: =COUNTIFS($C$14:$C$20006,$B$2,$I$14:$I$20006,$B$5,$J$14:$J$20006,I2) -> 0 | J5: =COUNTIFS($C$14:$C$20006,$B$2,$I$14:$I$20006,$B$5,$J$14:$J$20006,J2) -> 0 | K5: =COUNTIFS($C$14:$C$20006,$B$2,$I$14:$I$20006,$B$5,$J$14:$J$20006,K2) -> 0 | L5: 0 | M5: 0 | N5: 0
D6: Atributo: | E6: Profesionalidad | G6: =COUNTIFS($C$14:$C$20006,$B$2,$I$14:$I$20006,$B$5,$K$14:$K$20006,G2) -> 0 | H6: =COUNTIFS($C$14:$C$20006,$B$2,$I$14:$I$20006,$B$5,$K$14:$K$20006,H2) -> 0 | I6: =COUNTIFS($C$14:$C$20006,$B$2,$I$14:$I$20006,$B$5,$K$14:$K$20006,I2) -> 0 | J6: =COUNTIFS($C$14:$C$20006,$B$2,$I$14:$I$20006,$B$5,$K$14:$K$20006,J2) -> 0 | K6: =COUNTIFS($C$14:$C$20006,$B$2,$I$14:$I$20006,$B$5,$K$14:$K$20006,K2) -> 0 | L6: 0 | M6: 0 | N6: 0
A7: Servicio: | B7: Laboratorio | D7: Atributo: | E7: Amabilidad | G7: =COUNTIFS($C$14:$C$20006,$B$2,$I$14:$I$20006,$B$7,$J$14:$J$20006,G2) -> 0 | H7: =COUNTIFS($C$14:$C$20006,$B$2,$I$14:$I$20006,$B$7,$J$14:$J$20006,H2) -> 0 | I7: =COUNTIFS($C$14:$C$20006,$B$2,$I$14:$I$20006,$B$7,$J$14:$J$20006,I2) -> 0 | J7: =COUNTIFS($C$14:$C$20006,$B$2,$I$14:$I$20006,$B$7,$J$14:$J$20006,J2) -> 0 | K7: =COUNTIFS($C$14:$C$20006,$B$2,$I$14:$I$20006,$B$7,$J$14:$J$20006,K2) -> 0 | L7: 0 | M7: 0 | N7: 0
D8: Atributo: | E8: Profesionalidad | G8: =COUNTIFS($C$14:$C$20006,$B$2,$I$14:$I$20006,$B$7,$K$14:$K$20006,G2) -> 0 | H8: =COUNTIFS($C$14:$C$20006,$B$2,$I$14:$I$20006,$B$7,$K$14:$K$20006,H2) -> 0 | I8: =COUNTIFS($C$14:$C$20006,$B$2,$I$14:$I$20006,$B$7,$K$14:$K$20006,I2) -> 0 | J8: =COUNTIFS($C$14:$C$20006,$B$2,$I$14:$I$20006,$B$7,$K$14:$K$20006,J2) -> 0 | K8: =COUNTIFS($C$14:$C$20006,$B$2,$I$14:$I$20006,$B$7,$K$14:$K$20006,K2) -> 0 | L8: 0 | M8: 0 | N8: 0
A9: Servicio: | B9: Imágenes | D9: Atributo: | E9: Amabilidad | G9: =COUNTIFS($C$14:$C$20006,$B$2,$I$14:$I$20006,$B$9,$J$14:$J$20006,G2) -> 0 | H9: =COUNTIFS($C$14:$C$20006,$B$2,$I$14:$I$20006,$B$9,$J$14:$J$20006,H2) -> 0 | I9: =COUNTIFS($C$14:$C$20006,$B$2,$I$14:$I$20006,$B$9,$J$14:$J$20006,I2) -> 0 | J9: =COUNTIFS($C$14:$C$20006,$B$2,$I$14:$I$20006,$B$9,$J$14:$J$20006,J2) -> 0 | K9: =COUNTIFS($C$14:$C$20006,$B$2,$I$14:$I$20006,$B$9,$J$14:$J$20006,K2) -> 0 | L9: 0 | M9: 0 | N9: 0
D10: Atributo: | E10: Profesionalidad | G10: =COUNTIFS($C$14:$C$20006,$B$2,$I$14:$I$20006,$B$9,$K$14:$K$20006,G2) -> 0 | H10: =COUNTIFS($C$14:$C$20006,$B$2,$I$14:$I$20006,$B$9,$K$14:$K$20006,H2) -> 0 | I10: =COUNTIFS($C$14:$C$20006,$B$2,$I$14:$I$20006,$B$9,$K$14:$K$20006,I2) -> 0 | J10: =COUNTIFS($C$14:$C$20006,$B$2,$I$14:$I$20006,$B$9,$K$14:$K$20006,J2) -> 0 | K10: =COUNTIFS($C$14:$C$20006,$B$2,$I$14:$I$20006,$B$9,$K$14:$K$20006,K2) -> 0 | L10: 0 | M10: 0 | N10: 0
J12: Amabilidad | K12: Profesionalidad
A13: Código | B13: Formulario | C13: Establecimiento | D13: Fecha | E13: Nivel de Atención | F13: Municipio | G13: Provincia | H13: ¿Recomendaría a otra persona atenderse en este establecimiento de salud? | I13: Seleccione el servicio recibido | J13: ¿Cómo califica la amabilidad del personal que le atendió? | K13: ¿Cómo considera la profesionalidad del personal que le atendió? | L13: ¿Cómo considera la facilidad y rapidez del servicio brindado? | M13: ¿Cómo percibe el manejo de las informaciones del personal que le atendió? | N13: ¿Cómo considera el acceso a los servicios solicitados? | O13: ¿Cómo considera el tiempo para recibir los resultados de los estudios realizados? | P13: ¿Cómo considera la higiene y comodidad del espacio físico? | Q13: En general, ¿Cómo considera la calidad del servicio recibido?

Sheet Julio
A2: Hospital: | B2: HOSPITAL REGIONAL DR. ALEJANDRO CABRAL | G2: Muy Mala | H2: Mala | I2: Regular | J2: Buena | K2: Muy Buena | L2: Total | M2: B + MB | N2: %
A3: Servicio: | B3: Consulta Externa | D3: Atributo: | E3: Amabilidad | G3: =COUNTIFS($C$14:$C$20006,$B$2,$I$14:$I$20006,$B$3,$J$14:$J$20006,G2) -> 0 | H3: =COUNTIFS($C$14:$C$20006,$B$2,$I$14:$I$20006,$B$3,$J$14:$J$20006,H2) -> 0 | I3: =COUNTIFS($C$14:$C$20006,$B$2,$I$14:$I$20006,$B$3,$J$14:$J$20006,I2) -> 0 | J3: =COUNTIFS($C$14:$C$20006,$B$2,$I$14:$I$20006,$B$3,$J$14:$J$20006,J2) -> 0 | K3: =COUNTIFS($C$14:$C$20006,$B$2,$I$14:$I$20006,$B$3,$J$14:$J$20006,K2) -> 0 | L3: =+SUM(G3:K3) -> 0 | M3: =+J3+K3 -> 0 | N3: =+IF(L3=0,0,M3/L3) -> 0
D4: Atributo: | E4: Profesionalidad | G4: =COUNTIFS($C$14:$C$20006,$B$2,$I$14:$I$20006,$B$3,$K$14:$K$20006,G2) -> 0 | H4: =COUNTIFS($C$14:$C$20006,$B$2,$I$14:$I$20006,$B$3,$K$14:$K$20006,H2) -> 0 | I4: =COUNTIFS($C$14:$C$20006,$B$2,$I$14:$I$20006,$B$3,$K$14:$K$20006,I2) -> 0 | J4: =COUNTIFS($C$14:$C$20006,$B$2,$I$14:$I$20006,$B$3,$K$14:$K$20006,J2) -> 0 | K4: =COUNTIFS($C$14:$C$20006,$B$2,$I$14:$I$20006,$B$3,$K$14:$K$20006,K2) -> 0 | L4: =+SUM(G4:K4) -> 0 | M4: 0 | N4: =+IF(L4=0,0,M4/L4) -> 0
A5: Servicio: | B5: Hospitalización | D5: Atributo: | E5: Amabilidad | G5: =COUNTIFS($C$14:$C$20006,$B$2,$I$14:$I$20006,$B$5,$J$14:$J$20006,G2) -> 0 | H5: =COUNTIFS($C$14:$C$20006,$B$2,$I$14:$I$20006,$B$5,$J$14:$J$20006,H2) -> 0 | I5: =COUNTIFS($C$14:$C$20006,$B$2,$I$14:$I$20006,$B$5,$J$14:$J$20006,I2) -> 0 | J5: =COUNTIFS($C$14:$C$20006,$B$2,$I$14:$I$20006,$B$5,$J$14:$J$20006,J2) -> 0 | K5: =COUNTIFS($C$14:$C$20006,$B$2,$I$14:$I$20006,$B$5,$J$14:$J$20006,K2) -> 0 | L5: 0 | M5: 0 | N5: 0
D6: Atributo: | E6: Profesionalidad | G6: =COUNTIFS($C$14:$C$20006,$B$2,$I$14:$I$20006,$B$5,$K$14:$K$20006,G2) -> 0 | H6: =COUNTIFS($C$14:$C$20006,$B$2,$I$14:$I$20006,$B$5,$K$14:$K$20006,H2) -> 0 | I6: =COUNTIFS($C$14:$C$20006,$B$2,$I$14:$I$20006,$B$5,$K$14:$K$20006,I2) -> 0 | J6: =COUNTIFS($C$14:$C$20006,$B$2,$I$14:$I$20006,$B$5,$K$14:$K$20006,J2) -> 0 | K6: =COUNTIFS($C$14:$C$20006,$B$2,$I$14:$I$20006,$B$5,$K$14:$K$20006,K2) -> 0 | L6: 0 | M6: 0 | N6: 0
A7: Servicio: | B7: Laboratorio | D7: Atributo: | E7: Amabilidad | G7: =COUNTIFS($C$14:$C$20006,$B$2,$I$14:$I$20006,$B$7,$J$14:$J$20006,G2) -> 0 | H7: =COUNTIFS($C$14:$C$20006,$B$2,$I$14:$I$20006,$B$7,$J$14:$J$20006,H2) -> 0 | I7: =COUNTIFS($C$14:$C$20006,$B$2,$I$14:$I$20006,$B$7,$J$14:$J$20006,I2) -> 0 | J7: =COUNTIFS($C$14:$C$20006,$B$2,$I$14:$I$20006,$B$7,$J$14:$J$20006,J2) -> 0 | K7: =COUNTIFS($C$14:$C$20006,$B$2,$I$14:$I$20006,$B$7,$J$14:$J$20006,K2) -> 0 | L7: 0 | M7: 0 | N7: 0
D8: Atributo: | E8: Profesionalidad | G8: =COUNTIFS($C$14:$C$20006,$B$2,$I$14:$I$20006,$B$7,$K$14:$K$20006,G2) -> 0 | H8: =COUNTIFS($C$14:$C$20006,$B$2,$I$14:$I$20006,$B$7,$K$14:$K$20006,H2) -> 0 | I8: =COUNTIFS($C$14:$C$20006,$B$2,$I$14:$I$20006,$B$7,$K$14:$K$20006,I2) -> 0 | J8: =COUNTIFS($C$14:$C$20006,$B$2,$I$14:$I$20006,$B$7,$K$14:$K$20006,J2) -> 0 | K8: =COUNTIFS($C$14:$C$20006,$B$2,$I$14:$I$20006,$B$7,$K$14:$K$20006,K2) -> 0 | L8: 0 | M8: 0 | N8: 0
A9: Servicio: | B9: Imágenes | D9: Atributo: | E9: Amabilidad | G9: =COUNTIFS($C$14:$C$20006,$B$2,$I$14:$I$20006,$B$9,$J$14:$J$20006,G2) -> 0 | H9: =COUNTIFS($C$14:$C$20006,$B$2,$I$14:$I$20006,$B$9,$J$14:$J$20006,H2) -> 0 | I9: =COUNTIFS($C$14:$C$20006,$B$2,$I$14:$I$20006,$B$9,$J$14:$J$20006,I2) -> 0 | J9: =COUNTIFS($C$14:$C$20006,$B$2,$I$14:$I$20006,$B$9,$J$14:$J$20006,J2) -> 0 | K9: =COUNTIFS($C$14:$C$20006,$B$2,$I$14:$I$20006,$B$9,$J$14:$J$20006,K2) -> 0 | L9: 0 | M9: 0 | N9: 0
D10: Atributo: | E10: Profesionalidad | G10: =COUNTIFS($C$14:$C$20006,$B$2,$I$14:$I$20006,$B$9,$K$14:$K$20006,G2) -> 0 | H10: =COUNTIFS($C$14:$C$20006,$B$2,$I$14:$I$20006,$B$9,$K$14:$K$20006,H2) -> 0 | I10: =COUNTIFS($C$14:$C$20006,$B$2,$I$14:$I$20006,$B$9,$K$14:$K$20006,I2) -> 0 | J10: =COUNTIFS($C$14:$C$20006,$B$2,$I$14:$I$20006,$B$9,$K$14:$K$20006,J2) -> 0 | K10: =COUNTIFS($C$14:$C$20006,$B$2,$I$14:$I$20006,$B$9,$K$14:$K$20006,K2) -> 0 | L10: 0 | M10: 0 | N10: 0
J12: Amabilidad | K12: Profesionalidad
A13: Código | B13: Formulario | C13: Establecimiento | D13: Fecha | E13: Nivel de Atención | F13: Municipio | G13: Provincia | H13: ¿Recomendaría a otra persona atenderse en este establecimiento de salud? | I13: Seleccione el servicio recibido | J13: ¿Cómo califica la amabilidad del personal que le atendió? | K13: ¿Cómo considera la profesionalidad del personal que le atendió? | L13: ¿Cómo considera la facilidad y rapidez del servicio brindado? | M13: ¿Cómo percibe el manejo de las informaciones del personal que le atendió? | N13: ¿Cómo considera el acceso a los servicios solicitados? | O13: ¿Cómo considera el tiempo para recibir los resultados de los estudios realizados? | P13: ¿Cómo considera la higiene y comodidad del espacio físico? | Q13: En general, ¿Cómo considera la calidad del servicio recibido?

Sheet Agosto
A2: Hospital: | B2: HOSPITAL REGIONAL DR. ALEJANDRO CABRAL | G2: Muy Mala | H2: Mala | I2: Regular | J2: Buena | K2: Muy Buena | L2: Total | M2: B + MB | N2: %
A3: Servicio: | B3: Consulta Externa | D3: Atributo: | E3: Amabilidad | G3: =COUNTIFS($C$14:$C$20006,$B$2,$I$14:$I$20006,$B$3,$J$14:$J$20006,G2) -> 0 | H3: =COUNTIFS($C$14:$C$20006,$B$2,$I$14:$I$20006,$B$3,$J$14:$J$20006,H2) -> 0 | I3: =COUNTIFS($C$14:$C$20006,$B$2,$I$14:$I$20006,$B$3,$J$14:$J$20006,I2) -> 0 | J3: =COUNTIFS($C$14:$C$20006,$B$2,$I$14:$I$20006,$B$3,$J$14:$J$20006,J2) -> 0 | K3: =COUNTIFS($C$14:$C$20006,$B$2,$I$14:$I$20006,$B$3,$J$14:$J$20006,K2) -> 0 | L3: =+SUM(G3:K3) -> 0 | M3: =+J3+K3 -> 0 | N3: =+IF(L3=0,0,M3/L3) -> 0
D4: Atributo: | E4: Profesionalidad | G4: =COUNTIFS($C$14:$C$20006,$B$2,$I$14:$I$20006,$B$3,$K$14:$K$20006,G2) -> 0 | H4: =COUNTIFS($C$14:$C$20006,$B$2,$I$14:$I$20006,$B$3,$K$14:$K$20006,H2) -> 0 | I4: =COUNTIFS($C$14:$C$20006,$B$2,$I$14:$I$20006,$B$3,$K$14:$K$20006,I2) -> 0 | J4: =COUNTIFS($C$14:$C$20006,$B$2,$I$14:$I$20006,$B$3,$K$14:$K$20006,J2) -> 0 | K4: =COUNTIFS($C$14:$C$20006,$B$2,$I$14:$I$20006,$B$3,$K$14:$K$20006,K2) -> 0 | L4: =+SUM(G4:K4) -> 0 | M4: 0 | N4: 0
A5: Servicio: | B5: Hospitalización | D5: Atributo: | E5: Amabilidad | G5: =COUNTIFS($C$14:$C$20006,$B$2,$I$14:$I$20006,$B$5,$J$14:$J$20006,G2) -> 0 | H5: =COUNTIFS($C$14:$C$20006,$B$2,$I$14:$I$20006,$B$5,$J$14:$J$20006,H2) -> 0 | I5: =COUNTIFS($C$14:$C$20006,$B$2,$I$14:$I$20006,$B$5,$J$14:$J$20006,I2) -> 0 | J5: =COUNTIFS($C$14:$C$20006,$B$2,$I$14:$I$20006,$B$5,$J$14:$J$20006,J2) -> 0 | K5: =COUNTIFS($C$14:$C$20006,$B$2,$I$14:$I$20006,$B$5,$J$14:$J$20006,K2) -> 0 | L5: 0 | M5: 0 | N5: 0
D6: Atributo: | E6: Profesionalidad | G6: =COUNTIFS($C$14:$C$20006,$B$2,$I$14:$I$20006,$B$5,$K$14:$K$20006,G2) -> 0 | H6: =COUNTIFS($C$14:$C$20006,$B$2,$I$14:$I$20006,$B$5,$K$14:$K$20006,H2) -> 0 | I6: =COUNTIFS($C$14:$C$20006,$B$2,$I$14:$I$20006,$B$5,$K$14:$K$20006,I2) -> 0 | J6: =COUNTIFS($C$14:$C$20006,$B$2,$I$14:$I$20006,$B$5,$K$14:$K$20006,J2) -> 0 | K6: =COUNTIFS($C$14:$C$20006,$B$2,$I$14:$I$20006,$B$5,$K$14:$K$20006,K2) -> 0 | L6: 0 | M6: 0 | N6: 0
A7: Servicio: | B7: Laboratorio | D7: Atributo: | E7: Amabilidad | G7: =COUNTIFS($C$14:$C$20006,$B$2,$I$14:$I$20006,$B$7,$J$14:$J$20006,G2) -> 0 | H7: =COUNTIFS($C$14:$C$20006,$B$2,$I$14:$I$20006,$B$7,$J$14:$J$20006,H2) -> 0 | I7: =COUNTIFS($C$14:$C$20006,$B$2,$I$14:$I$20006,$B$7,$J$14:$J$20006,I2) -> 0 | J7: =COUNTIFS($C$14:$C$20006,$B$2,$I$14:$I$20006,$B$7,$J$14:$J$20006,J2) -> 0 | K7: =COUNTIFS($C$14:$C$20006,$B$2,$I$14:$I$20006,$B$7,$J$14:$J$20006,K2) -> 0 | L7: 0 | M7: 0 | N7: 0
D8: Atributo: | E8: Profesionalidad | G8: =COUNTIFS($C$14:$C$20006,$B$2,$I$14:$I$20006,$B$7,$K$14:$K$20006,G2) -> 0 | H8: =COUNTIFS($C$14:$C$20006,$B$2,$I$14:$I$20006,$B$7,$K$14:$K$20006,H2) -> 0 | I8: =COUNTIFS($C$14:$C$20006,$B$2,$I$14:$I$20006,$B$7,$K$14:$K$20006,I2) -> 0 | J8: =COUNTIFS($C$14:$C$20006,$B$2,$I$14:$I$20006,$B$7,$K$14:$K$20006,J2) -> 0 | K8: =COUNTIFS($C$14:$C$20006,$B$2,$I$14:$I$20006,$B$7,$K$14:$K$20006,K2) -> 0 | L8: 0 | M8: 0 | N8: 0
A9: Servicio: | B9: Imágenes | D9: Atributo: | E9: Amabilidad | G9: =COUNTIFS($C$14:$C$20006,$B$2,$I$14:$I$20006,$B$9,$J$14:$J$20006,G2) -> 0 | H9: =COUNTIFS($C$14:$C$20006,$B$2,$I$14:$I$20006,$B$9,$J$14:$J$20006,H2) -> 0 | I9: =COUNTIFS($C$14:$C$20006,$B$2,$I$14:$I$20006,$B$9,$J$14:$J$20006,I2) -> 0 | J9: =COUNTIFS($C$14:$C$20006,$B$2,$I$14:$I$20006,$B$9,$J$14:$J$20006,J2) -> 0 | K9: =COUNTIFS($C$14:$C$20006,$B$2,$I$14:$I$20006,$B$9,$J$14:$J$20006,K2) -> 0 | L9: 0 | M9: 0 | N9: 0
D10: Atributo: | E10: Profesionalidad | G10: =COUNTIFS($C$14:$C$20006,$B$2,$I$14:$I$20006,$B$9,$K$14:$K$20006,G2) -> 0 | H10: =COUNTIFS($C$14:$C$20006,$B$2,$I$14:$I$20006,$B$9,$K$14:$K$20006,H2) -> 0 | I10: =COUNTIFS($C$14:$C$20006,$B$2,$I$14:$I$20006,$B$9,$K$14:$K$20006,I2) -> 0 | J10: =COUNTIFS($C$14:$C$20006,$B$2,$I$14:$I$20006,$B$9,$K$14:$K$20006,J2) -> 0 | K10: =COUNTIFS($C$14:$C$20006,$B$2,$I$14:$I$20006,$B$9,$K$14:$K$20006,K2) -> 0 | L10: 0 | M10: 0 | N10: 0
J12: Amabilidad | K12: Profesionalidad
A13: Código | B13: Formulario | C13: Establecimiento | D13: Fecha | E13: Nivel de Atención | F13: Municipio | G13: Provincia | H13: ¿Recomendaría a otra persona atenderse en este establecimiento de salud? | I13: Seleccione el servicio recibido | J13: ¿Cómo califica la amabilidad del personal que le atendió? | K13: ¿Cómo considera la profesionalidad del personal que le atendió? | L13: ¿Cómo considera la facilidad y rapidez del servicio brindado? | M13: ¿Cómo percibe el manejo de las informaciones del personal que le atendió? | N13: ¿Cómo considera el acceso a los servicios solicitados? | O13: ¿Cómo considera el tiempo para recibir los resultados de los estudios realizados? | P13: ¿Cómo considera la higiene y comodidad del espacio físico? | Q13: En general, ¿Cómo considera la calidad del servicio recibido?

Sheet Septiembre
A2: Hospital: | B2: HOSPITAL REGIONAL DR. ALEJANDRO CABRAL | G2: Muy Mala | H2: Mala | I2: Regular | J2: Buena | K2: Muy Buena | L2: Total | M2: B + MB | N2: %
A3: Servicio: | B3: Consulta Externa | D3: Atributo: | E3: Amabilidad | G3: =COUNTIFS($C$14:$C$20006,$B$2,$I$14:$I$20006,$B$3,$J$14:$J$20006,G2) -> 0 | H3: =COUNTIFS($C$14:$C$20006,$B$2,$I$14:$I$20006,$B$3,$J$14:$J$20006,H2) -> 0 | I3: =COUNTIFS($C$14:$C$20006,$B$2,$I$14:$I$20006,$B$3,$J$14:$J$20006,I2) -> 0 | J3: =COUNTIFS($C$14:$C$20006,$B$2,$I$14:$I$20006,$B$3,$J$14:$J$20006,J2) -> 0 | K3: =COUNTIFS($C$14:$C$20006,$B$2,$I$14:$I$20006,$B$3,$J$14:$J$20006,K2) -> 0 | L3: =+SUM(G3:K3) -> 0 | M3: =+J3+K3 -> 0 | N3: =+IF(L3=0,0,M3/L3) -> 0
D4: Atributo: | E4: Profesionalidad | G4: =COUNTIFS($C$14:$C$20006,$B$2,$I$14:$I$20006,$B$3,$K$14:$K$20006,G2) -> 0 | H4: =COUNTIFS($C$14:$C$20006,$B$2,$I$14:$I$20006,$B$3,$K$14:$K$20006,H2) -> 0 | I4: =COUNTIFS($C$14:$C$20006,$B$2,$I$14:$I$20006,$B$3,$K$14:$K$20006,I2) -> 0 | J4: =COUNTIFS($C$14:$C$20006,$B$2,$I$14:$I$20006,$B$3,$K$14:$K$20006,J2) -> 0 | K4: =COUNTIFS($C$14:$C$20006,$B$2,$I$14:$I$20006,$B$3,$K$14:$K$20006,K2) -> 0 | L4: =+SUM(G4:K4) -> 0 | M4: 0 | N4: 0
A5: Servicio: | B5: Hospitalización | D5: Atributo: | E5: Amabilidad | G5: =COUNTIFS($C$14:$C$20006,$B$2,$I$14:$I$20006,$B$5,$J$14:$J$20006,G2) -> 0 | H5: =COUNTIFS($C$14:$C$20006,$B$2,$I$14:$I$20006,$B$5,$J$14:$J$20006,H2) -> 0 | I5: =COUNTIFS($C$14:$C$20006,$B$2,$I$14:$I$20006,$B$5,$J$14:$J$20006,I2) -> 0 | J5: =COUNTIFS($C$14:$C$20006,$B$2,$I$14:$I$20006,$B$5,$J$14:$J$20006,J2) -> 0 | K5: =COUNTIFS($C$14:$C$20006,$B$2,$I$14:$I$20006,$B$5,$J$14:$J$20006,K2) -> 0 | L5: 0 | M5: 0 | N5: 0
D6: Atributo: | E6: Profesionalidad | G6: =COUNTIFS($C$14:$C$20006,$B$2,$I$14:$I$20006,$B$5,$K$14:$K$20006,G2) -> 0 | H6: =COUNTIFS($C$14:$C$20006,$B$2,$I$14:$I$20006,$B$5,$K$14:$K$20006,H2) -> 0 | I6: =COUNTIFS($C$14:$C$20006,$B$2,$I$14:$I$20006,$B$5,$K$14:$K$20006,I2) -> 0 | J6: =COUNTIFS($C$14:$C$20006,$B$2,$I$14:$I$20006,$B$5,$K$14:$K$20006,J2) -> 0 | K6: =COUNTIFS($C$14:$C$20006,$B$2,$I$14:$I$20006,$B$5,$K$14:$K$20006,K2) -> 0 | L6: 0 | M6: 0 | N6: 0
A7: Servicio: | B7: Laboratorio | D7: Atributo: | E7: Amabilidad | G7: =COUNTIFS($C$14:$C$20006,$B$2,$I$14:$I$20006,$B$7,$J$14:$J$20006,G2) -> 0 | H7: =COUNTIFS($C$14:$C$20006,$B$2,$I$14:$I$20006,$B$7,$J$14:$J$20006,H2) -> 0 | I7: =COUNTIFS($C$14:$C$20006,$B$2,$I$14:$I$20006,$B$7,$J$14:$J$20006,I2) -> 0 | J7: =COUNTIFS($C$14:$C$20006,$B$2,$I$14:$I$20006,$B$7,$J$14:$J$20006,J2) -> 0 | K7: =COUNTIFS($C$14:$C$20006,$B$2,$I$14:$I$20006,$B$7,$J$14:$J$20006,K2) -> 0 | L7: 0 | M7: 0 | N7: 0
D8: Atributo: | E8: Profesionalidad | G8: =COUNTIFS($C$14:$C$20006,$B$2,$I$14:$I$20006,$B$7,$K$14:$K$20006,G2) -> 0 | H8: =COUNTIFS($C$14:$C$20006,$B$2,$I$14:$I$20006,$B$7,$K$14:$K$20006,H2) -> 0 | I8: =COUNTIFS($C$14:$C$20006,$B$2,$I$14:$I$20006,$B$7,$K$14:$K$20006,I2) -> 0 | J8: =COUNTIFS($C$14:$C$20006,$B$2,$I$14:$I$20006,$B$7,$K$14:$K$20006,J2) -> 0 | K8: =COUNTIFS($C$14:$C$20006,$B$2,$I$14:$I$20006,$B$7,$K$14:$K$20006,K2) -> 0 | L8: 0 | M8: 0 | N8: 0
A9: Servicio: | B9: Imágenes | D9: Atributo: | E9: Amabilidad | G9: =COUNTIFS($C$14:$C$20006,$B$2,$I$14:$I$20006,$B$9,$J$14:$J$20006,G2) -> 0 | H9: =COUNTIFS($C$14:$C$20006,$B$2,$I$14:$I$20006,$B$9,$J$14:$J$20006,H2) -> 0 | I9: =COUNTIFS($C$14:$C$20006,$B$2,$I$14:$I$20006,$B$9,$J$14:$J$20006,I2) -> 0 | J9: =COUNTIFS($C$14:$C$20006,$B$2,$I$14:$I$20006,$B$9,$J$14:$J$20006,J2) -> 0 | K9: =COUNTIFS($C$14:$C$20006,$B$2,$I$14:$I$20006,$B$9,$J$14:$J$20006,K2) -> 0 | L9: 0 | M9: 0 | N9: 0
D10: Atributo: | E10: Profesionalidad | G10: =COUNTIFS($C$14:$C$20006,$B$2,$I$14:$I$20006,$B$9,$K$14:$K$20006,G2) -> 0 | H10: =COUNTIFS($C$14:$C$20006,$B$2,$I$14:$I$20006,$B$9,$K$14:$K$20006,H2) -> 0 | I10: =COUNTIFS($C$14:$C$20006,$B$2,$I$14:$I$20006,$B$9,$K$14:$K$20006,I2) -> 0 | J10: =COUNTIFS($C$14:$C$20006,$B$2,$I$14:$I$20006,$B$9,$K$14:$K$20006,J2) -> 0 | K10: =COUNTIFS($C$14:$C$20006,$B$2,$I$14:$I$20006,$B$9,$K$14:$K$20006,K2) -> 0 | L10: 0 | M10: 0 | N10: 0
J12: Amabilidad | K12: Profesionalidad
A13: Código | B13: Formulario | C13: Establecimiento | D13: Fecha | E13: Nivel de Atención | F13: Municipio | G13: Provincia | H13: ¿Recomendaría a otra persona atenderse en este establecimiento de salud? | I13: Seleccione el servicio recibido | J13: ¿Cómo califica la amabilidad del personal que le atendió? | K13: ¿Cómo considera la profesionalidad del personal que le atendió? | L13: ¿Cómo considera la facilidad y rapidez del servicio brindado? | M13: ¿Cómo percibe el manejo de las informaciones del personal que le atendió? | N13: ¿Cómo considera el acceso a los servicios solicitados? | O13: ¿Cómo considera el tiempo para recibir los resultados de los estudios realizados? | P13: ¿Cómo considera la higiene y comodidad del espacio físico? | Q13: En general, ¿Cómo considera la calidad del servicio recibido?

Sheet Octubre
A2: Hospital: | B2: HOSPITAL REGIONAL DR. ALEJANDRO CABRAL | G2: Muy Mala | H2: Mala | I2: Regular | J2: Buena | K2: Muy Buena | L2: Total | M2: B + MB | N2: %
A3: Servicio: | B3: Consulta Externa | D3: Atributo: | E3: Amabilidad | G3: =COUNTIFS($C$14:$C$20006,$B$2,$I$14:$I$20006,$B$3,$J$14:$J$20006,G2) -> 0 | H3: =COUNTIFS($C$14:$C$20006,$B$2,$I$14:$I$20006,$B$3,$J$14:$J$20006,H2) -> 0 | I3: =COUNTIFS($C$14:$C$20006,$B$2,$I$14:$I$20006,$B$3,$J$14:$J$20006,I2) -> 0 | J3: =COUNTIFS($C$14:$C$20006,$B$2,$I$14:$I$20006,$B$3,$J$14:$J$20006,J2) -> 0 | K3: =COUNTIFS($C$14:$C$20006,$B$2,$I$14:$I$20006,$B$3,$J$14:$J$20006,K2) -> 0 | L3: =+SUM(G3:K3) -> 0 | M3: =+J3+K3 -> 0 | N3: =+IF(L3=0,0,M3/L3) -> 0
D4: Atributo: | E4: Profesionalidad | G4: =COUNTIFS($C$14:$C$20006,$B$2,$I$14:$I$20006,$B$3,$K$14:$K$20006,G2) -> 0 | H4: =COUNTIFS($C$14:$C$20006,$B$2,$I$14:$I$20006,$B$3,$K$14:$K$20006,H2) -> 0 | I4: =COUNTIFS($C$14:$C$20006,$B$2,$I$14:$I$20006,$B$3,$K$14:$K$20006,I2) -> 0 | J4: =COUNTIFS($C$14:$C$20006,$B$2,$I$14:$I$20006,$B$3,$K$14:$K$20006,J2) -> 0 | K4: =COUNTIFS($C$14:$C$20006,$B$2,$I$14:$I$20006,$B$3,$K$14:$K$20006,K2) -> 0 | L4: =+SUM(G4:K4) -> 0 | M4: 0 | N4: 0
A5: Servicio: | B5: Hospitalización | D5: Atributo: | E5: Amabilidad | G5: =COUNTIFS($C$14:$C$20006,$B$2,$I$14:$I$20006,$B$5,$J$14:$J$20006,G2) -> 0 | H5: =COUNTIFS($C$14:$C$20006,$B$2,$I$14:$I$20006,$B$5,$J$14:$J$20006,H2) -> 0 | I5: =COUNTIFS($C$14:$C$20006,$B$2,$I$14:$I$20006,$B$5,$J$14:$J$20006,I2) -> 0 | J5: =COUNTIFS($C$14:$C$20006,$B$2,$I$14:$I$20006,$B$5,$J$14:$J$20006,J2) -> 0 | K5: =COUNTIFS($C$14:$C$20006,$B$2,$I$14:$I$20006,$B$5,$J$14:$J$20006,K2) -> 0 | L5: 0 | M5: 0 | N5: 0
D6: Atributo: | E6: Profesionalidad | G6: =COUNTIFS($C$14:$C$20006,$B$2,$I$14:$I$20006,$B$5,$K$14:$K$20006,G2) -> 0 | H6: =COUNTIFS($C$14:$C$20006,$B$2,$I$14:$I$20006,$B$5,$K$14:$K$20006,H2) -> 0 | I6: =COUNTIFS($C$14:$C$20006,$B$2,$I$14:$I$20006,$B$5,$K$14:$K$20006,I2) -> 0 | J6: =COUNTIFS($C$14:$C$20006,$B$2,$I$14:$I$20006,$B$5,$K$14:$K$20006,J2) -> 0 | K6: =COUNTIFS($C$14:$C$20006,$B$2,$I$14:$I$20006,$B$5,$K$14:$K$20006,K2) -> 0 | L6: 0 | M6: 0 | N6: 0
A7: Servicio: | B7: Laboratorio | D7: Atributo: | E7: Amabilidad | G7: =COUNTIFS($C$14:$C$20006,$B$2,$I$14:$I$20006,$B$7,$J$14:$J$20006,G2) -> 0 | H7: =COUNTIFS($C$14:$C$20006,$B$2,$I$14:$I$20006,$B$7,$J$14:$J$20006,H2) -> 0 | I7: =COUNTIFS($C$14:$C$20006,$B$2,$I$14:$I$20006,$B$7,$J$14:$J$20006,I2) -> 0 | J7: =COUNTIFS($C$14:$C$20006,$B$2,$I$14:$I$20006,$B$7,$J$14:$J$20006,J2) -> 0 | K7: =COUNTIFS($C$14:$C$20006,$B$2,$I$14:$I$20006,$B$7,$J$14:$J$20006,K2) -> 0 | L7: 0 | M7: 0 | N7: 0
D8: Atributo: | E8: Profesionalidad | G8: =COUNTIFS($C$14:$C$20006,$B$2,$I$14:$I$20006,$B$7,$K$14:$K$20006,G2) -> 0 | H8: =COUNTIFS($C$14:$C$20006,$B$2,$I$14:$I$20006,$B$7,$K$14:$K$20006,H2) -> 0 | I8: =COUNTIFS($C$14:$C$20006,$B$2,$I$14:$I$20006,$B$7,$K$14:$K$20006,I2) -> 0 | J8: =COUNTIFS($C$14:$C$20006,$B$2,$I$14:$I$20006,$B$7,$K$14:$K$20006,J2) -> 0 | K8: =COUNTIFS($C$14:$C$20006,$B$2,$I$14:$I$20006,$B$7,$K$14:$K$20006,K2) -> 0 | L8: 0 | M8: 0 | N8: 0
A9: Servicio: | B9: Imágenes | D9: Atributo: | E9: Amabilidad | G9: =COUNTIFS($C$14:$C$20006,$B$2,$I$14:$I$20006,$B$9,$J$14:$J$20006,G2) -> 0 | H9: =COUNTIFS($C$14:$C$20006,$B$2,$I$14:$I$20006,$B$9,$J$14:$J$20006,H2) -> 0 | I9: =COUNTIFS($C$14:$C$20006,$B$2,$I$14:$I$20006,$B$9,$J$14:$J$20006,I2) -> 0 | J9: =COUNTIFS($C$14:$C$20006,$B$2,$I$14:$I$20006,$B$9,$J$14:$J$20006,J2) -> 0 | K9: =COUNTIFS($C$14:$C$20006,$B$2,$I$14:$I$20006,$B$9,$J$14:$J$20006,K2) -> 0 | L9: 0 | M9: 0 | N9: 0
D10: Atributo: | E10: Profesionalidad | G10: =COUNTIFS($C$14:$C$20006,$B$2,$I$14:$I$20006,$B$9,$K$14:$K$20006,G2) -> 0 | H10: =COUNTIFS($C$14:$C$20006,$B$2,$I$14:$I$20006,$B$9,$K$14:$K$20006,H2) -> 0 | I10: =COUNTIFS($C$14:$C$20006,$B$2,$I$14:$I$20006,$B$9,$K$14:$K$20006,I2) -> 0 | J10: =COUNTIFS($C$14:$C$20006,$B$2,$I$14:$I$20006,$B$9,$K$14:$K$20006,J2) -> 0 | K10: =COUNTIFS($C$14:$C$20006,$B$2,$I$14:$I$20006,$B$9,$K$14:$K$20006,K2) -> 0 | L10: 0 | M10: 0 | N10: 0
J12: Amabilidad | K12: Profesionalidad
A13: Código | B13: Formulario | C13: Establecimiento | D13: Fecha | E13: Nivel de Atención | F13: Municipio | G13: Provincia | H13: ¿Recomendaría a otra persona atenderse en este establecimiento de salud? | I13: Seleccione el servicio recibido | J13: ¿Cómo califica la amabilidad del personal que le atendió? | K13: ¿Cómo considera la profesionalidad del personal que le atendió? | L13: ¿Cómo considera la facilidad y rapidez del servicio brindado? | M13: ¿Cómo percibe el manejo de las informaciones del personal que le atendió? | N13: ¿Cómo considera el acceso a los servicios solicitados? | O13: ¿Cómo considera el tiempo para recibir los resultados de los estudios realizados? | P13: ¿Cómo considera la higiene y comodidad del espacio físico? | Q13: En general, ¿Cómo considera la calidad del servicio recibido?

Sheet Noviembre
A2: Hospital: | B2: HOSPITAL REGIONAL DR. ALEJANDRO CABRAL | G2: Muy Mala | H2: Mala | I2: Regular | J2: Buena | K2: Muy Buena | L2: Total | M2: B + MB | N2: %
A3: Servicio: | B3: Consulta Externa | D3: Atributo: | E3: Amabilidad | G3: =COUNTIFS($C$14:$C$20006,$B$2,$I$14:$I$20006,$B$3,$J$14:$J$20006,G2) -> 0 | H3: =COUNTIFS($C$14:$C$20006,$B$2,$I$14:$I$20006,$B$3,$J$14:$J$20006,H2) -> 0 | I3: =COUNTIFS($C$14:$C$20006,$B$2,$I$14:$I$20006,$B$3,$J$14:$J$20006,I2) -> 0 | J3: =COUNTIFS($C$14:$C$20006,$B$2,$I$14:$I$20006,$B$3,$J$14:$J$20006,J2) -> 0 | K3: =COUNTIFS($C$14:$C$20006,$B$2,$I$14:$I$20006,$B$3,$J$14:$J$20006,K2) -> 0 | L3: =+SUM(G3:K3) -> 0 | M3: =+J3+K3 -> 0 | N3: =+IF(L3=0,0,M3/L3) -> 0
D4: Atributo: | E4: Profesionalidad | G4: =COUNTIFS($C$14:$C$20006,$B$2,$I$14:$I$20006,$B$3,$K$14:$K$20006,G2) -> 0 | H4: =COUNTIFS($C$14:$C$20006,$B$2,$I$14:$I$20006,$B$3,$K$14:$K$20006,H2) -> 0 | I4: =COUNTIFS($C$14:$C$20006,$B$2,$I$14:$I$20006,$B$3,$K$14:$K$20006,I2) -> 0 | J4: =COUNTIFS($C$14:$C$20006,$B$2,$I$14:$I$20006,$B$3,$K$14:$K$20006,J2) -> 0 | K4: =COUNTIFS($C$14:$C$20006,$B$2,$I$14:$I$20006,$B$3,$K$14:$K$20006,K2) -> 0 | L4: =+SUM(G4:K4) -> 0 | M4: 0 | N4: 0
A5: Servicio: | B5: Hospitalización | D5: Atributo: | E5: Amabilidad | G5: =COUNTIFS($C$14:$C$20006,$B$2,$I$14:$I$20006,$B$5,$J$14:$J$20006,G2) -> 0 | H5: =COUNTIFS($C$14:$C$20006,$B$2,$I$14:$I$20006,$B$5,$J$14:$J$20006,H2) -> 0 | I5: =COUNTIFS($C$14:$C$20006,$B$2,$I$14:$I$20006,$B$5,$J$14:$J$20006,I2) -> 0 | J5: =COUNTIFS($C$14:$C$20006,$B$2,$I$14:$I$20006,$B$5,$J$14:$J$20006,J2) -> 0 | K5: =COUNTIFS($C$14:$C$20006,$B$2,$I$14:$I$20006,$B$5,$J$14:$J$20006,K2) -> 0 | L5: 0 | M5: 0 | N5: 0
D6: Atributo: | E6: Profesionalidad | G6: =COUNTIFS($C$14:$C$20006,$B$2,$I$14:$I$20006,$B$5,$K$14:$K$20006,G2) -> 0 | H6: =COUNTIFS($C$14:$C$20006,$B$2,$I$14:$I$20006,$B$5,$K$14:$K$20006,H2) -> 0 | I6: =COUNTIFS($C$14:$C$20006,$B$2,$I$14:$I$20006,$B$5,$K$14:$K$20006,I2) -> 0 | J6: =COUNTIFS($C$14:$C$20006,$B$2,$I$14:$I$20006,$B$5,$K$14:$K$20006,J2) -> 0 | K6: =COUNTIFS($C$14:$C$20006,$B$2,$I$14:$I$20006,$B$5,$K$14:$K$20006,K2) -> 0 | L6: 0 | M6: 0 | N6: 0
A7: Servicio: | B7: Laboratorio | D7: Atributo: | E7: Amabilidad | G7: =COUNTIFS($C$14:$C$20006,$B$2,$I$14:$I$20006,$B$7,$J$14:$J$20006,G2) -> 0 | H7: =COUNTIFS($C$14:$C$20006,$B$2,$I$14:$I$20006,$B$7,$J$14:$J$20006,H2) -> 0 | I7: =COUNTIFS($C$14:$C$20006,$B$2,$I$14:$I$20006,$B$7,$J$14:$J$20006,I2) -> 0 | J7: =COUNTIFS($C$14:$C$20006,$B$2,$I$14:$I$20006,$B$7,$J$14:$J$20006,J2) -> 0 | K7: =COUNTIFS($C$14:$C$20006,$B$2,$I$14:$I$20006,$B$7,$J$14:$J$20006,K2) -> 0 | L7: 0 | M7: 0 | N7: 0
D8: Atributo: | E8: Profesionalidad | G8: =COUNTIFS($C$14:$C$20006,$B$2,$I$14:$I$20006,$B$7,$K$14:$K$20006,G2) -> 0 | H8: =COUNTIFS($C$14:$C$20006,$B$2,$I$14:$I$20006,$B$7,$K$14:$K$20006,H2) -> 0 | I8: =COUNTIFS($C$14:$C$20006,$B$2,$I$14:$I$20006,$B$7,$K$14:$K$20006,I2) -> 0 | J8: =COUNTIFS($C$14:$C$20006,$B$2,$I$14:$I$20006,$B$7,$K$14:$K$20006,J2) -> 0 | K8: =COUNTIFS($C$14:$C$20006,$B$2,$I$14:$I$20006,$B$7,$K$14:$K$20006,K2) -> 0 | L8: 0 | M8: 0 | N8: 0
A9: Servicio: | B9: Imágenes | D9: Atributo: | E9: Amabilidad | G9: =COUNTIFS($C$14:$C$20006,$B$2,$I$14:$I$20006,$B$9,$J$14:$J$20006,G2) -> 0 | H9: =COUNTIFS($C$14:$C$20006,$B$2,$I$14:$I$20006,$B$9,$J$14:$J$20006,H2) -> 0 | I9: =COUNTIFS($C$14:$C$20006,$B$2,$I$14:$I$20006,$B$9,$J$14:$J$20006,I2) -> 0 | J9: =COUNTIFS($C$14:$C$20006,$B$2,$I$14:$I$20006,$B$9,$J$14:$J$20006,J2) -> 0 | K9: =COUNTIFS($C$14:$C$20006,$B$2,$I$14:$I$20006,$B$9,$J$14:$J$20006,K2) -> 0 | L9: 0 | M9: 0 | N9: 0
D10: Atributo: | E10: Profesionalidad | G10: =COUNTIFS($C$14:$C$20006,$B$2,$I$14:$I$20006,$B$9,$K$14:$K$20006,G2) -> 0 | H10: =COUNTIFS($C$14:$C$20006,$B$2,$I$14:$I$20006,$B$9,$K$14:$K$20006,H2) -> 0 | I10: =COUNTIFS($C$14:$C$20006,$B$2,$I$14:$I$20006,$B$9,$K$14:$K$20006,I2) -> 0 | J10: =COUNTIFS($C$14:$C$20006,$B$2,$I$14:$I$20006,$B$9,$K$14:$K$20006,J2) -> 0 | K10: =COUNTIFS($C$14:$C$20006,$B$2,$I$14:$I$20006,$B$9,$K$14:$K$20006,K2) -> 0 | L10: 0 | M10: 0 | N10: 0
J12: Amabilidad | K12: Profesionalidad
A13: Código | B13: Formulario | C13: Establecimiento | D13: Fecha | E13: Nivel de Atención | F13: Municipio | G13: Provincia | H13: ¿Recomendaría a otra persona atenderse en este establecimiento de salud? | I13: Seleccione el servicio recibido | J13: ¿Cómo califica la amabilidad del personal que le atendió? | K13: ¿Cómo considera la profesionalidad del personal que le atendió? | L13: ¿Cómo considera la facilidad y rapidez del servicio brindado? | M13: ¿Cómo percibe el manejo de las informaciones del personal que le atendió? | N13: ¿Cómo considera el acceso a los servicios solicitados? | O13: ¿Cómo considera el tiempo para recibir los resultados de los estudios realizados? | P13: ¿Cómo considera la higiene y comodidad del espacio físico? | Q13: En general, ¿Cómo considera la calidad del servicio recibido?

Sheet Diciembre
A2: Hospital: | B2: HOSPITAL REGIONAL DR. ALEJANDRO CABRAL | G2: Muy Mala | H2: Mala | I2: Regular | J2: Buena | K2: Muy Buena | L2: Total | M2: B + MB | N2: %
A3: Servicio: | B3: Consulta Externa | D3: Atributo: | E3: Amabilidad | G3: =COUNTIFS($C$14:$C$20006,$B$2,$I$14:$I$20006,$B$3,$J$14:$J$20006,G2) -> 0 | H3: =COUNTIFS($C$14:$C$20006,$B$2,$I$14:$I$20006,$B$3,$J$14:$J$20006,H2) -> 0 | I3: =COUNTIFS($C$14:$C$20006,$B$2,$I$14:$I$20006,$B$3,$J$14:$J$20006,I2) -> 0 | J3: =COUNTIFS($C$14:$C$20006,$B$2,$I$14:$I$20006,$B$3,$J$14:$J$20006,J2) -> 85 | K3: =COUNTIFS($C$14:$C$20006,$B$2,$I$14:$I$20006,$B$3,$J$14:$J$20006,K2) -> 5 | L3: =+SUM(G3:K3) -> 90 | M3: =+J3+K3 -> 90 | N3: =+IF(L3=0,0,M3/L3) -> 1
D4: Atributo: | E4: Profesionalidad | G4: =COUNTIFS($C$14:$C$20006,$B$2,$I$14:$I$20006,$B$3,$K$14:$K$20006,G2) -> 0 | H4: =COUNTIFS($C$14:$C$20006,$B$2,$I$14:$I$20006,$B$3,$K$14:$K$20006,H2) -> 0 | I4: =COUNTIFS($C$14:$C$20006,$B$2,$I$14:$I$20006,$B$3,$K$14:$K$20006,I2) -> 4 | J4: =COUNTIFS($C$14:$C$20006,$B$2,$I$14:$I$20006,$B$3,$K$14:$K$20006,J2) -> 85 | K4: =COUNTIFS($C$14:$C$20006,$B$2,$I$14:$I$20006,$B$3,$K$14:$K$20006,K2) -> 1 | L4: =+SUM(G4:K4) -> 90 | M4: 86 | N4: 0.9555555556
A5: Servicio: | B5: Hospitalización | D5: Atributo: | E5: Amabilidad | G5: =COUNTIFS($C$14:$C$20006,$B$2,$I$14:$I$20006,$B$5,$J$14:$J$20006,G2) -> 0 | H5: =COUNTIFS($C$14:$C$20006,$B$2,$I$14:$I$20006,$B$5,$J$14:$J$20006,H2) -> 0 | I5: =COUNTIFS($C$14:$C$20006,$B$2,$I$14:$I$20006,$B$5,$J$14:$J$20006,I2) -> 1 | J5: =COUNTIFS($C$14:$C$20006,$B$2,$I$14:$I$20006,$B$5,$J$14:$J$20006,J2) -> 38 | K5: =COUNTIFS($C$14:$C$20006,$B$2,$I$14:$I$20006,$B$5,$J$14:$J$20006,K2) -> 3 | L5: 42 | M5: 41 | N5: 0.9761904762
D6: Atributo: | E6: Profesionalidad | G6: =COUNTIFS($C$14:$C$20006,$B$2,$I$14:$I$20006,$B$5,$K$14:$K$20006,G2) -> 0 | H6: =COUNTIFS($C$14:$C$20006,$B$2,$I$14:$I$20006,$B$5,$K$14:$K$20006,H2) -> 0 | I6: =COUNTIFS($C$14:$C$20006,$B$2,$I$14:$I$20006,$B$5,$K$14:$K$20006,I2) -> 3 | J6: =COUNTIFS($C$14:$C$20006,$B$2,$I$14:$I$20006,$B$5,$K$14:$K$20006,J2) -> 34 | K6: =COUNTIFS($C$14:$C$20006,$B$2,$I$14:$I$20006,$B$5,$K$14:$K$20006,K2) -> 5 | L6: 42 | M6: 39 | N6: 0.9285714286
A7: Servicio: | B7: Laboratorio | D7: Atributo: | E7: Amabilidad | G7: =COUNTIFS($C$14:$C$20006,$B$2,$I$14:$I$20006,$B$7,$J$14:$J$20006,G2) -> 0 | H7: =COUNTIFS($C$14:$C$20006,$B$2,$I$14:$I$20006,$B$7,$J$14:$J$20006,H2) -> 0 | I7: =COUNTIFS($C$14:$C$20006,$B$2,$I$14:$I$20006,$B$7,$J$14:$J$20006,I2) -> 0 | J7: =COUNTIFS($C$14:$C$20006,$B$2,$I$14:$I$20006,$B$7,$J$14:$J$20006,J2) -> 68 | K7: =COUNTIFS($C$14:$C$20006,$B$2,$I$14:$I$20006,$B$7,$J$14:$J$20006,K2) -> 8 | L7: 76 | M7: 76 | N7: 1
D8: Atributo: | E8: Profesionalidad | G8: =COUNTIFS($C$14:$C$20006,$B$2,$I$14:$I$20006,$B$7,$K$14:$K$20006,G2) -> 0 | H8: =COUNTIFS($C$14:$C$20006,$B$2,$I$14:$I$20006,$B$7,$K$14:$K$20006,H2) -> 0 | I8: =COUNTIFS($C$14:$C$20006,$B$2,$I$14:$I$20006,$B$7,$K$14:$K$20006,I2) -> 0 | J8: =COUNTIFS($C$14:$C$20006,$B$2,$I$14:$I$20006,$B$7,$K$14:$K$20006,J2) -> 68 | K8: =COUNTIFS($C$14:$C$20006,$B$2,$I$14:$I$20006,$B$7,$K$14:$K$20006,K2) -> 8 | L8: 76 | M8: 76 | N8: 1
A9: Servicio: | B9: Imágenes | D9: Atributo: | E9: Amabilidad | G9: =COUNTIFS($C$14:$C$20006,$B$2,$I$14:$I$20006,$B$9,$J$14:$J$20006,G2) -> 0 | H9: =COUNTIFS($C$14:$C$20006,$B$2,$I$14:$I$20006,$B$9,$J$14:$J$20006,H2) -> 0 | I9: =COUNTIFS($C$14:$C$20006,$B$2,$I$14:$I$20006,$B$9,$J$14:$J$20006,I2) -> 1 | J9: =COUNTIFS($C$14:$C$20006,$B$2,$I$14:$I$20006,$B$9,$J$14:$J$20006,J2) -> 25 | K9: =COUNTIFS($C$14:$C$20006,$B$2,$I$14:$I$20006,$B$9,$J$14:$J$20006,K2) -> 0 | L9: 26 | M9: 25 | N9: 0.9615384615
D10: Atributo: | E10: Profesionalidad | G10: =COUNTIFS($C$14:$C$20006,$B$2,$I$14:$I$20006,$B$9,$K$14:$K$20006,G2) -> 0 | H10: =COUNTIFS($C$14:$C$20006,$B$2,$I$14:$I$20006,$B$9,$K$14:$K$20006,H2) -> 0 | I10: =COUNTIFS($C$14:$C$20006,$B$2,$I$14:$I$20006,$B$9,$K$14:$K$20006,I2) -> 2 | J10: =COUNTIFS($C$14:$C$20006,$B$2,$I$14:$I$20006,$B$9,$K$14:$K$20006,J2) -> 23 | K10: =COUNTIFS($C$14:$C$20006,$B$2,$I$14:$I$20006,$B$9,$K$14:$K$20006,K2) -> 1 | L10: 26 | M10: 24 | N10: 0.9230769231
J12: Amabilidad | K12: Profesionalidad
A13: Código | B13: Formulario | C13: Establecimiento | D13: Fecha | E13: Nivel de Atención | F13: Municipio | G13: Provincia | H13: ¿Recomendaría a otra persona atenderse en este establecimiento de salud? | I13: Seleccione el servicio recibido | J13: ¿Cómo califica la amabilidad del personal que le atendió? | K13: ¿Cómo considera la profesionalidad del personal que le atendió? | L13: ¿Cómo considera la facilidad y rapidez del servicio brindado? | M13: ¿Cómo percibe el manejo de las informaciones del personal que le atendió? | N13: ¿Cómo considera el acceso a los servicios solicitados? | O13: ¿Cómo considera el tiempo para recibir los resultados de los estudios realizados? | P13: ¿Cómo considera la higiene y comodidad del espacio físico? | Q13: En general, ¿Cómo considera la calidad del servicio recibido?
A14: 2197949 | B14: Encuesta General de Satisfacción HOSPITALES | C14: HOSPITAL REGIONAL DR. ALEJANDRO CABRAL | D14: viernes, 1 de diciembre de 2023 4:15:39 p. m. | E14: Tercer Nivel | F14: San Juan | G14: San Juan | H14: Si | I14: Consulta Externa | J14: Buena | K14: Buena | L14: Buena | M14: Buena | N14: Buena | O14: Buena | P14: Buena | Q14: Muy Buena
A15: 2197950 | B15: Encuesta General de Satisfacción HOSPITALES | C15: HOSPITAL REGIONAL DR. ALEJANDRO CABRAL | D15: viernes, 1 de diciembre de 2023 4:15:59 p. m. | E15: Tercer Nivel | F15: San Juan | G15: San Juan | H15: Si | I15: Consulta Externa | J15: Buena | K15: Buena | L15: Buena | M15: Buena | N15: Buena | O15: Buena | P15: Buena | Q15: Buena
A16: 2197951 | B16: Encuesta General de Satisfacción HOSPITALES | C16: HOSPITAL REGIONAL DR. ALEJANDRO CABRAL | D16: viernes, 1 de diciembre de 2023 4:16:19 p. m. | E16: Tercer Nivel | F16: San Juan | G16: San Juan | H16: Si | I16: Consulta Externa | J16: Buena | K16: Buena | L16: Buena | M16: Buena | N16: Buena | O16: Buena | P16: Buena | Q16: Buena
A17: 2197952 | B17: Encuesta General de Satisfacción HOSPITALES | C17: HOSPITAL REGIONAL DR. ALEJANDRO CABRAL | D17: viernes, 1 de diciembre de 2023 4:16:38 p. m. | E17: Tercer Nivel | F17: San Juan | G17: San Juan | H17: Si | I17: Consulta Externa | J17: Buena | K17: Buena | L17: Buena | M17: Buena | N17: Buena | O17: Buena | P17: Buena | Q17: Buena
A18: 2197953 | B18: Encuesta General de Satisfacción HOSPITALES | C18: HOSPITAL REGIONAL DR. ALEJANDRO CABRAL | D18: viernes, 1 de diciembre de 2023 4:16:55 p. m. | E18: Tercer Nivel | F18: San Juan | G18: San Juan | H18: Si | I18: Consulta Externa | J18: Buena | K18: Buena | L18: Buena | M18: Buena | N18: Buena | O18: Buena | P18: Buena | Q18: Buena
A19: 2197955 | B19: Encuesta General de Satisfacción HOSPITALES | C19: HOSPITAL REGIONAL DR. ALEJANDRO CABRAL | D19: viernes, 1 de diciembre de 2023 4:17:12 p. m. | E19: Tercer Nivel | F19: San Juan | G19: San Juan | H19: Si | I19: Consulta Externa | J19: Buena | K19: Buena | L19: Buena | M19: Buena | N19: Buena | O19: Buena | P19: Buena | Q19: Buena
A20: 2197956 | B20: Encuesta General de Satisfacción HOSPITALES | C20: HOSPITAL REGIONAL DR. ALEJANDRO CABRAL | D20: viernes, 1 de diciembre de 2023 4:17:29 p. m. | E20: Tercer Nivel | F20: San Juan | G20: San Juan | H20: Si | I20: Consulta Externa | J20: Buena | K20: Buena | L20: Buena | M20: Buena | N20: Buena | O20: Buena | P20: Buena | Q20: Buena
A21: 2197958 | B21: Encuesta General de Satisfacción HOSPITALES | C21: HOSPITAL REGIONAL DR. ALEJANDRO CABRAL | D21: viernes, 1 de diciembre de 2023 4:17:46 p. m. | E21: Tercer Nivel | F21: San Juan | G21: San Juan | H21: Si | I21: Consulta Externa | J21: Buena | K21: Buena | L21: Buena | M21: Buena | N21: Buena | O21: Buena | P21: Buena | Q21: Buena
A22: 2197959 | B22: Encuesta General de Satisfacción HOSPITALES | C22: HOSPITAL REGIONAL DR. ALEJANDRO CABRAL | D22: viernes, 1 de diciembre de 2023 4:18:02 p. m. | E22: Tercer Nivel | F22: San Juan | G22: San Juan | H22: Si | I22: Laboratorio | J22: Buena | K22: Buena | L22: Buena | M22: Buena | N22: Buena | O22: Buena | P22: Buena | Q22: Buena
A23: 2197961 | B23: Encuesta General de Satisfacción HOSPITALES | C23: HOSPITAL REGIONAL DR. ALEJANDRO CABRAL | D23: viernes, 1 de diciembre de 2023 4:18:19 p. m. | E23: Tercer Nivel | F23: San Juan | G23: San Juan | H23: Si | I23: Laboratorio | J23: Buena | K23: Buena | L23: Buena | M23: Buena | N23: Buena | O23: Buena | P23: Muy Buena | Q23: Buena
A24: 2197962 | B24: Encuesta General de Satisfacción HOSPITALES | C24: HOSPITAL REGIONAL DR. ALEJANDRO CABRAL | D24: viernes, 1 de diciembre de 2023 4:18:47 p. m. | E24: Tercer Nivel | F24: San Juan | G24: San Juan | H24: Si | I24: Laboratorio | J24: Buena | K24: Buena | L24: Buena | M24: Buena | N24: Buena | O24: Buena | P24: Buena | Q24: Buena
A25: 2197965 | B25: Encuesta General de Satisfacción HOSPITALES | C25: HOSPITAL REGIONAL DR. ALEJANDRO CABRAL | D25: viernes, 1 de diciembre de 2023 4:19:07 p. m. | E25: Tercer Nivel | F25: San Juan | G25: San Juan | H25: Si | I25: Laboratorio | J25: Buena | K25: Buena | L25: Muy Buena | M25: Muy Buena | N25: Buena | O25: Buena | P25: Buena | Q25: Buena
A26: 2197966 | B26: Encuesta General de Satisfacción HOSPITALES | C26: HOSPITAL REGIONAL DR. ALEJANDRO CABRAL | D26: viernes, 1 de diciembre de 2023 4:21:14 p. m. | E26: Tercer Nivel | F26: San Juan | G26: San Juan | H26: Si | I26: Consulta Externa | J26: Buena | K26: Buena | L26: Buena | M26: Buena | N26: Buena | O26: Buena | P26: Buena | Q26: Buena
A27: 2197968 | B27: Encuesta General de Satisfacción HOSPITALES | C27: HOSPITAL REGIONAL DR. ALEJANDRO CABRAL | D27: viernes, 1 de diciembre de 2023 4:21:36 p. m. | E27: Tercer Nivel | F27: San Juan | G27: San Juan | H27: Si | I27: Laboratorio | J27: Muy Buena | K27: Muy Buena | L27: Muy Buena | M27: Muy Buena | N27: Muy Buena | O27: Muy Buena | P27: Muy Buena | Q27: Muy Buena
A28: 2197969 | B28: Encuesta General de Satisfacción HOSPITALES | C28: HOSPITAL REGIONAL DR. ALEJANDRO CABRAL | D28: viernes, 1 de diciembre de 2023 4:21:55 p. m. | E28: Tercer Nivel | F28: San Juan | G28: San Juan | H28: Si | I28: Laboratorio | J28: Buena | K28: Buena | L28: Buena | M28: Buena | N28: Buena | O28: Buena | P28: Buena | Q28: Buena
A29: 2197970 | B29: Encuesta General de Satisfacción HOSPITALES | C29: HOSPITAL REGIONAL DR. ALEJANDRO CABRAL | D29: viernes, 1 de diciembre de 2023 4:22:20 p. m. | E29: Tercer Nivel | F29: San Juan | G29: San Juan | H29: Si | I29: Laboratorio | J29: Buena | K29: Buena | L29: Buena | M29: Buena | N29: Buena | O29: Buena | P29: Buena | Q29: Buena
A30: 2197971 | B30: Encuesta General de Satisfacción HOSPITALES | C30: HOSPITAL REGIONAL DR. ALEJANDRO CABRAL | D30: viernes, 1 de diciembre de 2023 4:22:47 p. m. | E30: Tercer Nivel | F30: San Juan | G30: San Juan | H30: Si | I30: Laboratorio | J30: Buena | K30: Buena | L30: Buena | M30: Buena | N30: Regular | O30: Muy Buena | P30: Muy Buena | Q30: Muy Buena
A31: 2197972 | B31: Encuesta General de Satisfacción HOSPITALES | C31: HOSPITAL REGIONAL DR. ALEJANDRO CABRAL | D31: viernes, 1 de diciembre de 2023 4:23:05 p. m. | E31: Tercer Nivel | F31: San Juan | G31: San Juan | H31: Si | I31: Imágenes | J31: Buena | K31: Buena | L31: Buena | M31: Buena | N31: Buena | O31: Buena | P31: Buena | Q31: Buena
A32: 2197974 | B32: Encuesta General de Satisfacción HOSPITALES | C32: HOSPITAL REGIONAL DR. ALEJANDRO CABRAL | D32: viernes, 1 de diciembre de 2023 4:23:23 p. m. | E32: Tercer Nivel | F32: San Juan | G32: San Juan | H32: Si | I32: Imágenes | J32: Buena | K32: Regular | L32: Buena | M32: Buena | N32: Buena | O32: Buena | P32: Buena | Q32: Buena
A33: 2197975 | B33: Encuesta General de Satisfacción HOSPITALES | C33: HOSPITAL REGIONAL DR. ALEJANDRO CABRAL | D33: viernes, 1 de diciembre de 2023 4:23:38 p. m. | E33: Tercer Nivel | F33: San Juan | G33: San Juan | H33: Si | I33: Hospitalización | J33: Buena | K33: Buena | L33: Buena | M33: Buena | N33: Buena | O33: Buena | P33: Buena | Q33: Buena
A34: 2197977 | B34: Encuesta General de Satisfacción HOSPITALES | C34: HOSPITAL REGIONAL DR. ALEJANDRO CABRAL | D34: viernes, 1 de diciembre de 2023 4:24:09 p. m. | E34: Tercer Nivel | F34: San Juan | G34: San Juan | H34: Si | I34: Hospitalización | J34: Buena | K34: Buena | L34: Buena | M34: Buena | N34: Buena | O34: Buena | P34: Buena | Q34: Buena
A35: 2197978 | B35: Encuesta General de Satisfacción HOSPITALES | C35: HOSPITAL REGIONAL DR. ALEJANDRO CABRAL | D35: viernes, 1 de diciembre de 2023 4:24:36 p. m. | E35: Tercer Nivel | F35: San Juan | G35: San Juan | H35: Si | I35: Emergencia | J35: Buena | K35: Buena | L35: Buena | M35: Buena | N35: Buena | O35: Buena | P35: Buena | Q35: Buena
A36: 2197979 | B36: Encuesta General de Satisfacción HOSPITALES | C36: HOSPITAL REGIONAL DR. ALEJANDRO CABRAL | D36: viernes, 1 de diciembre de 2023 4:25:09 p. m. | E36: Tercer Nivel | F36: San Juan | G36: San Juan | H36: Si | I36: Emergencia | J36: Buena | K36: Buena | L36: Buena | M36: Buena | N36: Buena | O36: Buena | P36: Buena | Q36: Buena
A37: 2197981 | B37: Encuesta General de Satisfacción HOSPITALES | C37: HOSPITAL REGIONAL DR. ALEJANDRO CABRAL | D37: viernes, 1 de diciembre de 2023 4:25:32 p. m. | E37: Tercer Nivel | F37: San Juan | G37: San Juan | H37: Si | I37: Emergencia | J37: Buena | K37: Buena | L37: Buena | M37: Buena | N37: Buena | O37: Buena | P37: Buena | Q37: Buena
A38: 2198615 | B38: Encuesta General de Satisfacción HOSPITALES | C38: HOSPITAL REGIONAL DR. ALEJANDRO CABRAL | D38: sábado, 2 de diciembre de 2023 10:20:48 p. m. | E38: Tercer Nivel | F38: San Juan | G38: San Juan | H38: Si | I38: Emergencia | J38: Buena | K38: Buena | L38: Regular | M38: Buena | N38: Regular | O38: Buena | P38: Buena | Q38: Buena
A39: 2198616 | B39: Encuesta General de Satisfacción HOSPITALES | C39: HOSPITAL REGIONAL DR. ALEJANDRO CABRAL | D39: sábado, 2 de diciembre de 2023 10:21:21 p. m. | E39: Tercer Nivel | F39: San Juan | G39: San Juan | H39: Si | I39: Emergencia | J39: Buena | K39: Buena | L39: Buena | M39: Buena | N39: Regular | O39: Buena | P39: Buena | Q39: Buena
A40: 2198617 | B40: Encuesta General de Satisfacción HOSPITALES | C40: HOSPITAL REGIONAL DR. ALEJANDRO CABRAL | D40: sábado, 2 de diciembre de 2023 10:22:07 p. m. | E40: Tercer Nivel | F40: San Juan | G40: San Juan | H40: Si | I40: Emergencia | J40: Buena | K40: Muy Buena | L40: Muy Buena | M40: Buena | N40: Buena | O40: Buena | P40: Regular | Q40: Buena
A41: 2198618 | B41: Encuesta General de Satisfacción HOSPITALES | C41: HOSPITAL REGIONAL DR. ALEJANDRO CABRAL | D41: sábado, 2 de diciembre de 2023 10:22:47 p. m. | E41: Tercer Nivel | F41: San Juan | G41: San Juan | H41: Si | I41: Hospitalización | J41: Muy Buena | K41: Buena | L41: Buena | M41: Buena | N41: Regular | O41: Buena | P41: Buena | Q41: Buena
A42: 2198619 | B42: Encuesta General de Satisfacción HOSPITALES | C42: HOSPITAL REGIONAL DR. ALEJANDRO CABRAL | D42: sábado, 2 de diciembre de 2023 10:23:45 p. m. | E42: Tercer Nivel | F42: San Juan | G42: San Juan | H42: Si | I42: Hospitalización | J42: Buena | K42: Buena | L42: Buena | M42: Muy Buena | N42: Regular | O42: Buena | P42: Regular | Q42: Buena
A43: 2198703 | B43: Encuesta General de Satisfacción HOSPITALES | C43: HOSPITAL REGIONAL DR. ALEJANDRO CABRAL | D43: domingo, 3 de diciembre de 2023 10:36:50 p. m. | E43: Tercer Nivel | F43: San Juan | G43: San Juan | H43: Si | I43: Emergencia | J43: Buena | K43: Buena | L43: Muy Buena | M43: Buena | N43: Buena | O43: Muy Buena | P43: Buena | Q43: Buena
A44: 2198705 | B44: Encuesta General de Satisfacción HOSPITALES | C44: HOSPITAL REGIONAL DR. ALEJANDRO CABRAL | D44: domingo, 3 de diciembre de 2023 10:38:07 p. m. | E44: Tercer Nivel | F44: San Juan | G44: San Juan | H44: Si | I44: Emergencia | J44: Buena | K44: Buena | L44: Buena | M44: Muy Buena | N44: Buena | O44: Muy Buena | P44: Buena | Q44: Buena
A45: 2198709 | B45: Encuesta General de Satisfacción HOSPITALES | C45: HOSPITAL REGIONAL DR. ALEJANDRO CABRAL | D45: domingo, 3 de diciembre de 2023 11:05:18 p. m. | E45: Tercer Nivel | F45: San Juan | G45: San Juan | H45: Si | I45: Emergencia | J45: Buena | K45: Regular | L45: Buena | M45: Muy Buena | N45: Buena | O45: Muy Buena | P45: Buena | Q45: Buena
A46: 2198710 | B46: Encuesta General de Satisfacción HOSPITALES | C46: HOSPITAL REGIONAL DR. ALEJANDRO CABRAL | D46: domingo, 3 de diciembre de 2023 11:05:42 p. m. | E46: Tercer Nivel | F46: San Juan | G46: San Juan | H46: Si | I46: Hospitalización | J46: Buena | K46: Buena | L46: Muy Buena | M46: Buena | N46: Buena | O46: Buena | P46: Regular | Q46: Buena
A47: 2200442 | B47: Encuesta General de Satisfacción HOSPITALES | C47: HOSPITAL REGIONAL DR. ALEJANDRO CABRAL | D47: lunes, 4 de diciembre de 2023 4:49:21 p. m. | E47: Tercer Nivel | F47: San Juan | G47: San Juan | H47: Si | I47: Consulta Externa | J47: Buena | K47: Buena | L47: Buena | M47: Buena | N47: Buena | O47: Buena | P47: Buena | Q47: Buena
A48: 2200444 | B48: Encuesta General de Satisfacción HOSPITALES | C48: HOSPITAL REGIONAL DR. ALEJANDRO CABRAL | D48: lunes, 4 de diciembre de 2023 4:49:40 p. m. | E48: Tercer Nivel | F48: San Juan | G48: San Juan | H48: Si | I48: Consulta Externa | J48: Buena | K48: Buena | L48: Buena | M48: Buena | N48: Buena | O48: Buena | P48: Buena | Q48: Buena
A49: 2200446 | B49: Encuesta General de Satisfacción HOSPITALES | C49: HOSPITAL REGIONAL DR. ALEJANDRO CABRAL | D49: lunes, 4 de diciembre de 2023 4:50:00 p. m. | E49: Tercer Nivel | F49: San Juan | G49: San Juan | H49: Si | I49: Consulta Externa | J49: Buena | K49: Buena | L49: Buena | M49: Buena | N49: Buena | O49: Buena | P49: Buena | Q49: Buena
A50: 2200449 | B50: Encuesta General de Satisfacción HOSPITALES | C50: HOSPITAL REGIONAL DR. ALEJANDRO CABRAL | D50: lunes, 4 de diciembre de 2023 4:50:21 p. m. | E50: Tercer Nivel | F50: San Juan | G50: San Juan | H50: Si | I50: Consulta Externa | J50: Buena | K50: Buena | L50: Buena | M50: Buena | N50: Buena | O50: Buena | P50: Buena | Q50: Buena
A51: 2200450 | B51: Encuesta General de Satisfacción HOSPITALES | C51: HOSPITAL REGIONAL DR. ALEJANDRO CABRAL | D51: lunes, 4 de diciembre de 2023 4:50:40 p. m. | E51: Tercer Nivel | F51: San Juan | G51: San Juan | H51: Si | I51: Consulta Externa | J51: Buena | K51: Buena | L51: Buena | M51: Buena | N51: Buena | O51: Buena | P51: Buena | Q51: Buena
A52: 2200451 | B52: Encuesta General de Satisfacción HOSPITALES | C52: HOSPITAL REGIONAL DR. ALEJANDRO CABRAL | D52: lunes, 4 de diciembre de 2023 4:50:56 p. m. | E52: Tercer Nivel | F52: San Juan | G52: San Juan | H52: Si | I52: Consulta Externa | J52: Buena | K52: Buena | L52: Buena | M52: Buena | N52: Buena | O52: Buena | P52: Buena | Q52: Buena
A53: 2200453 | B53: Encuesta General de Satisfacción HOSPITALES | C53: HOSPITAL REGIONAL DR. ALEJANDRO CABRAL | D53: lunes, 4 de diciembre de 2023 4:51:15 p. m. | E53: Tercer Nivel | F53: San Juan | G53: San Juan | H53: Si | I53: Consulta Externa | J53: Buena | K53: Buena | L53: Muy Buena | M53: Buena | N53: Buena | O53: Buena | P53: Buena | Q53: Buena
A54: 2200455 | B54: Encuesta General de Satisfacción HOSPITALES | C54: HOSPITAL REGIONAL DR. ALEJANDRO CABRAL | D54: lunes, 4 de diciembre de 2023 4:51:32 p. m. | E54: Tercer Nivel | F54: San Juan | G54: San Juan | H54: Si | I54: Consulta Externa | J54: Buena | K54: Buena | L54: Buena | M54: Muy Buena | N54: Buena | O54: Buena | P54: Buena | Q54: Buena
A55: 2200456 | B55: Encuesta General de Satisfacción HOSPITALES | C55: HOSPITAL REGIONAL DR. ALEJANDRO CABRAL | D55: lunes, 4 de diciembre de 2023 4:51:45 p. m. | E55: Tercer Nivel | F55: San Juan | G55: San Juan | H55: Si | I55: Laboratorio | J55: Buena | K55: Buena | L55: Buena | M55: Buena | N55: Buena | O55: Buena | P55: Buena | Q55: Buena
A56: 2200457 | B56: Encuesta General de Satisfacción HOSPITALES | C56: HOSPITAL REGIONAL DR. ALEJANDRO CABRAL | D56: lunes, 4 de diciembre de 2023 4:52:02 p. m. | E56: Tercer Nivel | F56: San Juan | G56: San Juan | H56: Si | I56: Laboratorio | J56: Buena | K56: Buena | L56: Buena | M56: Buena | N56: Buena | O56: Buena | P56: Buena | Q56: Buena
A57: 2200459 | B57: Encuesta General de Satisfacción HOSPITALES | C57: HOSPITAL REGIONAL DR. ALEJANDRO CABRAL | D57: lunes, 4 de diciembre de 2023 4:52:18 p. m. | E57: Tercer Nivel | F57: San Juan | G57: San Juan | H57: Si | I57: Laboratorio | J57: Buena | K57: Buena | L57: Buena | M57: Buena | N57: Buena | O57: Buena | P57: Buena | Q57: Buena
A58: 2200462 | B58: Encuesta General de Satisfacción HOSPITALES | C58: HOSPITAL REGIONAL DR. ALEJANDRO CABRAL | D58: lunes, 4 de diciembre de 2023 4:52:57 p. m. | E58: Tercer Nivel | F58: San Juan | G58: San Juan | H58: Si | I58: Laboratorio | J58: Muy Buena | K58: Buena | L58: Buena | M58: Buena | N58: Buena | O58: Buena | P58: Buena | Q58: Buena
A59: 2200464 | B59: Encuesta General de Satisfacción HOSPITALES | C59: HOSPITAL REGIONAL DR. ALEJANDRO CABRAL | D59: lunes, 4 de diciembre de 2023 4:53:13 p. m. | E59: Tercer Nivel | F59: San Juan | G59: San Juan | H59: Si | I59: Laboratorio | J59: Buena | K59: Buena | L59: Buena | M59: Buena | N59: Buena | O59: Buena | P59: Buena | Q59: Buena
A60: 2200466 | B60: Encuesta General de Satisfacción HOSPITALES | C60: HOSPITAL REGIONAL DR. ALEJANDRO CABRAL | D60: lunes, 4 de diciembre de 2023 4:53:33 p. m. | E60: Tercer Nivel | F60: San Juan | G60: San Juan | H60: Si | I60: Laboratorio | J60: Buena | K60: Buena | L60: Buena | M60: Buena | N60: Buena | O60: Muy Buena | P60: Buena | Q60: Buena
A61: 2200468 | B61: Encuesta General de Satisfacción HOSPITALES | C61: HOSPITAL REGIONAL DR. ALEJANDRO CABRAL | D61: lunes, 4 de diciembre de 2023 4:53:47 p. m. | E61: Tercer Nivel | F61: San Juan | G61: San Juan | H61: Si | I61: Laboratorio | J61: Buena | K61: Buena | L61: Buena | M61: Buena | N61: Buena | O61: Buena | P61: Buena | Q61: Buena
A62: 2200470 | B62: Encuesta General de Satisfacción HOSPITALES | C62: HOSPITAL REGIONAL DR. ALEJANDRO CABRAL | D62: lunes, 4 de diciembre de 2023 4:54:12 p. m. | E62: Tercer Nivel | F62: San Juan | G62: San Juan | H62: Si | I62: Laboratorio | J62: Buena | K62: Buena | L62: Buena | M62: Buena | N62: Buena | O62: Buena | P62: Buena | Q62: Buena
A63: 2200474 | B63: Encuesta General de Satisfacción HOSPITALES | C63: HOSPITAL REGIONAL DR. ALEJANDRO CABRAL | D63: lunes, 4 de diciembre de 2023 4:54:55 p. m. | E63: Tercer Nivel | F63: San Juan | G63: San Juan | H63: Si | I63: Imágenes | J63: Buena | K63: Buena | L63: Buena | M63: Buena | N63: Buena | O63: Buena | P63: Buena | Q63: Buena
A64: 2200477 | B64: Encuesta General de Satisfacción HOSPITALES | C64: HOSPITAL REGIONAL DR. ALEJANDRO CABRAL | D64: lunes, 4 de diciembre de 2023 4:55:09 p. m. | E64: Tercer Nivel | F64: San Juan | G64: San Juan | H64: Si | I64: Imágenes | J64: Buena | K64: Buena | L64: Buena | M64: Buena | N64: Buena | O64: Buena | P64: Buena | Q64: Buena
A65: 2200481 | B65: Encuesta General de Satisfacción HOSPITALES | C65: HOSPITAL REGIONAL DR. ALEJANDRO CABRAL | D65: lunes, 4 de diciembre de 2023 4:55:37 p. m. | E65: Tercer Nivel | F65: San Juan | G65: San Juan | H65: Si | I65: Imágenes | J65: Buena | K65: Buena | L65: Buena | M65: Buena | N65: Buena | O65: Buena | P65: Buena | Q65: Buena
A66: 2200490 | B66: Encuesta General de Satisfacción HOSPITALES | C66: HOSPITAL REGIONAL DR. ALEJANDRO CABRAL | D66: lunes, 4 de diciembre de 2023 4:57:02 p. m. | E66: Tercer Nivel | F66: San Juan | G66: San Juan | H66: Si | I66: Hospitalización | J66: Buena | K66: Buena | L66: Buena | M66: Buena | N66: Buena | O66: Buena | P66: Buena | Q66: Buena
A67: 2200493 | B67: Encuesta General de Satisfacción HOSPITALES | C67: HOSPITAL REGIONAL DR. ALEJANDRO CABRAL | D67: lunes, 4 de diciembre de 2023 4:57:19 p. m. | E67: Tercer Nivel | F67: San Juan | G67: San Juan | H67: Si | I67: Hospitalización | J67: Buena | K67: Buena | L67: Buena | M67: Buena | N67: Buena | O67: Buena | P67: Buena | Q67: Buena
A68: 2200495 | B68: Encuesta General de Satisfacción HOSPITALES | C68: HOSPITAL REGIONAL DR. ALEJANDRO CABRAL | D68: lunes, 4 de diciembre de 2023 4:57:35 p. m. | E68: Tercer Nivel | F68: San Juan | G68: San Juan | H68: Si | I68: Emergencia | J68: Buena | K68: Buena | L68: Buena | M68: Buena | N68: Buena | O68: Buena | P68: Buena | Q68: Buena
A69: 2200496 | B69: Encuesta General de Satisfacción HOSPITALES | C69: HOSPITAL REGIONAL DR. ALEJANDRO CABRAL | D69: lunes, 4 de diciembre de 2023 4:57:53 p. m. | E69: Tercer Nivel | F69: San Juan | G69: San Juan | H69: Si | I69: Emergencia | J69: Buena | K69: Buena | L69: Buena | M69: Buena | N69: Buena | O69: Buena | P69: Buena | Q69: Buena
A70: 2200499 | B70: Encuesta General de Satisfacción HOSPITALES | C70: HOSPITAL REGIONAL DR. ALEJANDRO CABRAL | D70: lunes, 4 de diciembre de 2023 4:58:08 p. m. | E70: Tercer Nivel | F70: San Juan | G70: San Juan | H70: Si | I70: Emergencia | J70: Buena | K70: Buena | L70: Buena | M70: Buena | N70: Buena | O70: Buena | P70: Buena | Q70: Buena
A71: 2200502 | B71: Encuesta General de Satisfacción HOSPITALES | C71: HOSPITAL REGIONAL DR. ALEJANDRO CABRAL | D71: lunes, 4 de diciembre de 2023 4:58:27 p. m. | E71: Tercer Nivel | F71: San Juan | G71: San Juan | H71: Si | I71: Emergencia | J71: Buena | K71: Buena | L71: Buena | M71: Buena | N71: Buena | O71: Buena | P71: Buena | Q71: Buena
A72: 2203076 | B72: Encuesta General de Satisfacción HOSPITALES | C72: HOSPITAL REGIONAL DR. ALEJANDRO CABRAL | D72: martes, 5 de diciembre de 2023 5:31:01 p. m. | E72: Tercer Nivel | F72: San Juan | G72: San Juan | H72: Si | I72: Consulta Externa | J72: Buena | K72: Buena | L72: Buena | M72: Buena | N72: Buena | O72: Buena | P72: Buena | Q72: Buena
A73: 2203077 | B73: Encuesta General de Satisfacción HOSPITALES | C73: HOSPITAL REGIONAL DR. ALEJANDRO CABRAL | D73: martes, 5 de diciembre de 2023 5:31:26 p. m. | E73: Tercer Nivel | F73: San Juan | G73: San Juan | H73: Si | I73: Consulta Externa | J73: Buena | K73: Buena | L73: Buena | M73: Buena | N73: Buena | O73: Buena | P73: Buena | Q73: Buena
A74: 2203080 | B74: Encuesta General de Satisfacción HOSPITALES | C74: HOSPITAL REGIONAL DR. ALEJANDRO CABRAL | D74: martes, 5 de diciembre de 2023 5:31:43 p. m. | E74: Tercer Nivel | F74: San Juan | G74: San Juan | H74: Si | I74: Consulta Externa | J74: Buena | K74: Buena | L74: Buena | M74: Buena | N74: Buena | O74: Buena | P74: Buena | Q74: Buena
A75: 2203082 | B75: Encuesta General de Satisfacción HOSPITALES | C75: HOSPITAL REGIONAL DR. ALEJANDRO CABRAL | D75: martes, 5 de diciembre de 2023 5:31:59 p. m. | E75: Tercer Nivel | F75: San Juan | G75: San Juan | H75: Si | I75: Consulta Externa | J75: Buena | K75: Buena | L75: Buena | M75: Muy Buena | N75: Muy Buena | O75: Muy Buena | P75: Buena | Q75: Buena
A76: 2203084 | B76: Encuesta General de Satisfacción HOSPITALES | C76: HOSPITAL REGIONAL DR. ALEJANDRO CABRAL | D76: martes, 5 de diciembre de 2023 5:32:13 p. m. | E76: Tercer Nivel | F76: San Juan | G76: San Juan | H76: Si | I76: Consulta Externa | J76: Buena | K76: Buena | L76: Buena | M76: Buena | N76: Buena | O76: Buena | P76: Buena | Q76: Buena
A77: 2203087 | B77: Encuesta General de Satisfacción HOSPITALES | C77: HOSPITAL REGIONAL DR. ALEJANDRO CABRAL | D77: martes, 5 de diciembre de 2023 5:32:29 p. m. | E77: Tercer Nivel | F77: San Juan | G77: San Juan | H77: Si | I77: Consulta Externa | J77: Buena | K77: Buena | L77: Buena | M77: Buena | N77: Muy Buena | O77: Muy Buena | P77: Muy Buena | Q77: Muy Buena
A78: 2203090 | B78: Encuesta General de Satisfacción HOSPITALES | C78: HOSPITAL REGIONAL DR. ALEJANDRO CABRAL | D78: martes, 5 de diciembre de 2023 5:32:45 p. m. | E78: Tercer Nivel | F78: San Juan | G78: San Juan | H78: Si | I78: Consulta Externa | J78: Muy Buena | K78: Buena | L78: Buena | M78: Buena | N78: Buena | O78: Buena | P78: Regular | Q78: Buena
A79: 2203094 | B79: Encuesta General de Satisfacción HOSPITALES | C79: HOSPITAL REGIONAL DR. ALEJANDRO CABRAL | D79: martes, 5 de diciembre de 2023 5:33:05 p. m. | E79: Tercer Nivel | F79: San Juan | G79: San Juan | H79: Si | I79: Consulta Externa | J79: Buena | K79: Buena | L79: Buena | M79: Buena | N79: Buena | O79: Buena | P79: Buena | Q79: Buena
A80: 2203099 | B80: Encuesta General de Satisfacción HOSPITALES | C80: HOSPITAL REGIONAL DR. ALEJANDRO CABRAL | D80: martes, 5 de diciembre de 2023 5:33:35 p. m. | E80: Tercer Nivel | F80: San Juan | G80: San Juan | H80: Si | I80: Consulta Externa | J80: Buena | K80: Buena | L80: Buena | M80: Buena | N80: Buena | O80: Buena | P80: Buena | Q80: Buena
A81: 2203108 | B81: Encuesta General de Satisfacción HOSPITALES | C81: HOSPITAL REGIONAL DR. ALEJANDRO CABRAL | D81: martes, 5 de diciembre de 2023 5:35:14 p. m. | E81: Tercer Nivel | F81: San Juan | G81: San Juan | H81: Si | I81: Laboratorio | J81: Buena | K81: Buena | L81: Buena | M81: Buena | N81: Buena | O81: Buena | P81: Buena | Q81: Buena
A82: 2203112 | B82: Encuesta General de Satisfacción HOSPITALES | C82: HOSPITAL REGIONAL DR. ALEJANDRO CABRAL | D82: martes, 5 de diciembre de 2023 5:35:49 p. m. | E82: Tercer Nivel | F82: San Juan | G82: San Juan | H82: Si | I82: Laboratorio | J82: Buena | K82: Buena | L82: Buena | M82: Buena | N82: Buena | O82: Buena | P82: Buena | Q82: Buena
A83: 2203114 | B83: Encuesta General de Satisfacción HOSPITALES | C83: HOSPITAL REGIONAL DR. ALEJANDRO CABRAL | D83: martes, 5 de diciembre de 2023 5:36:04 p. m. | E83: Tercer Nivel | F83: San Juan | G83: San Juan | H83: Si | I83: Laboratorio | J83: Muy Buena | K83: Muy Buena | L83: Buena | M83: Buena | N83: Buena | O83: Buena | P83: Buena | Q83: Buena
A84: 2203117 | B84: Encuesta General de Satisfacción HOSPITALES | C84: HOSPITAL REGIONAL DR. ALEJANDRO CABRAL | D84: martes, 5 de diciembre de 2023 5:36:20 p. m. | E84: Tercer Nivel | F84: San Juan | G84: San Juan | H84: Si | I84: Laboratorio | J84: Buena | K84: Buena | L84: Buena | M84: Buena | N84: Buena | O84: Buena | P84: Buena | Q84: Buena
A85: 2203118 | B85: Encuesta General de Satisfacción HOSPITALES | C85: HOSPITAL REGIONAL DR. ALEJANDRO CABRAL | D85: martes, 5 de diciembre de 2023 5:36:35 p. m. | E85: Tercer Nivel | F85: San Juan | G85: San Juan | H85: Si | I85: Laboratorio | J85: Buena | K85: Buena | L85: Buena | M85: Buena | N85: Buena | O85: Buena | P85: Buena | Q85: Buena
A86: 2203127 | B86: Encuesta General de Satisfacción HOSPITALES | C86: HOSPITAL REGIONAL DR. ALEJANDRO CABRAL | D86: martes, 5 de diciembre de 2023 5:38:37 p. m. | E86: Tercer Nivel | F86: San Juan | G86: San Juan | H86: Si | I86: Laboratorio | J86: Buena | K86: Buena | L86: Buena | M86: Buena | N86: Buena | O86: Buena | P86: Buena | Q86: Buena
A87: 2203134 | B87: Encuesta General de Satisfacción HOSPITALES | C87: HOSPITAL REGIONAL DR. ALEJANDRO CABRAL | D87: martes, 5 de diciembre de 2023 5:39:30 p. m. | E87: Tercer Nivel | F87: San Juan | G87: San Juan | H87: Si | I87: Imágenes | J87: Buena | K87: Buena | L87: Buena | M87: Buena | N87: Buena | O87: Buena | P87: Buena | Q87: Buena
A88: 2203138 | B88: Encuesta General de Satisfacción HOSPITALES | C88: HOSPITAL REGIONAL DR. ALEJANDRO CABRAL | D88: martes, 5 de diciembre de 2023 5:39:49 p. m. | E88: Tercer Nivel | F88: San Juan | G88: San Juan | H88: Si | I88: Imágenes | J88: Buena | K88: Buena | L88: Buena | M88: Buena | N88: Buena | O88: Buena | P88: Buena | Q88: Buena
A89: 2203141 | B89: Encuesta General de Satisfacción HOSPITALES | C89: HOSPITAL REGIONAL DR. ALEJANDRO CABRAL | D89: martes, 5 de diciembre de 2023 5:40:06 p. m. | E89: Tercer Nivel | F89: San Juan | G89: San Juan | H89: Si | I89: Hospitalización | J89: Buena | K89: Buena | L89: Buena | M89: Muy Buena | N89: Buena | O89: Buena | P89: Buena | Q89: Buena
A90: 2203145 | B90: Encuesta General de Satisfacción HOSPITALES | C90: HOSPITAL REGIONAL DR. ALEJANDRO CABRAL | D90: martes, 5 de diciembre de 2023 5:40:19 p. m. | E90: Tercer Nivel | F90: San Juan | G90: San Juan | H90: Si | I90: Hospitalización | J90: Buena | K90: Buena | L90: Buena | M90: Buena | N90: Buena | O90: Buena | P90: Buena | Q90: Buena
A91: 2203148 | B91: Encuesta General de Satisfacción HOSPITALES | C91: HOSPITAL REGIONAL DR. ALEJANDRO CABRAL | D91: martes, 5 de diciembre de 2023 5:40:34 p. m. | E91: Tercer Nivel | F91: San Juan | G91: San Juan | H91: Si | I91: Emergencia | J91: Buena | K91: Buena | L91: Buena | M91: Buena | N91: Buena | O91: Buena | P91: Buena | Q91: Buena
A92: 2203151 | B92: Encuesta General de Satisfacción HOSPITALES | C92: HOSPITAL REGIONAL DR. ALEJANDRO CABRAL | D92: martes, 5 de diciembre de 2023 5:40:50 p. m. | E92: Tercer Nivel | F92: San Juan | G92: San Juan | H92: Si | I92: Emergencia | J92: Buena | K92: Buena | L92: Buena | M92: Buena | N92: Buena | O92: Buena | P92: Buena | Q92: Buena
A93: 2203153 | B93: Encuesta General de Satisfacción HOSPITALES | C93: HOSPITAL REGIONAL DR. ALEJANDRO CABRAL | D93: martes, 5 de diciembre de 2023 5:41:09 p. m. | E93: Tercer Nivel | F93: San Juan | G93: San Juan | H93: Si | I93: Emergencia | J93: Buena | K93: Buena | L93: Buena | M93: Buena | N93: Buena | O93: Regular | P93: Buena | Q93: Buena
A94: 2208081 | B94: Encuesta General de Satisfacción HOSPITALES | C94: HOSPITAL REGIONAL DR. ALEJANDRO CABRAL | D94: jueves, 7 de diciembre de 2023 4:36:50 p. m. | E94: Tercer Nivel | F94: San Juan | G94: San Juan | H94: Si | I94: Consulta Externa | J94: Buena | K94: Buena | L94: Buena | M94: Buena | N94: Buena | O94: Buena | P94: Buena | Q94: Buena
A95: 2208134 | B95: Encuesta General de Satisfacción HOSPITALES | C95: HOSPITAL REGIONAL DR. ALEJANDRO CABRAL | D95: jueves, 7 de diciembre de 2023 5:01:00 p. m. | E95: Tercer Nivel | F95: San Juan | G95: San Juan | H95: Si | I95: Consulta Externa | J95: Buena | K95: Buena | L95: Buena | M95: Buena | N95: Buena | O95: Buena | P95: Buena | Q95: Buena
A96: 2208137 | B96: Encuesta General de Satisfacción HOSPITALES | C96: HOSPITAL REGIONAL DR. ALEJANDRO CABRAL | D96: jueves, 7 de diciembre de 2023 5:01:14 p. m. | E96: Tercer Nivel | F96: San Juan | G96: San Juan | H96: Si | I96: Consulta Externa | J96: Buena | K96: Buena | L96: Buena | M96: Buena | N96: Muy Buena | O96: Muy Buena | P96: Buena | Q96: Buena
A97: 2208140 | B97: Encuesta General de Satisfacción HOSPITALES | C97: HOSPITAL REGIONAL DR. ALEJANDRO CABRAL | D97: jueves, 7 de diciembre de 2023 5:01:31 p. m. | E97: Tercer Nivel | F97: San Juan | G97: San Juan | H97: Si | I97: Consulta Externa | J97: Buena | K97: Buena | L97: Buena | M97: Buena | N97: Buena | O97: Buena | P97: Buena | Q97: Buena
A98: 2208143 | B98: Encuesta General de Satisfacción HOSPITALES | C98: HOSPITAL REGIONAL DR. ALEJANDRO CABRAL | D98: jueves, 7 de diciembre de 2023 5:01:55 p. m. | E98: Tercer Nivel | F98: San Juan | G98: San Juan | H98: Si | I98: Consulta Externa | J98: Buena | K98: Buena | L98: Buena | M98: Buena | N98: Buena | O98: Buena | P98: Buena | Q98: Muy Buena
A99: 2208147 | B99: Encuesta General de Satisfacción HOSPITALES | C99: HOSPITAL REGIONAL DR. ALEJANDRO CABRAL | D99: jueves, 7 de diciembre de 2023 5:02:13 p. m. | E99: Tercer Nivel | F99: San Juan | G99: San Juan | H99: Si | I99: Consulta Externa | J99: Buena | K99: Buena | L99: Buena | M99: Buena | N99: Buena | O99: Buena | P99: Buena | Q99: Buena
A100: 2208150 | B100: Encuesta General de Satisfacción HOSPITALES | C100: HOSPITAL REGIONAL DR. ALEJANDRO CABRAL | D100: jueves, 7 de diciembre de 2023 5:02:38 p. m. | E100: Tercer Nivel | F100: San Juan | G100: San Juan | H100: Si | I100: Consulta Externa | J100: Buena | K100: Buena | L100: Buena | M100: Buena | N100: Buena | O100: Buena | P100: Buena | Q100: Buena
A101: 2208152 | B101: Encuesta General de Satisfacción HOSPITALES | C101: HOSPITAL REGIONAL DR. ALEJANDRO CABRAL | D101: jueves, 7 de diciembre de 2023 5:02:54 p. m. | E101: Tercer Nivel | F101: San Juan | G101: San Juan | H101: Si | I101: Laboratorio | J101: Buena | K101: Buena | L101: Muy Buena | M101: Muy Buena | N101: Muy Buena | O101: Muy Buena | P101: Buena | Q101: Buena
A102: 2208154 | B102: Encuesta General de Satisfacción HOSPITALES | C102: HOSPITAL REGIONAL DR. ALEJANDRO CABRAL | D102: jueves, 7 de diciembre de 2023 5:03:13 p. m. | E102: Tercer Nivel | F102: San Juan | G102: San Juan | H102: Si | I102: Laboratorio | J102: Buena | K102: Buena | L102: Buena | M102: Buena | N102: Buena | O102: Buena | P102: Buena | Q102: Buena
A103: 2208157 | B103: Encuesta General de Satisfacción HOSPITALES | C103: HOSPITAL REGIONAL DR. ALEJANDRO CABRAL | D103: jueves, 7 de diciembre de 2023 5:03:33 p. m. | E103: Tercer Nivel | F103: San Juan | G103: San Juan | H103: Si | I103: Laboratorio | J103: Buena | K103: Buena | L103: Buena | M103: Buena | N103: Buena | O103: Buena | P103: Buena | Q103: Buena
A104: 2208160 | B104: Encuesta General de Satisfacción HOSPITALES | C104: HOSPITAL REGIONAL DR. ALEJANDRO CABRAL | D104: jueves, 7 de diciembre de 2023 5:03:56 p. m. | E104: Tercer Nivel | F104: San Juan | G104: San Juan | H104: Si | I104: Laboratorio | J104: Buena | K104: Buena | L104: Buena | M104: Buena | N104: Buena | O104: Buena | P104: Buena | Q104: Buena
A105: 2208163 | B105: Encuesta General de Satisfacción HOSPITALES | C105: HOSPITAL REGIONAL DR. ALEJANDRO CABRAL | D105: jueves, 7 de diciembre de 2023 5:04:20 p. m. | E105: Tercer Nivel | F105: San Juan | G105: San Juan | H105: Si | I105: Laboratorio | J105: Buena | K105: Buena | L105: Buena | M105: Buena | N105: Buena | O105: Buena | P105: Buena | Q105: Buena
A106: 2208167 | B106: Encuesta General de Satisfacción HOSPITALES | C106: HOSPITAL REGIONAL DR. ALEJANDRO CABRAL | D106: jueves, 7 de diciembre de 2023 5:04:39 p. m. | E106: Tercer Nivel | F106: San Juan | G106: San Juan | H106: Si | I106: Laboratorio | J106: Buena | K106: Muy Buena | L106: Buena | M106: Buena | N106: Buena | O106: Buena | P106: Buena | Q106: Buena
A107: 2208168 | B107: Encuesta General de Satisfacción HOSPITALES | C107: HOSPITAL REGIONAL DR. ALEJANDRO CABRAL | D107: jueves, 7 de diciembre de 2023 5:05:02 p. m. | E107: Tercer Nivel | F107: San Juan | G107: San Juan | H107: Si | I107: Laboratorio | J107: Buena | K107: Buena | L107: Buena | M107: Buena | N107: Buena | O107: Buena | P107: Buena | Q107: Buena
A108: 2208169 | B108: Encuesta General de Satisfacción HOSPITALES | C108: HOSPITAL REGIONAL DR. ALEJANDRO CABRAL | D108: jueves, 7 de diciembre de 2023 5:05:28 p. m. | E108: Tercer Nivel | F108: San Juan | G108: San Juan | H108: Si | I108: Laboratorio | J108: Buena | K108: Buena | L108: Buena | M108: Buena | N108: Buena | O108: Buena | P108: Buena | Q108: Buena
A109: 2208171 | B109: Encuesta General de Satisfacción HOSPITALES | C109: HOSPITAL REGIONAL DR. ALEJANDRO CABRAL | D109: jueves, 7 de diciembre de 2023 5:05:46 p. m. | E109: Tercer Nivel | F109: San Juan | G109: San Juan | H109: Si | I109: Imágenes | J109: Buena | K109: Buena | L109: Buena | M109: Buena | N109: Buena | O109: Buena | P109: Buena | Q109: Buena
A110: 2208173 | B110: Encuesta General de Satisfacción HOSPITALES | C110: HOSPITAL REGIONAL DR. ALEJANDRO CABRAL | D110: jueves, 7 de diciembre de 2023 5:06:09 p. m. | E110: Tercer Nivel | F110: San Juan | G110: San Juan | H110: Si | I110: Imágenes | J110: Buena | K110: Buena | L110: Buena | M110: Buena | N110: Buena | O110: Buena | P110: Buena | Q110: Buena
A111: 2208175 | B111: Encuesta General de Satisfacción HOSPITALES | C111: HOSPITAL REGIONAL DR. ALEJANDRO CABRAL | D111: jueves, 7 de diciembre de 2023 5:06:29 p. m. | E111: Tercer Nivel | F111: San Juan | G111: San Juan | H111: Si | I111: Hospitalización | J111: Buena | K111: Buena | L111: Buena | M111: Buena | N111: Buena | O111: Buena | P111: Buena | Q111: Buena
A112: 2208176 | B112: Encuesta General de Satisfacción HOSPITALES | C112: HOSPITAL REGIONAL DR. ALEJANDRO CABRAL | D112: jueves, 7 de diciembre de 2023 5:06:50 p. m. | E112: Tercer Nivel | F112: San Juan | G112: San Juan | H112: Si | I112: Hospitalización | J112: Buena | K112: Buena | L112: Buena | M112: Buena | N112: Buena | O112: Buena | P112: Buena | Q112: Buena
A113: 2208178 | B113: Encuesta General de Satisfacción HOSPITALES | C113: HOSPITAL REGIONAL DR. ALEJANDRO CABRAL | D113: jueves, 7 de diciembre de 2023 5:07:19 p. m. | E113: Tercer Nivel | F113: San Juan | G113: San Juan | H113: Si | I113: Emergencia | J113: Buena | K113: Buena | L113: Buena | M113: Buena | N113: Buena | O113: Buena | P113: Muy Buena | Q113: Buena
A114: 2208180 | B114: Encuesta General de Satisfacción HOSPITALES | C114: HOSPITAL REGIONAL DR. ALEJANDRO CABRAL | D114: jueves, 7 de diciembre de 2023 5:07:33 p. m. | E114: Tercer Nivel | F114: San Juan | G114: San Juan | H114: Si | I114: Emergencia | J114: Buena | K114: Buena | L114: Buena | M114: Buena | N114: Buena | O114: Buena | P114: Buena | Q114: Buena
A115: 2208182 | B115: Encuesta General de Satisfacción HOSPITALES | C115: HOSPITAL REGIONAL DR. ALEJANDRO CABRAL | D115: jueves, 7 de diciembre de 2023 5:07:48 p. m. | E115: Tercer Nivel | F115: San Juan | G115: San Juan | H115: Si | I115: Emergencia | J115: Buena | K115: Buena | L115: Buena | M115: Buena | N115: Buena | O115: Buena | P115: Buena | Q115: Buena
A116: 2210116 | B116: Encuesta General de Satisfacción HOSPITALES | C116: HOSPITAL REGIONAL DR. ALEJANDRO CABRAL | D116: viernes, 8 de diciembre de 2023 5:42:39 p. m. | E116: Tercer Nivel | F116: San Juan | G116: San Juan | H116: Si | I116: Consulta Externa | J116: Buena | K116: Buena | L116: Buena | M116: Buena | N116: Buena | O116: Buena | P116: Buena | Q116: Buena
A117: 2210118 | B117: Encuesta General de Satisfacción HOSPITALES | C117: HOSPITAL REGIONAL DR. ALEJANDRO CABRAL | D117: viernes, 8 de diciembre de 2023 5:42:53 p. m. | E117: Tercer Nivel | F117: San Juan | G117: San Juan | H117: Si | I117: Consulta Externa | J117: Buena | K117: Buena | L117: Buena | M117: Buena | N117: Buena | O117: Buena | P117: Buena | Q117: Buena
A118: 2210119 | B118: Encuesta General de Satisfacción HOSPITALES | C118: HOSPITAL REGIONAL DR. ALEJANDRO CABRAL | D118: viernes, 8 de diciembre de 2023 5:43:10 p. m. | E118: Tercer Nivel | F118: San Juan | G118: San Juan | H118: Si | I118: Consulta Externa | J118: Buena | K118: Buena | L118: Buena | M118: Buena | N118: Buena | O118: Buena | P118: Buena | Q118: Buena
A119: 2210120 | B119: Encuesta General de Satisfacción HOSPITALES | C119: HOSPITAL REGIONAL DR. ALEJANDRO CABRAL | D119: viernes, 8 de diciembre de 2023 5:43:36 p. m. | E119: Tercer Nivel | F119: San Juan | G119: San Juan | H119: Si | I119: Consulta Externa | J119: Muy Buena | K119: Regular | L119: Buena | M119: Buena | N119: Buena | O119: Buena | P119: Buena | Q119: Buena
A120: 2210122 | B120: Encuesta General de Satisfacción HOSPITALES | C120: HOSPITAL REGIONAL DR. ALEJANDRO CABRAL | D120: viernes, 8 de diciembre de 2023 5:43:50 p. m. | E120: Tercer Nivel | F120: San Juan | G120: San Juan | H120: Si | I120: Consulta Externa | J120: Buena | K120: Buena | L120: Buena | M120: Buena | N120: Buena | O120: Buena | P120: Buena | Q120: Buena
A121: 2210124 | B121: Encuesta General de Satisfacción HOSPITALES | C121: HOSPITAL REGIONAL DR. ALEJANDRO CABRAL | D121: viernes, 8 de diciembre de 2023 5:44:02 p. m. | E121: Tercer Nivel | F121: San Juan | G121: San Juan | H121: Si | I121: Consulta Externa | J121: Buena | K121: Buena | L121: Buena | M121: Buena | N121: Buena | O121: Buena | P121: Buena | Q121: Buena
A122: 2210127 | B122: Encuesta General de Satisfacción HOSPITALES | C122: HOSPITAL REGIONAL DR. ALEJANDRO CABRAL | D122: viernes, 8 de diciembre de 2023 5:44:14 p. m. | E122: Tercer Nivel | F122: San Juan | G122: San Juan | H122: Si | I122: Consulta Externa | J122: Buena | K122: Buena | L122: Muy Buena | M122: Buena | N122: Buena | O122: Buena | P122: Buena | Q122: Buena
A123: 2210128 | B123: Encuesta General de Satisfacción HOSPITALES | C123: HOSPITAL REGIONAL DR. ALEJANDRO CABRAL | D123: viernes, 8 de diciembre de 2023 5:44:29 p. m. | E123: Tercer Nivel | F123: San Juan | G123: San Juan | H123: Si | I123: Laboratorio | J123: Buena | K123: Buena | L123: Buena | M123: Buena | N123: Buena | O123: Buena | P123: Buena | Q123: Buena
A124: 2210131 | B124: Encuesta General de Satisfacción HOSPITALES | C124: HOSPITAL REGIONAL DR. ALEJANDRO CABRAL | D124: viernes, 8 de diciembre de 2023 5:44:42 p. m. | E124: Tercer Nivel | F124: San Juan | G124: San Juan | H124: Si | I124: Hospitalización | J124: Buena | K124: Buena | L124: Buena | M124: Buena | N124: Buena | O124: Buena | P124: Buena | Q124: Buena
A125: 2210132 | B125: Encuesta General de Satisfacción HOSPITALES | C125: HOSPITAL REGIONAL DR. ALEJANDRO CABRAL | D125: viernes, 8 de diciembre de 2023 5:45:01 p. m. | E125: Tercer Nivel | F125: San Juan | G125: San Juan | H125: Si | I125: Hospitalización | J125: Buena | K125: Regular | L125: Regular | M125: Regular | N125: Regular | O125: Regular | P125: Regular | Q125: Regular
A126: 2210135 | B126: Encuesta General de Satisfacción HOSPITALES | C126: HOSPITAL REGIONAL DR. ALEJANDRO CABRAL | D126: viernes, 8 de diciembre de 2023 5:45:20 p. m. | E126: Tercer Nivel | F126: San Juan | G126: San Juan | H126: Si | I126: Laboratorio | J126: Buena | K126: Buena | L126: Buena | M126: Buena | N126: Buena | O126: Buena | P126: Buena | Q126: Buena
A127: 2210138 | B127: Encuesta General de Satisfacción HOSPITALES | C127: HOSPITAL REGIONAL DR. ALEJANDRO CABRAL | D127: viernes, 8 de diciembre de 2023 5:45:35 p. m. | E127: Tercer Nivel | F127: San Juan | G127: San Juan | H127: Si | I127: Laboratorio | J127: Buena | K127: Buena | L127: Buena | M127: Buena | N127: Buena | O127: Buena | P127: Buena | Q127: Buena
A128: 2210140 | B128: Encuesta General de Satisfacción HOSPITALES | C128: HOSPITAL REGIONAL DR. ALEJANDRO CABRAL | D128: viernes, 8 de diciembre de 2023 5:45:50 p. m. | E128: Tercer Nivel | F128: San Juan | G128: San Juan | H128: Si | I128: Laboratorio | J128: Buena | K128: Buena | L128: Buena | M128: Buena | N128: Buena | O128: Buena | P128: Buena | Q128: Buena
A129: 2210142 | B129: Encuesta General de Satisfacción HOSPITALES | C129: HOSPITAL REGIONAL DR. ALEJANDRO CABRAL | D129: viernes, 8 de diciembre de 2023 5:46:05 p. m. | E129: Tercer Nivel | F129: San Juan | G129: San Juan | H129: Si | I129: Laboratorio | J129: Buena | K129: Buena | L129: Buena | M129: Buena | N129: Buena | O129: Buena | P129: Buena | Q129: Muy Buena
A130: 2210145 | B130: Encuesta General de Satisfacción HOSPITALES | C130: HOSPITAL REGIONAL DR. ALEJANDRO CABRAL | D130: viernes, 8 de diciembre de 2023 5:46:19 p. m. | E130: Tercer Nivel | F130: San Juan | G130: San Juan | H130: Si | I130: Laboratorio | J130: Buena | K130: Buena | L130: Buena | M130: Buena | N130: Buena | O130: Buena | P130: Buena | Q130: Buena
A131: 2210147 | B131: Encuesta General de Satisfacción HOSPITALES | C131: HOSPITAL REGIONAL DR. ALEJANDRO CABRAL | D131: viernes, 8 de diciembre de 2023 5:46:39 p. m. | E131: Tercer Nivel | F131: San Juan | G131: San Juan | H131: Si | I131: Imágenes | J131: Buena | K131: Regular | L131: Buena | M131: Buena | N131: Buena | O131: Buena | P131: Buena | Q131: Buena
A132: 2210149 | B132: Encuesta General de Satisfacción HOSPITALES | C132: HOSPITAL REGIONAL DR. ALEJANDRO CABRAL | D132: viernes, 8 de diciembre de 2023 5:46:56 p. m. | E132: Tercer Nivel | F132: San Juan | G132: San Juan | H132: Si | I132: Imágenes | J132: Buena | K132: Buena | L132: Buena | M132: Buena | N132: Buena | O132: Buena | P132: Buena | Q132: Buena
A133: 2210152 | B133: Encuesta General de Satisfacción HOSPITALES | C133: HOSPITAL REGIONAL DR. ALEJANDRO CABRAL | D133: viernes, 8 de diciembre de 2023 5:47:10 p. m. | E133: Tercer Nivel | F133: San Juan | G133: San Juan | H133: Si | I133: Emergencia | J133: Buena | K133: Buena | L133: Buena | M133: Buena | N133: Buena | O133: Buena | P133: Buena | Q133: Buena
A134: 2210153 | B134: Encuesta General de Satisfacción HOSPITALES | C134: HOSPITAL REGIONAL DR. ALEJANDRO CABRAL | D134: viernes, 8 de diciembre de 2023 5:47:24 p. m. | E134: Tercer Nivel | F134: San Juan | G134: San Juan | H134: Si | I134: Emergencia | J134: Buena | K134: Regular | L134: Regular | M134: Regular | N134: Regular | O134: Regular | P134: Regular | Q134: Regular
A135: 2210156 | B135: Encuesta General de Satisfacción HOSPITALES | C135: HOSPITAL REGIONAL DR. ALEJANDRO CABRAL | D135: viernes, 8 de diciembre de 2023 5:47:47 p. m. | E135: Tercer Nivel | F135: San Juan | G135: San Juan | H135: Si | I135: Emergencia | J135: Buena | K135: Buena | L135: Buena | M135: Buena | N135: Buena | O135: Buena | P135: Buena | Q135: Buena
A136: 2210582 | B136: Encuesta General de Satisfacción HOSPITALES | C136: HOSPITAL REGIONAL DR. ALEJANDRO CABRAL | D136: sábado, 9 de diciembre de 2023 10:27:06 p. m. | E136: Tercer Nivel | F136: San Juan | G136: San Juan | H136: Si | I136: Emergencia | J136: Buena | K136: Buena | L136: Buena | M136: Buena | N136: Buena | O136: Buena | P136: Buena | Q136: Buena
A137: 2210583 | B137: Encuesta General de Satisfacción HOSPITALES | C137: HOSPITAL REGIONAL DR. ALEJANDRO CABRAL | D137: sábado, 9 de diciembre de 2023 10:27:31 p. m. | E137: Tercer Nivel | F137: San Juan | G137: San Juan | H137: Si | I137: Emergencia | J137: Regular | K137: Buena | L137: Buena | M137: Buena | N137: Buena | O137: Buena | P137: Buena | Q137: Buena
A138: 2210584 | B138: Encuesta General de Satisfacción HOSPITALES | C138: HOSPITAL REGIONAL DR. ALEJANDRO CABRAL | D138: sábado, 9 de diciembre de 2023 10:28:04 p. m. | E138: Tercer Nivel | F138: San Juan | G138: San Juan | H138: Si | I138: Emergencia | J138: Muy Buena | K138: Buena | L138: Muy Buena | M138: Muy Buena | N138: Buena | O138: Buena | P138: Regular | Q138: Muy Buena
A139: 2210585 | B139: Encuesta General de Satisfacción HOSPITALES | C139: HOSPITAL REGIONAL DR. ALEJANDRO CABRAL | D139: sábado, 9 de diciembre de 2023 10:28:28 p. m. | E139: Tercer Nivel | F139: San Juan | G139: San Juan | H139: Si | I139: Hospitalización | J139: Buena | K139: Buena | L139: Muy Buena | M139: Muy Buena | N139: Muy Buena | O139: Buena | P139: Buena | Q139: Buena
A140: 2210586 | B140: Encuesta General de Satisfacción HOSPITALES | C140: HOSPITAL REGIONAL DR. ALEJANDRO CABRAL | D140: sábado, 9 de diciembre de 2023 10:28:56 p. m. | E140: Tercer Nivel | F140: San Juan | G140: San Juan | H140: Si | I140: Hospitalización | J140: Buena | K140: Buena | L140: Buena | M140: Buena | N140: Regular | O140: Buena | P140: Buena | Q140: Muy Buena
A141: 2210620 | B141: Encuesta General de Satisfacción HOSPITALES | C141: HOSPITAL REGIONAL DR. ALEJANDRO CABRAL | D141: domingo, 10 de diciembre de 2023 10:46:44 p. m. | E141: Tercer Nivel | F141: San Juan | G141: San Juan | H141: Si | I141: Emergencia | J141: Buena | K141: Buena | L141: Buena | M141: Buena | N141: Regular | O141: Buena | P141: Buena | Q141: Buena
A142: 2210621 | B142: Encuesta General de Satisfacción HOSPITALES | C142: HOSPITAL REGIONAL DR. ALEJANDRO CABRAL | D142: domingo, 10 de diciembre de 2023 10:47:15 p. m. | E142: Tercer Nivel | F142: San Juan | G142: San Juan | H142: Si | I142: Emergencia | J142: Buena | K142: Muy Buena | L142: Muy Buena | M142: Buena | N142: Regular | O142: Regular | P142: Buena | Q142: Buena
A143: 2210622 | B143: Encuesta General de Satisfacción HOSPITALES | C143: HOSPITAL REGIONAL DR. ALEJANDRO CABRAL | D143: domingo, 10 de diciembre de 2023 10:47:39 p. m. | E143: Tercer Nivel | F143: San Juan | G143: San Juan | H143: Si | I143: Emergencia | J143: Buena | K143: Buena | L143: Buena | M143: Buena | N143: Regular | O143: Regular | P143: Regular | Q143: Regular
A144: 2210623 | B144: Encuesta General de Satisfacción HOSPITALES | C144: HOSPITAL REGIONAL DR. ALEJANDRO CABRAL | D144: domingo, 10 de diciembre de 2023 10:47:59 p. m. | E144: Tercer Nivel | F144: San Juan | G144: San Juan | H144: Si | I144: Hospitalización | J144: Buena | K144: Buena | L144: Buena | M144: Buena | N144: Buena | O144: Buena | P144: Buena | Q144: Buena
A145: 2210624 | B145: Encuesta General de Satisfacción HOSPITALES | C145: HOSPITAL REGIONAL DR. ALEJANDRO CABRAL | D145: domingo, 10 de diciembre de 2023 10:48:24 p. m. | E145: Tercer Nivel | F145: San Juan | G145: San Juan | H145: Si | I145: Hospitalización | J145: Buena | K145: Buena | L145: Muy Buena | M145: Buena | N145: Buena | O145: Buena | P145: Buena | Q145: Buena
A146: 2214967 | B146: Encuesta General de Satisfacción HOSPITALES | C146: HOSPITAL REGIONAL DR. ALEJANDRO CABRAL | D146: martes, 12 de diciembre de 2023 5:06:32 p. m. | E146: Tercer Nivel | F146: San Juan | G146: San Juan | H146: Si | I146: Consulta Externa | J146: Buena | K146: Buena | L146: Buena | M146: Buena | N146: Buena | O146: Buena | P146: Buena | Q146: Buena
A147: 2214968 | B147: Encuesta General de Satisfacción HOSPITALES | C147: HOSPITAL REGIONAL DR. ALEJANDRO CABRAL | D147: martes, 12 de diciembre de 2023 5:06:46 p. m. | E147: Tercer Nivel | F147: San Juan | G147: San Juan | H147: Si | I147: Consulta Externa | J147: Buena | K147: Buena | L147: Buena | M147: Buena | N147: Buena | O147: Buena | P147: Buena | Q147: Buena
A148: 2214969 | B148: Encuesta General de Satisfacción HOSPITALES | C148: HOSPITAL REGIONAL DR. ALEJANDRO CABRAL | D148: martes, 12 de diciembre de 2023 5:07:02 p. m. | E148: Tercer Nivel | F148: San Juan | G148: San Juan | H148: Si | I148: Consulta Externa | J148: Buena | K148: Buena | L148: Buena | M148: Buena | N148: Buena | O148: Buena | P148: Buena | Q148: Buena
A149: 2214970 | B149: Encuesta General de Satisfacción HOSPITALES | C149: HOSPITAL REGIONAL DR. ALEJANDRO CABRAL | D149: martes, 12 de diciembre de 2023 5:07:27 p. m. | E149: Tercer Nivel | F149: San Juan | G149: San Juan | H149: Si | I149: Consulta Externa | J149: Buena | K149: Buena | L149: Buena | M149: Buena | N149: Buena | O149: Buena | P149: Buena | Q149: Buena
A150: 2214971 | B150: Encuesta General de Satisfacción HOSPITALES | C150: HOSPITAL REGIONAL DR. ALEJANDRO CABRAL | D150: martes, 12 de diciembre de 2023 5:07:45 p. m. | E150: Tercer Nivel | F150: San Juan | G150: San Juan | H150: Si | I150: Consulta Externa | J150: Buena | K150: Buena | L150: Buena | M150: Buena | N150: Buena | O150: Buena | P150: Buena | Q150: Buena
A151: 2214972 | B151: Encuesta General de Satisfacción HOSPITALES | C151: HOSPITAL REGIONAL DR. ALEJANDRO CABRAL | D151: martes, 12 de diciembre de 2023 5:08:02 p. m. | E151: Tercer Nivel | F151: San Juan | G151: San Juan | H151: Si | I151: Consulta Externa | J151: Buena | K151: Buena | L151: Buena | M151: Buena | N151: Buena | O151: Buena | P151: Buena | Q151: Buena
A152: 2214973 | B152: Encuesta General de Satisfacción HOSPITALES | C152: HOSPITAL REGIONAL DR. ALEJANDRO CABRAL | D152: martes, 12 de diciembre de 2023 5:08:20 p. m. | E152: Tercer Nivel | F152: San Juan | G152: San Juan | H152: Si | I152: Consulta Externa | J152: Muy Buena | K152: Buena | L152: Buena | M152: Buena | N152: Buena | O152: Buena | P152: Buena | Q152: Buena
A153: 2214974 | B153: Encuesta General de Satisfacción HOSPITALES | C153: HOSPITAL REGIONAL DR. ALEJANDRO CABRAL | D153: martes, 12 de diciembre de 2023 5:08:45 p. m. | E153: Tercer Nivel | F153: San Juan | G153: San Juan | H153: Si | I153: Laboratorio | J153: Buena | K153: Buena | L153: Buena | M153: Buena | N153: Buena | O153: Buena | P153: Buena | Q153: Buena
A154: 2214975 | B154: Encuesta General de Satisfacción HOSPITALES | C154: HOSPITAL REGIONAL DR. ALEJANDRO CABRAL | D154: martes, 12 de diciembre de 2023 5:08:59 p. m. | E154: Tercer Nivel | F154: San Juan | G154: San Juan | H154: Si | I154: Laboratorio | J154: Buena | K154: Muy Buena | L154: Buena | M154: Buena | N154: Buena | O154: Buena | P154: Buena | Q154: Buena
A155: 2214976 | B155: Encuesta General de Satisfacción HOSPITALES | C155: HOSPITAL REGIONAL DR. ALEJANDRO CABRAL | D155: martes, 12 de diciembre de 2023 5:09:12 p. m. | E155: Tercer Nivel | F155: San Juan | G155: San Juan | H155: Si | I155: Laboratorio | J155: Buena | K155: Muy Buena | L155: Buena | M155: Buena | N155: Buena | O155: Buena | P155: Buena | Q155: Buena
A156: 2214977 | B156: Encuesta General de Satisfacción HOSPITALES | C156: HOSPITAL REGIONAL DR. ALEJANDRO CABRAL | D156: martes, 12 de diciembre de 2023 5:09:27 p. m. | E156: Tercer Nivel | F156: San Juan | G156: San Juan | H156: Si | I156: Laboratorio | J156: Buena | K156: Buena | L156: Buena | M156: Buena | N156: Buena | O156: Muy Buena | P156: Buena | Q156: Buena
A157: 2214978 | B157: Encuesta General de Satisfacción HOSPITALES | C157: HOSPITAL REGIONAL DR. ALEJANDRO CABRAL | D157: martes, 12 de diciembre de 2023 5:09:42 p. m. | E157: Tercer Nivel | F157: San Juan | G157: San Juan | H157: Si | I157: Laboratorio | J157: Buena | K157: Buena | L157: Buena | M157: Buena | N157: Buena | O157: Buena | P157: Buena | Q157: Buena
A158: 2214979 | B158: Encuesta General de Satisfacción HOSPITALES | C158: HOSPITAL REGIONAL DR. ALEJANDRO CABRAL | D158: martes, 12 de diciembre de 2023 5:09:57 p. m. | E158: Tercer Nivel | F158: San Juan | G158: San Juan | H158: Si | I158: Laboratorio | J158: Buena | K158: Buena | L158: Buena | M158: Buena | N158: Buena | O158: Buena | P158: Buena | Q158: Buena
A159: 2214980 | B159: Encuesta General de Satisfacción HOSPITALES | C159: HOSPITAL REGIONAL DR. ALEJANDRO CABRAL | D159: martes, 12 de diciembre de 2023 5:10:11 p. m. | E159: Tercer Nivel | F159: San Juan | G159: San Juan | H159: Si | I159: Imágenes | J159: Buena | K159: Buena | L159: Buena | M159: Buena | N159: Buena | O159: Buena | P159: Buena | Q159: Buena
A160: 2214981 | B160: Encuesta General de Satisfacción HOSPITALES | C160: HOSPITAL REGIONAL DR. ALEJANDRO CABRAL | D160: martes, 12 de diciembre de 2023 5:10:27 p. m. | E160: Tercer Nivel | F160: San Juan | G160: San Juan | H160: Si | I160: Imágenes | J160: Buena | K160: Buena | L160: Buena | M160: Buena | N160: Buena | O160: Buena | P160: Buena | Q160: Buena
A161: 2214982 | B161: Encuesta General de Satisfacción HOSPITALES | C161: HOSPITAL REGIONAL DR. ALEJANDRO CABRAL | D161: martes, 12 de diciembre de 2023 5:10:46 p. m. | E161: Tercer Nivel | F161: San Juan | G161: San Juan | H161: Si | I161: Imágenes | J161: Buena | K161: Buena | L161: Buena | M161: Buena | N161: Buena | O161: Buena | P161: Buena | Q161: Buena
A162: 2214983 | B162: Encuesta General de Satisfacción HOSPITALES | C162: HOSPITAL REGIONAL DR. ALEJANDRO CABRAL | D162: martes, 12 de diciembre de 2023 5:11:00 p. m. | E162: Tercer Nivel | F162: San Juan | G162: San Juan | H162: Si | I162: Hospitalización | J162: Buena | K162: Buena | L162: Buena | M162: Buena | N162: Buena | O162: Buena | P162: Buena | Q162: Buena
A163: 2214984 | B163: Encuesta General de Satisfacción HOSPITALES | C163: HOSPITAL REGIONAL DR. ALEJANDRO CABRAL | D163: martes, 12 de diciembre de 2023 5:11:14 p. m. | E163: Tercer Nivel | F163: San Juan | G163: San Juan | H163: Si | I163: Hospitalización | J163: Buena | K163: Buena | L163: Buena | M163: Buena | N163: Regular | O163: Regular | P163: Regular | Q163: Regular
A164: 2214986 | B164: Encuesta General de Satisfacción HOSPITALES | C164: HOSPITAL REGIONAL DR. ALEJANDRO CABRAL | D164: martes, 12 de diciembre de 2023 5:11:39 p. m. | E164: Tercer Nivel | F164: San Juan | G164: San Juan | H164: Si | I164: Emergencia | J164: Buena | K164: Buena | L164: Buena | M164: Buena | N164: Buena | O164: Buena | P164: Buena | Q164: Buena
A165: 2214987 | B165: Encuesta General de Satisfacción HOSPITALES | C165: HOSPITAL REGIONAL DR. ALEJANDRO CABRAL | D165: martes, 12 de diciembre de 2023 5:11:57 p. m. | E165: Tercer Nivel | F165: San Juan | G165: San Juan | H165: Si | I165: Emergencia | J165: Buena | K165: Buena | L165: Buena | M165: Regular | N165: Regular | O165: Regular | P165: Regular | Q165: Regular
A166: 2214988 | B166: Encuesta General de Satisfacción HOSPITALES | C166: HOSPITAL REGIONAL DR. ALEJANDRO CABRAL | D166: martes, 12 de diciembre de 2023 5:12:14 p. m. | E166: Tercer Nivel | F166: San Juan | G166: San Juan | H166: Si | I166: Emergencia | J166: Buena | K166: Buena | L166: Buena | M166: Buena | N166: Buena | O166: Buena | P166: Buena | Q166: Buena
A167: 2223399 | B167: Encuesta General de Satisfacción HOSPITALES | C167: HOSPITAL REGIONAL DR. ALEJANDRO CABRAL | D167: sábado, 16 de diciembre de 2023 4:11:41 p. m. | E167: Tercer Nivel | F167: San Juan | G167: San Juan | H167: Si | I167: Emergencia | J167: Muy Buena | K167: Muy Buena | L167: Buena | M167: Muy Buena | N167: Buena | O167: Buena | P167: Buena | Q167: Buena
A168: 2223400 | B168: Encuesta General de Satisfacción HOSPITALES | C168: HOSPITAL REGIONAL DR. ALEJANDRO CABRAL | D168: sábado, 16 de diciembre de 2023 4:12:26 p. m. | E168: Tercer Nivel | F168: San Juan | G168: San Juan | H168: Si | I168: Emergencia | J168: Buena | K168: Buena | L168: Buena | M168: Buena | N168: Buena | O168: Buena | P168: Buena | Q168: Buena
A169: 2223401 | B169: Encuesta General de Satisfacción HOSPITALES | C169: HOSPITAL REGIONAL DR. ALEJANDRO CABRAL | D169: sábado, 16 de diciembre de 2023 4:15:07 p. m. | E169: Tercer Nivel | F169: San Juan | G169: San Juan | H169: Si | I169: Emergencia | J169: Buena | K169: Buena | L169: Muy Buena | M169: Buena | N169: Buena | O169: Buena | P169: Buena | Q169: Buena
A170: 2223402 | B170: Encuesta General de Satisfacción HOSPITALES | C170: HOSPITAL REGIONAL DR. ALEJANDRO CABRAL | D170: sábado, 16 de diciembre de 2023 4:19:36 p. m. | E170: Tercer Nivel | F170: San Juan | G170: San Juan | H170: Si | I170: Hospitalización | J170: Buena | K170: Muy Buena | L170: Muy Buena | M170: Buena | N170: Regular | O170: Buena | P170: Buena | Q170: Buena
A171: 2223403 | B171: Encuesta General de Satisfacción HOSPITALES | C171: HOSPITAL REGIONAL DR. ALEJANDRO CABRAL | D171: sábado, 16 de diciembre de 2023 4:20:10 p. m. | E171: Tercer Nivel | F171: San Juan | G171: San Juan | H171: Si | I171: Hospitalización | J171: Buena | K171: Buena | L171: Buena | M171: Buena | N171: Buena | O171: Muy Buena | P171: Buena | Q171: Buena
A172: 2223494 | B172: Encuesta General de Satisfacción HOSPITALES | C172: HOSPITAL REGIONAL DR. ALEJANDRO CABRAL | D172: domingo, 17 de diciembre de 2023 8:58:13 p. m. | E172: Tercer Nivel | F172: San Juan | G172: San Juan | H172: Si | I172: Emergencia | J172: Buena | K172: Buena | L172: Buena | M172: Buena | N172: Buena | O172: Muy Buena | P172: Regular | Q172: Buena
A173: 2223495 | B173: Encuesta General de Satisfacción HOSPITALES | C173: HOSPITAL REGIONAL DR. ALEJANDRO CABRAL | D173: domingo, 17 de diciembre de 2023 8:58:52 p. m. | E173: Tercer Nivel | F173: San Juan | G173: San Juan | H173: Si | I173: Emergencia | J173: Buena | K173: Muy Buena | L173: Muy Buena | M173: Buena | N173: Buena | O173: Muy Buena | P173: Buena | Q173: Muy Buena
A174: 2223496 | B174: Encuesta General de Satisfacción HOSPITALES | C174: HOSPITAL REGIONAL DR. ALEJANDRO CABRAL | D174: domingo, 17 de diciembre de 2023 8:59:30 p. m. | E174: Tercer Nivel | F174: San Juan | G174: San Juan | H174: Si | I174: Emergencia | J174: Buena | K174: Buena | L174: Buena | M174: Buena | N174: Buena | O174: Buena | P174: Buena | Q174: Buena
A175: 2223497 | B175: Encuesta General de Satisfacción HOSPITALES | C175: HOSPITAL REGIONAL DR. ALEJANDRO CABRAL | D175: domingo, 17 de diciembre de 2023 9:01:10 p. m. | E175: Tercer Nivel | F175: San Juan | G175: San Juan | H175: Si | I175: Hospitalización | J175: Buena | K175: Buena | L175: Buena | M175: Buena | N175: Regular | O175: Buena | P175: Buena | Q175: Buena
A176: 2223498 | B176: Encuesta General de Satisfacción HOSPITALES | C176: HOSPITAL REGIONAL DR. ALEJANDRO CABRAL | D176: domingo, 17 de diciembre de 2023 9:01:52 p. m. | E176: Tercer Nivel | F176: San Juan | G176: San Juan | H176: Si | I176: Hospitalización | J176: Buena | K176: Buena | L176: Muy Buena | M176: Muy Buena | N176: Buena | O176: Buena | P176: Buena | Q176: Buena
A177: 2227311 | B177: Encuesta General de Satisfacción HOSPITALES | C177: HOSPITAL REGIONAL DR. ALEJANDRO CABRAL | D177: martes, 19 de diciembre de 2023 4:40:28 p. m. | E177: Tercer Nivel | F177: San Juan | G177: San Juan | H177: Si | I177: Consulta Externa | J177: Buena | K177: Buena | L177: Buena | M177: Buena | N177: Buena | O177: Buena | P177: Buena | Q177: Buena
A178: 2227313 | B178: Encuesta General de Satisfacción HOSPITALES | C178: HOSPITAL REGIONAL DR. ALEJANDRO CABRAL | D178: martes, 19 de diciembre de 2023 4:40:42 p. m. | E178: Tercer Nivel | F178: San Juan | G178: San Juan | H178: Si | I178: Consulta Externa | J178: Buena | K178: Regular | L178: Buena | M178: Buena | N178: Buena | O178: Buena | P178: Buena | Q178: Buena
A179: 2227314 | B179: Encuesta General de Satisfacción HOSPITALES | C179: HOSPITAL REGIONAL DR. ALEJANDRO CABRAL | D179: martes, 19 de diciembre de 2023 4:40:59 p. m. | E179: Tercer Nivel | F179: San Juan | G179: San Juan | H179: Si | I179: Consulta Externa | J179: Buena | K179: Buena | L179: Buena | M179: Buena | N179: Buena | O179: Buena | P179: Buena | Q179: Buena
A180: 2227317 | B180: Encuesta General de Satisfacción HOSPITALES | C180: HOSPITAL REGIONAL DR. ALEJANDRO CABRAL | D180: martes, 19 de diciembre de 2023 4:41:15 p. m. | E180: Tercer Nivel | F180: San Juan | G180: San Juan | H180: Si | I180: Consulta Externa | J180: Buena | K180: Buena | L180: Buena | M180: Buena | N180: Buena | O180: Buena | P180: Buena | Q180: Buena
A181: 2227322 | B181: Encuesta General de Satisfacción HOSPITALES | C181: HOSPITAL REGIONAL DR. ALEJANDRO CABRAL | D181: martes, 19 de diciembre de 2023 4:42:00 p. m. | E181: Tercer Nivel | F181: San Juan | G181: San Juan | H181: Si | I181: Consulta Externa | J181: Buena | K181: Buena | L181: Buena | M181: Buena | N181: Buena | O181: Buena | P181: Buena | Q181: Buena
A182: 2227324 | B182: Encuesta General de Satisfacción HOSPITALES | C182: HOSPITAL REGIONAL DR. ALEJANDRO CABRAL | D182: martes, 19 de diciembre de 2023 4:42:25 p. m. | E182: Tercer Nivel | F182: San Juan | G182: San Juan | H182: Si | I182: Consulta Externa | J182: Buena | K182: Buena | L182: Buena | M182: Buena | N182: Buena | O182: Buena | P182: Muy Buena | Q182: Buena
A183: 2227326 | B183: Encuesta General de Satisfacción HOSPITALES | C183: HOSPITAL REGIONAL DR. ALEJANDRO CABRAL | D183: martes, 19 de diciembre de 2023 4:42:51 p. m. | E183: Tercer Nivel | F183: San Juan | G183: San Juan | H183: Si | I183: Consulta Externa | J183: Buena | K183: Buena | L183: Buena | M183: Buena | N183: Buena | O183: Buena | P183: Muy Buena | Q183: Buena
A184: 2227328 | B184: Encuesta General de Satisfacción HOSPITALES | C184: HOSPITAL REGIONAL DR. ALEJANDRO CABRAL | D184: martes, 19 de diciembre de 2023 4:43:06 p. m. | E184: Tercer Nivel | F184: San Juan | G184: San Juan | H184: Si | I184: Consulta Externa | J184: Buena | K184: Buena | L184: Buena | M184: Buena | N184: Buena | O184: Buena | P184: Buena | Q184: Buena
A185: 2227329 | B185: Encuesta General de Satisfacción HOSPITALES | C185: HOSPITAL REGIONAL DR. ALEJANDRO CABRAL | D185: martes, 19 de diciembre de 2023 4:43:26 p. m. | E185: Tercer Nivel | F185: San Juan | G185: San Juan | H185: Si | I185: Consulta Externa | J185: Muy Buena | K185: Buena | L185: Buena | M185: Buena | N185: Buena | O185: Muy Buena | P185: Buena | Q185: Buena
A186: 2227330 | B186: Encuesta General de Satisfacción HOSPITALES | C186: HOSPITAL REGIONAL DR. ALEJANDRO CABRAL | D186: martes, 19 de diciembre de 2023 4:43:43 p. m. | E186: Tercer Nivel | F186: San Juan | G186: San Juan | H186: Si | I186: Consulta Externa | J186: Buena | K186: Buena | L186: Buena | M186: Buena | N186: Buena | O186: Buena | P186: Buena | Q186: Buena
A187: 2227332 | B187: Encuesta General de Satisfacción HOSPITALES | C187: HOSPITAL REGIONAL DR. ALEJANDRO CABRAL | D187: martes, 19 de diciembre de 2023 4:44:05 p. m. | E187: Tercer Nivel | F187: San Juan | G187: San Juan | H187: Si | I187: Consulta Externa | J187: Buena | K187: Regular | L187: Buena | M187: Buena | N187: Buena | O187: Buena | P187: Buena | Q187: Buena
A188: 2227333 | B188: Encuesta General de Satisfacción HOSPITALES | C188: HOSPITAL REGIONAL DR. ALEJANDRO CABRAL | D188: martes, 19 de diciembre de 2023 4:44:24 p. m. | E188: Tercer Nivel | F188: San Juan | G188: San Juan | H188: Si | I188: Consulta Externa | J188: Buena | K188: Buena | L188: Buena | M188: Buena | N188: Buena | O188: Buena | P188: Buena | Q188: Buena
A189: 2227337 | B189: Encuesta General de Satisfacción HOSPITALES | C189: HOSPITAL REGIONAL DR. ALEJANDRO CABRAL | D189: martes, 19 de diciembre de 2023 4:44:52 p. m. | E189: Tercer Nivel | F189: San Juan | G189: San Juan | H189: Si | I189: Consulta Externa | J189: Buena | K189: Buena | L189: Buena | M189: Buena | N189: Buena | O189: Buena | P189: Buena | Q189: Muy Buena
A190: 2227343 | B190: Encuesta General de Satisfacción HOSPITALES | C190: HOSPITAL REGIONAL DR. ALEJANDRO CABRAL | D190: martes, 19 de diciembre de 2023 4:45:40 p. m. | E190: Tercer Nivel | F190: San Juan | G190: San Juan | H190: Si | I190: Consulta Externa | J190: Buena | K190: Buena | L190: Buena | M190: Buena | N190: Regular | O190: Buena | P190: Buena | Q190: Buena
A191: 2227346 | B191: Encuesta General de Satisfacción HOSPITALES | C191: HOSPITAL REGIONAL DR. ALEJANDRO CABRAL | D191: martes, 19 de diciembre de 2023 4:45:58 p. m. | E191: Tercer Nivel | F191: San Juan | G191: San Juan | H191: Si | I191: Laboratorio | J191: Buena | K191: Buena | L191: Buena | M191: Buena | N191: Buena | O191: Buena | P191: Buena | Q191: Buena
A192: 2227351 | B192: Encuesta General de Satisfacción HOSPITALES | C192: HOSPITAL REGIONAL DR. ALEJANDRO CABRAL | D192: martes, 19 de diciembre de 2023 4:46:17 p. m. | E192: Tercer Nivel | F192: San Juan | G192: San Juan | H192: Si | I192: Laboratorio | J192: Buena | K192: Buena | L192: Buena | M192: Buena | N192: Buena | O192: Buena | P192: Buena | Q192: Buena
A193: 2227357 | B193: Encuesta General de Satisfacción HOSPITALES | C193: HOSPITAL REGIONAL DR. ALEJANDRO CABRAL | D193: martes, 19 de diciembre de 2023 4:46:48 p. m. | E193: Tercer Nivel | F193: San Juan | G193: San Juan | H193: Si | I193: Laboratorio | J193: Buena | K193: Buena | L193: Muy Buena | M193: Buena | N193: Buena | O193: Buena | P193: Buena | Q193: Buena
A194: 2227364 | B194: Encuesta General de Satisfacción HOSPITALES | C194: HOSPITAL REGIONAL DR. ALEJANDRO CABRAL | D194: martes, 19 de diciembre de 2023 4:47:28 p. m. | E194: Tercer Nivel | F194: San Juan | G194: San Juan | H194: Si | I194: Laboratorio | J194: Buena | K194: Buena | L194: Buena | M194: Buena | N194: Buena | O194: Buena | P194: Buena | Q194: Buena
A195: 2227365 | B195: Encuesta General de Satisfacción HOSPITALES | C195: HOSPITAL REGIONAL DR. ALEJANDRO CABRAL | D195: martes, 19 de diciembre de 2023 4:47:52 p. m. | E195: Tercer Nivel | F195: San Juan | G195: San Juan | H195: Si | I195: Laboratorio | J195: Buena | K195: Buena | L195: Buena | M195: Buena | N195: Buena | O195: Buena | P195: Buena | Q195: Buena
A196: 2227366 | B196: Encuesta General de Satisfacción HOSPITALES | C196: HOSPITAL REGIONAL DR. ALEJANDRO CABRAL | D196: martes, 19 de diciembre de 2023 4:48:10 p. m. | E196: Tercer Nivel | F196: San Juan | G196: San Juan | H196: Si | I196: Laboratorio | J196: Buena | K196: Buena | L196: Muy Buena | M196: Muy Buena | N196: Muy Buena | O196: Muy Buena | P196: Muy Buena | Q196: Muy Buena
A197: 2227367 | B197: Encuesta General de Satisfacción HOSPITALES | C197: HOSPITAL REGIONAL DR. ALEJANDRO CABRAL | D197: martes, 19 de diciembre de 2023 4:48:29 p. m. | E197: Tercer Nivel | F197: San Juan | G197: San Juan | H197: Si | I197: Laboratorio | J197: Buena | K197: Muy Buena | L197: Muy Buena | M197: Muy Buena | N197: Muy Buena | O197: Muy Buena | P197: Muy Buena | Q197: Muy Buena
A198: 2227368 | B198: Encuesta General de Satisfacción HOSPITALES | C198: HOSPITAL REGIONAL DR. ALEJANDRO CABRAL | D198: martes, 19 de diciembre de 2023 4:48:52 p. m. | E198: Tercer Nivel | F198: San Juan | G198: San Juan | H198: Si | I198: Laboratorio | J198: Muy Buena | K198: Muy Buena | L198: Muy Buena | M198: Muy Buena | N198: Muy Buena | O198: Muy Buena | P198: Buena | Q198: Muy Buena
A199: 2227369 | B199: Encuesta General de Satisfacción HOSPITALES | C199: HOSPITAL REGIONAL DR. ALEJANDRO CABRAL | D199: martes, 19 de diciembre de 2023 4:49:17 p. m. | E199: Tercer Nivel | F199: San Juan | G199: San Juan | H199: Si | I199: Laboratorio | J199: Buena | K199: Buena | L199: Buena | M199: Buena | N199: Buena | O199: Buena | P199: Buena | Q199: Buena
A200: 2227370 | B200: Encuesta General de Satisfacción HOSPITALES | C200: HOSPITAL REGIONAL DR. ALEJANDRO CABRAL | D200: martes, 19 de diciembre de 2023 4:49:39 p. m. | E200: Tercer Nivel | F200: San Juan | G200: San Juan | H200: Si | I200: Imágenes | J200: Buena | K200: Buena | L200: Buena | M200: Buena | N200: Buena | O200: Buena | P200: Buena | Q200: Buena
A201: 2227376 | B201: Encuesta General de Satisfacción HOSPITALES | C201: HOSPITAL REGIONAL DR. ALEJANDRO CABRAL | D201: martes, 19 de diciembre de 2023 4:51:51 p. m. | E201: Tercer Nivel | F201: San Juan | G201: San Juan | H201: Si | I201: Imágenes | J201: Regular | K201: Muy Buena | L201: Buena | M201: Buena | N201: Buena | O201: Buena | P201: Buena | Q201: Buena
A202: 2227430 | B202: Encuesta General de Satisfacción HOSPITALES | C202: HOSPITAL REGIONAL DR. ALEJANDRO CABRAL | D202: martes, 19 de diciembre de 2023 5:07:40 p. m. | E202: Tercer Nivel | F202: San Juan | G202: San Juan | H202: Si | I202: Imágenes | J202: Buena | K202: Buena | L202: Buena | M202: Buena | N202: Buena | O202: Buena | P202: Buena | Q202: Buena
... 112 more rows
